Workbook

Sheet Январь
P1: Январь | X1: Экономия | Y1: Базовая норма расхода на 100 км | Z1: Базовая норма расхода на 1 мото/час
A2: Общество с ограниченной ответственностью "Втормет Царицыно" | R2: 1-я пол. | S2: =A7 -> 2018-01-01 | T2: 2018-01-18 | U2: =ТС!E5 -> 500 | V2: =SUMIFS(Январь[Выдано топливо, литр],Январь[Дата],">="&$S$2,Январь[Дата],"<="&$T$2)+IF(MONTH(T2)<>MONTH(S2),INDIRECT(TEXT(A7-1,"ММММ")&"!F38")-SUM(INDIRECT(TEXT(A7-1,"ММММ")&"!V1:V2")))+SUMIFS($U$7:$U$37,Январь[Дата],">="&$S$2,Январь[Дата],"<="&$T$2)+IF(MONTH(T2)<>MONTH(S2),INDIRECT(TEXT(A7-1,"ММММ")&"!F38")-SUM(INDIRECT(TEXT(A7-1,"ММММ")&"!V1:V2"))) -> 330 | W2: =IF(V2=0,0,(SUMIFS($N$7:$N$37,$A$7:$A$37,">="&$S$2,$A$7:$A$37,"<="&$T$2))/(V2-U2+G7)) -> 1.0985 | X2: =SUMIFS(Январь[Отклонение от нормы (Перерасход(+), экономия(-)), литр],Январь[Дата],">="&$S$2,Январь[Дата],"<="&$T$2) -> -32.505 | Y2: =IF(Y4="Зима",VLOOKUP(Z4,Расчет[[Номер гос.регистрации / Заводской номер]:[Итога норма а/м "ЛЕТО"]],8,FALSE),VLOOKUP(Z4,Расчет[[Номер гос.регистрации / Заводской номер]:[Итога норма а/м "ЛЕТО"]],9,FALSE)) -> 51.546 | Z2: =IF(Y4="Зима",VLOOKUP(Z4,Расчет[[Номер гос.регистрации / Заводской номер]:[Итога норма а/м "ЛЕТО"]],13,FALSE),VLOOKUP(Z4,Расчет[[Номер гос.регистрации / Заводской номер]:[Итога норма а/м "ЛЕТО"]],14,FALSE)) -> 6.05
A3: Отчет водителя ломовоза с манипулятором | R3: 2-я пол. | S3: =T2+1 -> 2018-01-19 | T3: =INDEX(Январь[Дата],COUNT(Январь[Дата]))-T1 -> 2018-01-31 | U3: =ТС!E6 -> 500 | V3: =SUMIFS(Январь[Выдано топливо, литр],Январь[Дата],">="&$S$3,Январь[Дата],"<="&$T$3)+IF(MONTH(T3)<>MONTH(S3),INDIRECT(TEXT(A7-1,"ММММ")&"!F38")-SUM(INDIRECT(TEXT(A7-1,"ММММ")&"!V1:V2")))+SUMIFS($U$7:$U$37,Январь[Дата],">="&$S$3,Январь[Дата],"<="&$T$3)+IF(MONTH(T3)<>MONTH(S3),INDIRECT(TEXT(A7-1,"ММММ")&"!F38")-SUM(INDIRECT(TEXT(A7-1,"ММММ")&"!V1:V2"))) -> 752 | W3: =IF(V3=0,0,(SUMIFS($N$7:$N$37,$A$7:$A$37,">="&$S$3,$A$7:$A$37,"<="&$T$3))/(V3-U3+U3)) -> 1.10106117 | X3: =SUMIFS(Январь[Отклонение от нормы (Перерасход(+), экономия(-)), литр],Январь[Дата],">="&$S$3,Январь[Дата],"<="&$T$3) -> -75.998
H4: за | I4: 2018 | O4: т 056 вв 197 | S4: =IF(INDEX(Январь[Дата],COUNT(Январь[Дата]))=T3,"",T3+1) ->  | W4: =IFERROR(IF(S4="","",INDIRECT(TEXT(A7+40,"ММММ")&"!W2")),) ->  | Y4: Зима | Z4: Норма 1
A6: Дата | B6: ФИО водителя | C6: Показание одометра машины на начало дня, км | D6: Показание одометра машины на конец дня, км | E6: Пройдено за день, км | F6: Выдано топливо, литр | G6: Остаток топлива в баке на начало дня, литр | H6: Показание счетчика моточасов спецоборудования на начало дня, м/ч | I6: Показание счетчика моточасов спецоборудования на конец дня, м/ч | J6: Работа спецоборудования за день, м/ч | K6: Количество ходок | L6: Расход топлива на работу спецоборудования, литр | M6: Остаток топлива в баке на конец дня, литр | N6: Расход топлива по норме, литр | O6: Фактический расход топлива, литр | P6: Отклонение от нормы (Перерасход(+), экономия(-)), литр | R6: Дата | S6: Обнуление одометра, км | T6: Пройдено за день, км | U6: Выдано топливо, литр | V6: Обнуление счетчика моточасов спецоборудования, м/ч | W6: Работа спецоборудования за день, м/ч | X6: Расход топлива по норме, литр | Y6: Фактический расход топлива, литр | Z6: Дата
A7: =IFERROR(DATEVALUE((COUNT($A$6:A6)+1)&$P$1&$I$4),"") -> 2018-01-01 | C7: =ТС!C5 -> 209024 | D7: 209024 | E7: =Январь[[#This Row],[Показание одометра машины на конец дня, км]]-Январь[[#This Row],[Показание одометра машины на начало дня, км]]+T7 -> 0 | F7: =SUMPRODUCT([1]январь!$E$4:$E$153*([1]январь!$G$4:$G$153=$O$4)*([1]январь!$D$4:$D$153=Январь[[#This Row],[Дата]])) -> 0 | G7: =ТС!E5 -> 500 | H7: =ТС!D5 -> 620 | I7: 620 | J7: =IF(W7="",Январь[[#This Row],[Показание счетчика моточасов спецоборудования на конец дня, м/ч]],Январь[[#This Row],[Показание счетчика моточасов спецоборудования на конец дня, м/ч]]+1)-Январь[[#This Row],[Показание счетчика моточасов спецоборудования на начало дня, м/ч]] -> 0 | L7: =IF(Январь[[#This Row],[Работа спецоборудования за день, м/ч]]="","",Январь[[#This Row],[Работа спецоборудования за день, м/ч]]*$Z$2) -> 0 | M7: =IF(VLOOKUP([Дата],S$2:U$3,3),IFERROR(IF(U7="",Январь[[#This Row],[Выдано топливо, литр]],Январь[[#This Row],[Выдано топливо, литр]]+U7)+Январь[[#This Row],[Остаток топлива в баке на начало дня, литр]]-Январь[[#This Row],[Фактический расход топлива, литр]],""),"") -> 500 | N7: =ROUND((Январь[[#This Row],[Пройдено за день, км]]*0.01*$Y$2+Январь[[#This Row],[Расход топлива на работу спецоборудования, литр]]),3)+X7 -> 0 | O7: =ROUND(Январь[[#This Row],[Расход топлива по норме, литр]]/VLOOKUP([Дата],S$2:W$4,5),0)+Y7 -> 0 | P7: =IFERROR(Январь[[#This Row],[Фактический расход топлива, литр]]-Январь[[#This Row],[Расход топлива по норме, литр]],"") -> 0 | R7: =Январь[[#This Row],[Дата]] -> 2018-01-01 | Z7: =Январь[[#This Row],[Дата]] -> 2018-01-01
A8: =IFERROR(DATEVALUE((COUNT($A$6:A7)+1)&$P$1&$I$4),"") -> 2018-01-02 | C8: =IFERROR(IF(INDIRECT(TEXT(A7,"ММММ")&"!A7:A37")="","",IF(S7="",D7,S7)),"") -> 209024 | D8: 209024 | E8: =Январь[[#This Row],[Показание одометра машины на конец дня, км]]-Январь[[#This Row],[Показание одометра машины на начало дня, км]]+T8 -> 0 | F8: =SUMPRODUCT([1]январь!$E$4:$E$153*([1]январь!$G$4:$G$153=$O$4)*([1]январь!$D$4:$D$153=Январь[[#This Row],[Дата]])) -> 0 | G8: =IF(Январь[[#This Row],[Дата]]="","",M7) -> 500 | H8: =IFERROR(IF(INDIRECT(TEXT(A7,"ММММ")&"!A7:A37")="","",IF(V7="",I7,V7)),"") -> 620 | I8: 620 | J8: =IF(W8="",Январь[[#This Row],[Показание счетчика моточасов спецоборудования на конец дня, м/ч]],Январь[[#This Row],[Показание счетчика моточасов спецоборудования на конец дня, м/ч]]+1)-Январь[[#This Row],[Показание счетчика моточасов спецоборудования на начало дня, м/ч]] -> 0 | L8: =IF(Январь[[#This Row],[Работа спецоборудования за день, м/ч]]="","",Январь[[#This Row],[Работа спецоборудования за день, м/ч]]*$Z$2) -> 0 | M8: =IF(VLOOKUP([Дата],S$2:U$3,3),IFERROR(IF(U8="",Январь[[#This Row],[Выдано топливо, литр]],Январь[[#This Row],[Выдано топливо, литр]]+U8)+Январь[[#This Row],[Остаток топлива в баке на начало дня, литр]]-Январь[[#This Row],[Фактический расход топлива, литр]],""),"") -> 500 | N8: =ROUND((Январь[[#This Row],[Пройдено за день, км]]*0.01*$Y$2+Январь[[#This Row],[Расход топлива на работу спецоборудования, литр]]),3)+X8 -> 0 | O8: =ROUND(Январь[[#This Row],[Расход топлива по норме, литр]]/VLOOKUP([Дата],S$2:W$4,5),0)+Y8 -> 0 | P8: =IFERROR(Январь[[#This Row],[Фактический расход топлива, литр]]-Январь[[#This Row],[Расход топлива по норме, литр]],"") -> 0 | R8: =Январь[[#This Row],[Дата]] -> 2018-01-02 | Z8: =Январь[[#This Row],[Дата]] -> 2018-01-02
A9: =IFERROR(DATEVALUE((COUNT($A$6:A8)+1)&$P$1&$I$4),"") -> 2018-01-03 | C9: =IFERROR(IF(INDIRECT(TEXT(A8,"ММММ")&"!A7:A37")="","",IF(S8="",D8,S8)),"") -> 209024 | D9: 209024 | E9: =Январь[[#This Row],[Показание одометра машины на конец дня, км]]-Январь[[#This Row],[Показание одометра машины на начало дня, км]]+T9 -> 0 | F9: =SUMPRODUCT([1]январь!$E$4:$E$153*([1]январь!$G$4:$G$153=$O$4)*([1]январь!$D$4:$D$153=Январь[[#This Row],[Дата]])) -> 0 | G9: =IF(Январь[[#This Row],[Дата]]="","",M8) -> 500 | H9: =IFERROR(IF(INDIRECT(TEXT(A8,"ММММ")&"!A7:A37")="","",IF(V8="",I8,V8)),"") -> 620 | I9: 620 | J9: =IF(W9="",Январь[[#This Row],[Показание счетчика моточасов спецоборудования на конец дня, м/ч]],Январь[[#This Row],[Показание счетчика моточасов спецоборудования на конец дня, м/ч]]+1)-Январь[[#This Row],[Показание счетчика моточасов спецоборудования на начало дня, м/ч]] -> 0 | L9: =IF(Январь[[#This Row],[Работа спецоборудования за день, м/ч]]="","",Январь[[#This Row],[Работа спецоборудования за день, м/ч]]*$Z$2) -> 0 | M9: =IF(VLOOKUP([Дата],S$2:U$3,3),IFERROR(IF(U9="",Январь[[#This Row],[Выдано топливо, литр]],Январь[[#This Row],[Выдано топливо, литр]]+U9)+Январь[[#This Row],[Остаток топлива в баке на начало дня, литр]]-Январь[[#This Row],[Фактический расход топлива, литр]],""),"") -> 500 | N9: =ROUND((Январь[[#This Row],[Пройдено за день, км]]*0.01*$Y$2+Январь[[#This Row],[Расход топлива на работу спецоборудования, литр]]),3)+X9 -> 0 | O9: =ROUND(Январь[[#This Row],[Расход топлива по норме, литр]]/VLOOKUP([Дата],S$2:W$4,5),0)+Y9 -> 0 | P9: =IFERROR(Январь[[#This Row],[Фактический расход топлива, литр]]-Январь[[#This Row],[Расход топлива по норме, литр]],"") -> 0 | R9: =Январь[[#This Row],[Дата]] -> 2018-01-03 | Z9: =Январь[[#This Row],[Дата]] -> 2018-01-03
A10: =IFERROR(DATEVALUE((COUNT($A$6:A9)+1)&$P$1&$I$4),"") -> 2018-01-04 | C10: 209024 | D10: 209024 | E10: =Январь[[#This Row],[Показание одометра машины на конец дня, км]]-Январь[[#This Row],[Показание одометра машины на начало дня, км]]+T10 -> 0 | F10: =SUMPRODUCT([1]январь!$E$4:$E$153*([1]январь!$G$4:$G$153=$O$4)*([1]январь!$D$4:$D$153=Январь[[#This Row],[Дата]])) -> 0 | G10: =IF(Январь[[#This Row],[Дата]]="","",M9) -> 500 | H10: 620 | I10: 620 | J10: =IF(W10="",Январь[[#This Row],[Показание счетчика моточасов спецоборудования на конец дня, м/ч]],Январь[[#This Row],[Показание счетчика моточасов спецоборудования на конец дня, м/ч]]+1)-Январь[[#This Row],[Показание счетчика моточасов спецоборудования на начало дня, м/ч]] -> 0 | L10: =IF(Январь[[#This Row],[Работа спецоборудования за день, м/ч]]="","",Январь[[#This Row],[Работа спецоборудования за день, м/ч]]*$Z$2) -> 0 | M10: =IF(VLOOKUP([Дата],S$2:U$3,3),IFERROR(IF(U10="",Январь[[#This Row],[Выдано топливо, литр]],Январь[[#This Row],[Выдано топливо, литр]]+U10)+Январь[[#This Row],[Остаток топлива в баке на начало дня, литр]]-Январь[[#This Row],[Фактический расход топлива, литр]],""),"") -> 500 | N10: =ROUND((Январь[[#This Row],[Пройдено за день, км]]*0.01*$Y$2+Январь[[#This Row],[Расход топлива на работу спецоборудования, литр]]),3)+X10 -> 0 | O10: =ROUND(Январь[[#This Row],[Расход топлива по норме, литр]]/VLOOKUP([Дата],S$2:W$4,5),0)+Y10 -> 0 | P10: =IFERROR(Январь[[#This Row],[Фактический расход топлива, литр]]-Январь[[#This Row],[Расход топлива по норме, литр]],"") -> 0 | R10: =Январь[[#This Row],[Дата]] -> 2018-01-04 | Z10: =Январь[[#This Row],[Дата]] -> 2018-01-04
A11: =IFERROR(DATEVALUE((COUNT($A$6:A10)+1)&$P$1&$I$4),"") -> 2018-01-05 | C11: 209024 | D11: 209024 | E11: =Январь[[#This Row],[Показание одометра машины на конец дня, км]]-Январь[[#This Row],[Показание одометра машины на начало дня, км]]+T11 -> 0 | F11: =SUMPRODUCT([1]январь!$E$4:$E$153*([1]январь!$G$4:$G$153=$O$4)*([1]январь!$D$4:$D$153=Январь[[#This Row],[Дата]])) -> 0 | G11: =IF(Январь[[#This Row],[Дата]]="","",M10) -> 500 | H11: 620 | I11: 620 | J11: =IF(W11="",Январь[[#This Row],[Показание счетчика моточасов спецоборудования на конец дня, м/ч]],Январь[[#This Row],[Показание счетчика моточасов спецоборудования на конец дня, м/ч]]+1)-Январь[[#This Row],[Показание счетчика моточасов спецоборудования на начало дня, м/ч]] -> 0 | L11: =IF(Январь[[#This Row],[Работа спецоборудования за день, м/ч]]="","",Январь[[#This Row],[Работа спецоборудования за день, м/ч]]*$Z$2) -> 0 | M11: =IF(VLOOKUP([Дата],S$2:U$3,3),IFERROR(IF(U11="",Январь[[#This Row],[Выдано топливо, литр]],Январь[[#This Row],[Выдано топливо, литр]]+U11)+Январь[[#This Row],[Остаток топлива в баке на начало дня, литр]]-Январь[[#This Row],[Фактический расход топлива, литр]],""),"") -> 500 | N11: =ROUND((Январь[[#This Row],[Пройдено за день, км]]*0.01*$Y$2+Январь[[#This Row],[Расход топлива на работу спецоборудования, литр]]),3)+X11 -> 0 | O11: =ROUND(Январь[[#This Row],[Расход топлива по норме, литр]]/VLOOKUP([Дата],S$2:W$4,5),0)+Y11 -> 0 | P11: =IFERROR(Январь[[#This Row],[Фактический расход топлива, литр]]-Январь[[#This Row],[Расход топлива по норме, литр]],"") -> 0 | R11: =Январь[[#This Row],[Дата]] -> 2018-01-05 | Z11: =Январь[[#This Row],[Дата]] -> 2018-01-05
A12: =IFERROR(DATEVALUE((COUNT($A$6:A11)+1)&$P$1&$I$4),"") -> 2018-01-06 | C12: 209024 | D12: 209024 | E12: =Январь[[#This Row],[Показание одометра машины на конец дня, км]]-Январь[[#This Row],[Показание одометра машины на начало дня, км]]+T12 -> 0 | F12: =SUMPRODUCT([1]январь!$E$4:$E$153*([1]январь!$G$4:$G$153=$O$4)*([1]январь!$D$4:$D$153=Январь[[#This Row],[Дата]])) -> 0 | G12: =IF(Январь[[#This Row],[Дата]]="","",M11) -> 500 | H12: 620 | I12: 620 | J12: =IF(W12="",Январь[[#This Row],[Показание счетчика моточасов спецоборудования на конец дня, м/ч]],Январь[[#This Row],[Показание счетчика моточасов спецоборудования на конец дня, м/ч]]+1)-Январь[[#This Row],[Показание счетчика моточасов спецоборудования на начало дня, м/ч]] -> 0 | L12: =IF(Январь[[#This Row],[Работа спецоборудования за день, м/ч]]="","",Январь[[#This Row],[Работа спецоборудования за день, м/ч]]*$Z$2) -> 0 | M12: =IF(VLOOKUP([Дата],S$2:U$3,3),IFERROR(IF(U12="",Январь[[#This Row],[Выдано топливо, литр]],Январь[[#This Row],[Выдано топливо, литр]]+U12)+Январь[[#This Row],[Остаток топлива в баке на начало дня, литр]]-Январь[[#This Row],[Фактический расход топлива, литр]],""),"") -> 500 | N12: =ROUND((Январь[[#This Row],[Пройдено за день, км]]*0.01*$Y$2+Январь[[#This Row],[Расход топлива на работу спецоборудования, литр]]),3)+X12 -> 0 | O12: =ROUND(Январь[[#This Row],[Расход топлива по норме, литр]]/VLOOKUP([Дата],S$2:W$4,5),0)+Y12 -> 0 | P12: =IFERROR(Январь[[#This Row],[Фактический расход топлива, литр]]-Январь[[#This Row],[Расход топлива по норме, литр]],"") -> 0 | R12: =Январь[[#This Row],[Дата]] -> 2018-01-06 | Z12: =Январь[[#This Row],[Дата]] -> 2018-01-06
A13: =IFERROR(DATEVALUE((COUNT($A$6:A12)+1)&$P$1&$I$4),"") -> 2018-01-07 | C13: 209024 | D13: 209024 | E13: =Январь[[#This Row],[Показание одометра машины на конец дня, км]]-Январь[[#This Row],[Показание одометра машины на начало дня, км]]+T13 -> 0 | F13: =SUMPRODUCT([1]январь!$E$4:$E$153*([1]январь!$G$4:$G$153=$O$4)*([1]январь!$D$4:$D$153=Январь[[#This Row],[Дата]])) -> 0 | G13: =IF(Январь[[#This Row],[Дата]]="","",M12) -> 500 | H13: 620 | I13: 620 | J13: =IF(W13="",Январь[[#This Row],[Показание счетчика моточасов спецоборудования на конец дня, м/ч]],Январь[[#This Row],[Показание счетчика моточасов спецоборудования на конец дня, м/ч]]+1)-Январь[[#This Row],[Показание счетчика моточасов спецоборудования на начало дня, м/ч]] -> 0 | L13: =IF(Январь[[#This Row],[Работа спецоборудования за день, м/ч]]="","",Январь[[#This Row],[Работа спецоборудования за день, м/ч]]*$Z$2) -> 0 | M13: =IF(VLOOKUP([Дата],S$2:U$3,3),IFERROR(IF(U13="",Январь[[#This Row],[Выдано топливо, литр]],Январь[[#This Row],[Выдано топливо, литр]]+U13)+Январь[[#This Row],[Остаток топлива в баке на начало дня, литр]]-Январь[[#This Row],[Фактический расход топлива, литр]],""),"") -> 500 | N13: =ROUND((Январь[[#This Row],[Пройдено за день, км]]*0.01*$Y$2+Январь[[#This Row],[Расход топлива на работу спецоборудования, литр]]),3)+X13 -> 0 | O13: =ROUND(Январь[[#This Row],[Расход топлива по норме, литр]]/VLOOKUP([Дата],S$2:W$4,5),0)+Y13 -> 0 | P13: =IFERROR(Январь[[#This Row],[Фактический расход топлива, литр]]-Январь[[#This Row],[Расход топлива по норме, литр]],"") -> 0 | R13: =Январь[[#This Row],[Дата]] -> 2018-01-07 | Z13: =Январь[[#This Row],[Дата]] -> 2018-01-07
A14: =IFERROR(DATEVALUE((COUNT($A$6:A13)+1)&$P$1&$I$4),"") -> 2018-01-08 | C14: 209024 | D14: 209024 | E14: =Январь[[#This Row],[Показание одометра машины на конец дня, км]]-Январь[[#This Row],[Показание одометра машины на начало дня, км]]+T14 -> 0 | F14: =SUMPRODUCT([1]январь!$E$4:$E$153*([1]январь!$G$4:$G$153=$O$4)*([1]январь!$D$4:$D$153=Январь[[#This Row],[Дата]])) -> 0 | G14: =IF(Январь[[#This Row],[Дата]]="","",M13) -> 500 | H14: 620 | I14: 620 | J14: =IF(W14="",Январь[[#This Row],[Показание счетчика моточасов спецоборудования на конец дня, м/ч]],Январь[[#This Row],[Показание счетчика моточасов спецоборудования на конец дня, м/ч]]+1)-Январь[[#This Row],[Показание счетчика моточасов спецоборудования на начало дня, м/ч]] -> 0 | L14: =IF(Январь[[#This Row],[Работа спецоборудования за день, м/ч]]="","",Январь[[#This Row],[Работа спецоборудования за день, м/ч]]*$Z$2) -> 0 | M14: =IF(VLOOKUP([Дата],S$2:U$3,3),IFERROR(IF(U14="",Январь[[#This Row],[Выдано топливо, литр]],Январь[[#This Row],[Выдано топливо, литр]]+U14)+Январь[[#This Row],[Остаток топлива в баке на начало дня, литр]]-Январь[[#This Row],[Фактический расход топлива, литр]],""),"") -> 500 | N14: =ROUND((Январь[[#This Row],[Пройдено за день, км]]*0.01*$Y$2+Январь[[#This Row],[Расход топлива на работу спецоборудования, литр]]),3)+X14 -> 0 | O14: =ROUND(Январь[[#This Row],[Расход топлива по норме, литр]]/VLOOKUP([Дата],S$2:W$4,5),0)+Y14 -> 0 | P14: =IFERROR(Январь[[#This Row],[Фактический расход топлива, литр]]-Январь[[#This Row],[Расход топлива по норме, литр]],"") -> 0 | R14: =Январь[[#This Row],[Дата]] -> 2018-01-08 | Z14: =Январь[[#This Row],[Дата]] -> 2018-01-08
A15: =IFERROR(DATEVALUE((COUNT($A$6:A14)+1)&$P$1&$I$4),"") -> 2018-01-09 | C15: 209024 | D15: 209024 | E15: =Январь[[#This Row],[Показание одометра машины на конец дня, км]]-Январь[[#This Row],[Показание одометра машины на начало дня, км]]+T15 -> 0 | F15: =SUMPRODUCT([1]январь!$E$4:$E$153*([1]январь!$G$4:$G$153=$O$4)*([1]январь!$D$4:$D$153=Январь[[#This Row],[Дата]])) -> 0 | G15: =IF(Январь[[#This Row],[Дата]]="","",M14) -> 500 | H15: 620 | I15: 620 | J15: =IF(W15="",Январь[[#This Row],[Показание счетчика моточасов спецоборудования на конец дня, м/ч]],Январь[[#This Row],[Показание счетчика моточасов спецоборудования на конец дня, м/ч]]+1)-Январь[[#This Row],[Показание счетчика моточасов спецоборудования на начало дня, м/ч]] -> 0 | K15: 0 | L15: =IF(Январь[[#This Row],[Работа спецоборудования за день, м/ч]]="","",Январь[[#This Row],[Работа спецоборудования за день, м/ч]]*$Z$2) -> 0 | M15: =IF(VLOOKUP([Дата],S$2:U$3,3),IFERROR(IF(U15="",Январь[[#This Row],[Выдано топливо, литр]],Январь[[#This Row],[Выдано топливо, литр]]+U15)+Январь[[#This Row],[Остаток топлива в баке на начало дня, литр]]-Январь[[#This Row],[Фактический расход топлива, литр]],""),"") -> 500 | N15: =ROUND((Январь[[#This Row],[Пройдено за день, км]]*0.01*$Y$2+Январь[[#This Row],[Расход топлива на работу спецоборудования, литр]]),3)+X15 -> 0 | O15: =ROUND(Январь[[#This Row],[Расход топлива по норме, литр]]/VLOOKUP([Дата],S$2:W$4,5),0)+Y15 -> 0 | P15: =IFERROR(Январь[[#This Row],[Фактический расход топлива, литр]]-Январь[[#This Row],[Расход топлива по норме, литр]],"") -> 0 | R15: =Январь[[#This Row],[Дата]] -> 2018-01-09 | Z15: =Январь[[#This Row],[Дата]] -> 2018-01-09
A16: =IFERROR(DATEVALUE((COUNT($A$6:A15)+1)&$P$1&$I$4),"") -> 2018-01-10 | B16: Никляев В.А. | C16: 209024 | D16: 209059 | E16: =Январь[[#This Row],[Показание одометра машины на конец дня, км]]-Январь[[#This Row],[Показание одометра машины на начало дня, км]]+T16 -> 35 | F16: =SUMPRODUCT([1]январь!$E$4:$E$153*([1]январь!$G$4:$G$153=$O$4)*([1]январь!$D$4:$D$153=Январь[[#This Row],[Дата]])) -> 0 | G16: =IF(Январь[[#This Row],[Дата]]="","",M15) -> 500 | H16: 620 | I16: 620 | J16: =IF(W16="",Январь[[#This Row],[Показание счетчика моточасов спецоборудования на конец дня, м/ч]],Январь[[#This Row],[Показание счетчика моточасов спецоборудования на конец дня, м/ч]]+1)-Январь[[#This Row],[Показание счетчика моточасов спецоборудования на начало дня, м/ч]] -> 0 | K16: 1 | L16: =IF(Январь[[#This Row],[Работа спецоборудования за день, м/ч]]="","",Январь[[#This Row],[Работа спецоборудования за день, м/ч]]*$Z$2) -> 0 | M16: =IF(VLOOKUP([Дата],S$2:U$3,3),IFERROR(IF(U16="",Январь[[#This Row],[Выдано топливо, литр]],Январь[[#This Row],[Выдано топливо, литр]]+U16)+Январь[[#This Row],[Остаток топлива в баке на начало дня, литр]]-Январь[[#This Row],[Фактический расход топлива, литр]],""),"") -> 484 | N16: =ROUND((Январь[[#This Row],[Пройдено за день, км]]*0.01*$Y$2+Январь[[#This Row],[Расход топлива на работу спецоборудования, литр]]),3)+X16 -> 18.041 | O16: =ROUND(Январь[[#This Row],[Расход топлива по норме, литр]]/VLOOKUP([Дата],S$2:W$4,5),0)+Y16 -> 16 | P16: =IFERROR(Январь[[#This Row],[Фактический расход топлива, литр]]-Январь[[#This Row],[Расход топлива по норме, литр]],"") -> -2.041 | R16: =Январь[[#This Row],[Дата]] -> 2018-01-10 | Z16: =Январь[[#This Row],[Дата]] -> 2018-01-10
A17: =IFERROR(DATEVALUE((COUNT($A$6:A16)+1)&$P$1&$I$4),"") -> 2018-01-11 | B17: Никляев В.А. | C17: 209059 | D17: 209084 | E17: =Январь[[#This Row],[Показание одометра машины на конец дня, км]]-Январь[[#This Row],[Показание одометра машины на начало дня, км]]+T17 -> 25 | F17: =SUMPRODUCT([1]январь!$E$4:$E$153*([1]январь!$G$4:$G$153=$O$4)*([1]январь!$D$4:$D$153=Январь[[#This Row],[Дата]])) -> 0 | G17: =IF(Январь[[#This Row],[Дата]]="","",M16) -> 484 | H17: 620 | I17: 622 | J17: =IF(W17="",Январь[[#This Row],[Показание счетчика моточасов спецоборудования на конец дня, м/ч]],Январь[[#This Row],[Показание счетчика моточасов спецоборудования на конец дня, м/ч]]+1)-Январь[[#This Row],[Показание счетчика моточасов спецоборудования на начало дня, м/ч]] -> 2 | K17: 1 | L17: =IF(Январь[[#This Row],[Работа спецоборудования за день, м/ч]]="","",Январь[[#This Row],[Работа спецоборудования за день, м/ч]]*$Z$2) -> 12.1 | M17: =IF(VLOOKUP([Дата],S$2:U$3,3),IFERROR(IF(U17="",Январь[[#This Row],[Выдано топливо, литр]],Январь[[#This Row],[Выдано топливо, литр]]+U17)+Январь[[#This Row],[Остаток топлива в баке на начало дня, литр]]-Январь[[#This Row],[Фактический расход топлива, литр]],""),"") -> 461 | N17: =ROUND((Январь[[#This Row],[Пройдено за день, км]]*0.01*$Y$2+Январь[[#This Row],[Расход топлива на работу спецоборудования, литр]]),3)+X17 -> 24.987 | O17: =ROUND(Январь[[#This Row],[Расход топлива по норме, литр]]/VLOOKUP([Дата],S$2:W$4,5),0)+Y17 -> 23 | P17: =IFERROR(Январь[[#This Row],[Фактический расход топлива, литр]]-Январь[[#This Row],[Расход топлива по норме, литр]],"") -> -1.987 | R17: =Январь[[#This Row],[Дата]] -> 2018-01-11 | Z17: =Январь[[#This Row],[Дата]] -> 2018-01-11
A18: =IFERROR(DATEVALUE((COUNT($A$6:A17)+1)&$P$1&$I$4),"") -> 2018-01-12 | B18: Никляев В.А. | C18: 209084 | D18: 209111 | E18: =Январь[[#This Row],[Показание одометра машины на конец дня, км]]-Январь[[#This Row],[Показание одометра машины на начало дня, км]]+T18 -> 27 | F18: =SUMPRODUCT([1]январь!$E$4:$E$153*([1]январь!$G$4:$G$153=$O$4)*([1]январь!$D$4:$D$153=Январь[[#This Row],[Дата]])) -> 0 | G18: =IF(Январь[[#This Row],[Дата]]="","",M17) -> 461 | H18: 622 | I18: 624 | J18: =IF(W18="",Январь[[#This Row],[Показание счетчика моточасов спецоборудования на конец дня, м/ч]],Январь[[#This Row],[Показание счетчика моточасов спецоборудования на конец дня, м/ч]]+1)-Январь[[#This Row],[Показание счетчика моточасов спецоборудования на начало дня, м/ч]] -> 2 | K18: 1 | L18: =IF(Январь[[#This Row],[Работа спецоборудования за день, м/ч]]="","",Январь[[#This Row],[Работа спецоборудования за день, м/ч]]*$Z$2) -> 12.1 | M18: =IF(VLOOKUP([Дата],S$2:U$3,3),IFERROR(IF(U18="",Январь[[#This Row],[Выдано топливо, литр]],Январь[[#This Row],[Выдано топливо, литр]]+U18)+Январь[[#This Row],[Остаток топлива в баке на начало дня, литр]]-Январь[[#This Row],[Фактический расход топлива, литр]],""),"") -> 437 | N18: =ROUND((Январь[[#This Row],[Пройдено за день, км]]*0.01*$Y$2+Январь[[#This Row],[Расход топлива на работу спецоборудования, литр]]),3)+X18 -> 26.017 | O18: =ROUND(Январь[[#This Row],[Расход топлива по норме, литр]]/VLOOKUP([Дата],S$2:W$4,5),0)+Y18 -> 24 | P18: =IFERROR(Январь[[#This Row],[Фактический расход топлива, литр]]-Январь[[#This Row],[Расход топлива по норме, литр]],"") -> -2.017 | R18: =Январь[[#This Row],[Дата]] -> 2018-01-12 | Z18: =Январь[[#This Row],[Дата]] -> 2018-01-12
A19: =IFERROR(DATEVALUE((COUNT($A$6:A18)+1)&$P$1&$I$4),"") -> 2018-01-13 | B19: Никляев В.А. | C19: 209111 | D19: 209168 | E19: =Январь[[#This Row],[Показание одометра машины на конец дня, км]]-Январь[[#This Row],[Показание одометра машины на начало дня, км]]+T19 -> 57 | F19: =SUMPRODUCT([1]январь!$E$4:$E$153*([1]январь!$G$4:$G$153=$O$4)*([1]январь!$D$4:$D$153=Январь[[#This Row],[Дата]])) -> 0 | G19: =IF(Январь[[#This Row],[Дата]]="","",M18) -> 437 | H19: 624 | I19: 626 | J19: =IF(W19="",Январь[[#This Row],[Показание счетчика моточасов спецоборудования на конец дня, м/ч]],Январь[[#This Row],[Показание счетчика моточасов спецоборудования на конец дня, м/ч]]+1)-Январь[[#This Row],[Показание счетчика моточасов спецоборудования на начало дня, м/ч]] -> 2 | K19: 1 | L19: =IF(Январь[[#This Row],[Работа спецоборудования за день, м/ч]]="","",Январь[[#This Row],[Работа спецоборудования за день, м/ч]]*$Z$2) -> 12.1 | M19: =IF(VLOOKUP([Дата],S$2:U$3,3),IFERROR(IF(U19="",Январь[[#This Row],[Выдано топливо, литр]],Январь[[#This Row],[Выдано топливо, литр]]+U19)+Январь[[#This Row],[Остаток топлива в баке на начало дня, литр]]-Январь[[#This Row],[Фактический расход топлива, литр]],""),"") -> 399 | N19: =ROUND((Январь[[#This Row],[Пройдено за день, км]]*0.01*$Y$2+Январь[[#This Row],[Расход топлива на работу спецоборудования, литр]]),3)+X19 -> 41.481 | O19: =ROUND(Январь[[#This Row],[Расход топлива по норме, литр]]/VLOOKUP([Дата],S$2:W$4,5),0)+Y19 -> 38 | P19: =IFERROR(Январь[[#This Row],[Фактический расход топлива, литр]]-Январь[[#This Row],[Расход топлива по норме, литр]],"") -> -3.481 | R19: =Январь[[#This Row],[Дата]] -> 2018-01-13 | Z19: =Январь[[#This Row],[Дата]] -> 2018-01-13
A20: =IFERROR(DATEVALUE((COUNT($A$6:A19)+1)&$P$1&$I$4),"") -> 2018-01-14 | B20: Никляев В.А. | C20: 209168 | D20: 209208 | E20: =Январь[[#This Row],[Показание одометра машины на конец дня, км]]-Январь[[#This Row],[Показание одометра машины на начало дня, км]]+T20 -> 40 | F20: =SUMPRODUCT([1]январь!$E$4:$E$153*([1]январь!$G$4:$G$153=$O$4)*([1]январь!$D$4:$D$153=Январь[[#This Row],[Дата]])) -> 0 | G20: =IF(Январь[[#This Row],[Дата]]="","",M19) -> 399 | H20: 626 | I20: 628 | J20: =IF(W20="",Январь[[#This Row],[Показание счетчика моточасов спецоборудования на конец дня, м/ч]],Январь[[#This Row],[Показание счетчика моточасов спецоборудования на конец дня, м/ч]]+1)-Январь[[#This Row],[Показание счетчика моточасов спецоборудования на начало дня, м/ч]] -> 2 | K20: 1 | L20: =IF(Январь[[#This Row],[Работа спецоборудования за день, м/ч]]="","",Январь[[#This Row],[Работа спецоборудования за день, м/ч]]*$Z$2) -> 12.1 | M20: =IF(VLOOKUP([Дата],S$2:U$3,3),IFERROR(IF(U20="",Январь[[#This Row],[Выдано топливо, литр]],Январь[[#This Row],[Выдано топливо, литр]]+U20)+Январь[[#This Row],[Остаток топлива в баке на начало дня, литр]]-Январь[[#This Row],[Фактический расход топлива, литр]],""),"") -> 369 | N20: =ROUND((Январь[[#This Row],[Пройдено за день, км]]*0.01*$Y$2+Январь[[#This Row],[Расход топлива на работу спецоборудования, литр]]),3)+X20 -> 32.718 | O20: =ROUND(Январь[[#This Row],[Расход топлива по норме, литр]]/VLOOKUP([Дата],S$2:W$4,5),0)+Y20 -> 30 | P20: =IFERROR(Январь[[#This Row],[Фактический расход топлива, литр]]-Январь[[#This Row],[Расход топлива по норме, литр]],"") -> -2.718 | R20: =Январь[[#This Row],[Дата]] -> 2018-01-14 | Z20: =Январь[[#This Row],[Дата]] -> 2018-01-14
A21: =IFERROR(DATEVALUE((COUNT($A$6:A20)+1)&$P$1&$I$4),"") -> 2018-01-15 | B21: Никляев В.А. | C21: 209208 | D21: 209221 | E21: =Январь[[#This Row],[Показание одометра машины на конец дня, км]]-Январь[[#This Row],[Показание одометра машины на начало дня, км]]+T21 -> 13 | F21: =SUMPRODUCT([1]январь!$E$4:$E$153*([1]январь!$G$4:$G$153=$O$4)*([1]январь!$D$4:$D$153=Январь[[#This Row],[Дата]])) -> 0 | G21: =IF(Январь[[#This Row],[Дата]]="","",M20) -> 369 | H21: 628 | I21: 630 | J21: =IF(W21="",Январь[[#This Row],[Показание счетчика моточасов спецоборудования на конец дня, м/ч]],Январь[[#This Row],[Показание счетчика моточасов спецоборудования на конец дня, м/ч]]+1)-Январь[[#This Row],[Показание счетчика моточасов спецоборудования на начало дня, м/ч]] -> 2 | K21: 1 | L21: =IF(Январь[[#This Row],[Работа спецоборудования за день, м/ч]]="","",Январь[[#This Row],[Работа спецоборудования за день, м/ч]]*$Z$2) -> 12.1 | M21: =IF(VLOOKUP([Дата],S$2:U$3,3),IFERROR(IF(U21="",Январь[[#This Row],[Выдано топливо, литр]],Январь[[#This Row],[Выдано топливо, литр]]+U21)+Январь[[#This Row],[Остаток топлива в баке на начало дня, литр]]-Январь[[#This Row],[Фактический расход топлива, литр]],""),"") -> 352 | N21: =ROUND((Январь[[#This Row],[Пройдено за день, км]]*0.01*$Y$2+Январь[[#This Row],[Расход топлива на работу спецоборудования, литр]]),3)+X21 -> 18.801 | O21: =ROUND(Январь[[#This Row],[Расход топлива по норме, литр]]/VLOOKUP([Дата],S$2:W$4,5),0)+Y21 -> 17 | P21: =IFERROR(Январь[[#This Row],[Фактический расход топлива, литр]]-Январь[[#This Row],[Расход топлива по норме, литр]],"") -> -1.801 | R21: =Январь[[#This Row],[Дата]] -> 2018-01-15 | Z21: =Январь[[#This Row],[Дата]] -> 2018-01-15
A22: =IFERROR(DATEVALUE((COUNT($A$6:A21)+1)&$P$1&$I$4),"") -> 2018-01-16 | B22: Никляев В.А. | C22: 209221 | D22: 209236 | E22: =Январь[[#This Row],[Показание одометра машины на конец дня, км]]-Январь[[#This Row],[Показание одометра машины на начало дня, км]]+T22 -> 15 | F22: =SUMPRODUCT([1]январь!$E$4:$E$153*([1]январь!$G$4:$G$153=$O$4)*([1]январь!$D$4:$D$153=Январь[[#This Row],[Дата]])) -> 0 | G22: =IF(Январь[[#This Row],[Дата]]="","",M21) -> 352 | H22: 630 | I22: 633 | J22: =IF(W22="",Январь[[#This Row],[Показание счетчика моточасов спецоборудования на конец дня, м/ч]],Январь[[#This Row],[Показание счетчика моточасов спецоборудования на конец дня, м/ч]]+1)-Январь[[#This Row],[Показание счетчика моточасов спецоборудования на начало дня, м/ч]] -> 3 | K22: 2 | L22: =IF(Январь[[#This Row],[Работа спецоборудования за день, м/ч]]="","",Январь[[#This Row],[Работа спецоборудования за день, м/ч]]*$Z$2) -> 18.15 | M22: =IF(VLOOKUP([Дата],S$2:U$3,3),IFERROR(IF(U22="",Январь[[#This Row],[Выдано топливо, литр]],Январь[[#This Row],[Выдано топливо, литр]]+U22)+Январь[[#This Row],[Остаток топлива в баке на начало дня, литр]]-Январь[[#This Row],[Фактический расход топлива, литр]],""),"") -> 328 | N22: =ROUND((Январь[[#This Row],[Пройдено за день, км]]*0.01*$Y$2+Январь[[#This Row],[Расход топлива на работу спецоборудования, литр]]),3)+X22 -> 25.882 | O22: =ROUND(Январь[[#This Row],[Расход топлива по норме, литр]]/VLOOKUP([Дата],S$2:W$4,5),0)+Y22 -> 24 | P22: =IFERROR(Январь[[#This Row],[Фактический расход топлива, литр]]-Январь[[#This Row],[Расход топлива по норме, литр]],"") -> -1.882 | R22: =Январь[[#This Row],[Дата]] -> 2018-01-16 | Z22: =Январь[[#This Row],[Дата]] -> 2018-01-16
A23: =IFERROR(DATEVALUE((COUNT($A$6:A22)+1)&$P$1&$I$4),"") -> 2018-01-17 | B23: Никляев В.А. | C23: 209236 | D23: 209489 | E23: =Январь[[#This Row],[Показание одометра машины на конец дня, км]]-Январь[[#This Row],[Показание одометра машины на начало дня, км]]+T23 -> 253 | F23: =SUMPRODUCT([1]январь!$E$4:$E$153*([1]январь!$G$4:$G$153=$O$4)*([1]январь!$D$4:$D$153=Январь[[#This Row],[Дата]])) -> 0 | G23: =IF(Январь[[#This Row],[Дата]]="","",M22) -> 328 | H23: 633 | I23: 636 | J23: =IF(W23="",Январь[[#This Row],[Показание счетчика моточасов спецоборудования на конец дня, м/ч]],Январь[[#This Row],[Показание счетчика моточасов спецоборудования на конец дня, м/ч]]+1)-Январь[[#This Row],[Показание счетчика моточасов спецоборудования на начало дня, м/ч]] -> 3 | K23: 3 | L23: =IF(Январь[[#This Row],[Работа спецоборудования за день, м/ч]]="","",Январь[[#This Row],[Работа спецоборудования за день, м/ч]]*$Z$2) -> 18.15 | M23: =IF(VLOOKUP([Дата],S$2:U$3,3),IFERROR(IF(U23="",Январь[[#This Row],[Выдано топливо, литр]],Январь[[#This Row],[Выдано топливо, литр]]+U23)+Январь[[#This Row],[Остаток топлива в баке на начало дня, литр]]-Январь[[#This Row],[Фактический расход топлива, литр]],""),"") -> 192 | N23: =ROUND((Январь[[#This Row],[Пройдено за день, км]]*0.01*$Y$2+Январь[[#This Row],[Расход топлива на работу спецоборудования, литр]]),3)+X23 -> 148.561 | O23: =ROUND(Январь[[#This Row],[Расход топлива по норме, литр]]/VLOOKUP([Дата],S$2:W$4,5),0)+Y23 -> 136 | P23: =IFERROR(Январь[[#This Row],[Фактический расход топлива, литр]]-Январь[[#This Row],[Расход топлива по норме, литр]],"") -> -12.561 | R23: =Январь[[#This Row],[Дата]] -> 2018-01-17 | Y23: 1 | Z23: =Январь[[#This Row],[Дата]] -> 2018-01-17
A24: =IFERROR(DATEVALUE((COUNT($A$6:A23)+1)&$P$1&$I$4),"") -> 2018-01-18 | B24: Никляев В.А. | C24: 209489 | D24: 209516 | E24: =Январь[[#This Row],[Показание одометра машины на конец дня, км]]-Январь[[#This Row],[Показание одометра машины на начало дня, км]]+T24 -> 27 | F24: =SUMPRODUCT([1]январь!$E$4:$E$153*([1]январь!$G$4:$G$153=$O$4)*([1]январь!$D$4:$D$153=Январь[[#This Row],[Дата]])) -> 380 | G24: =IF(Январь[[#This Row],[Дата]]="","",M23) -> 192 | H24: 636 | I24: 638 | J24: =IF(W24="",Январь[[#This Row],[Показание счетчика моточасов спецоборудования на конец дня, м/ч]],Январь[[#This Row],[Показание счетчика моточасов спецоборудования на конец дня, м/ч]]+1)-Январь[[#This Row],[Показание счетчика моточасов спецоборудования на начало дня, м/ч]] -> 2 | K24: 1 | L24: =IF(Январь[[#This Row],[Работа спецоборудования за день, м/ч]]="","",Январь[[#This Row],[Работа спецоборудования за день, м/ч]]*$Z$2) -> 12.1 | M24: =IF(VLOOKUP([Дата],S$2:U$3,3),IFERROR(IF(U24="",Январь[[#This Row],[Выдано топливо, литр]],Январь[[#This Row],[Выдано топливо, литр]]+U24)+Январь[[#This Row],[Остаток топлива в баке на начало дня, литр]]-Январь[[#This Row],[Фактический расход топлива, литр]],""),"") -> 500 | N24: =ROUND((Январь[[#This Row],[Пройдено за день, км]]*0.01*$Y$2+Январь[[#This Row],[Расход топлива на работу спецоборудования, литр]]),3)+X24 -> 26.017 | O24: =ROUND(Январь[[#This Row],[Расход топлива по норме, литр]]/VLOOKUP([Дата],S$2:W$4,5),0)+Y24 -> 22 | P24: =IFERROR(Январь[[#This Row],[Фактический расход топлива, литр]]-Январь[[#This Row],[Расход топлива по норме, литр]],"") -> -4.017 | R24: =Январь[[#This Row],[Дата]] -> 2018-01-18 | U24: -50 | Y24: -2 | Z24: =Январь[[#This Row],[Дата]] -> 2018-01-18
A25: =IFERROR(DATEVALUE((COUNT($A$6:A24)+1)&$P$1&$I$4),"") -> 2018-01-19 | B25: Никляев В.А. | C25: 209516 | D25: 209618 | E25: =Январь[[#This Row],[Показание одометра машины на конец дня, км]]-Январь[[#This Row],[Показание одометра машины на начало дня, км]]+T25 -> 102 | F25: =SUMPRODUCT([1]январь!$E$4:$E$153*([1]январь!$G$4:$G$153=$O$4)*([1]январь!$D$4:$D$153=Январь[[#This Row],[Дата]])) -> 0 | G25: =IF(Январь[[#This Row],[Дата]]="","",M24) -> 500 | H25: 638 | I25: 640 | J25: =IF(W25="",Январь[[#This Row],[Показание счетчика моточасов спецоборудования на конец дня, м/ч]],Январь[[#This Row],[Показание счетчика моточасов спецоборудования на конец дня, м/ч]]+1)-Январь[[#This Row],[Показание счетчика моточасов спецоборудования на начало дня, м/ч]] -> 2 | K25: 1 | L25: =IF(Январь[[#This Row],[Работа спецоборудования за день, м/ч]]="","",Январь[[#This Row],[Работа спецоборудования за день, м/ч]]*$Z$2) -> 12.1 | M25: =IF(VLOOKUP([Дата],S$2:U$3,3),IFERROR(IF(U25="",Январь[[#This Row],[Выдано топливо, литр]],Январь[[#This Row],[Выдано топливо, литр]]+U25)+Январь[[#This Row],[Остаток топлива в баке на начало дня, литр]]-Январь[[#This Row],[Фактический расход топлива, литр]],""),"") -> 441 | N25: =ROUND((Январь[[#This Row],[Пройдено за день, км]]*0.01*$Y$2+Январь[[#This Row],[Расход топлива на работу спецоборудования, литр]]),3)+X25 -> 64.677 | O25: =ROUND(Январь[[#This Row],[Расход топлива по норме, литр]]/VLOOKUP([Дата],S$2:W$4,5),0)+Y25 -> 59 | P25: =IFERROR(Январь[[#This Row],[Фактический расход топлива, литр]]-Январь[[#This Row],[Расход топлива по норме, литр]],"") -> -5.677 | R25: =Январь[[#This Row],[Дата]] -> 2018-01-19 | Z25: =Январь[[#This Row],[Дата]] -> 2018-01-19
A26: =IFERROR(DATEVALUE((COUNT($A$6:A25)+1)&$P$1&$I$4),"") -> 2018-01-20 | C26: 209618 | D26: 209618 | E26: =Январь[[#This Row],[Показание одометра машины на конец дня, км]]-Январь[[#This Row],[Показание одометра машины на начало дня, км]]+T26 -> 0 | F26: =SUMPRODUCT([1]январь!$E$4:$E$153*([1]январь!$G$4:$G$153=$O$4)*([1]январь!$D$4:$D$153=Январь[[#This Row],[Дата]])) -> 0 | G26: =IF(Январь[[#This Row],[Дата]]="","",M25) -> 441 | H26: 640 | I26: 640 | J26: =IF(W26="",Январь[[#This Row],[Показание счетчика моточасов спецоборудования на конец дня, м/ч]],Январь[[#This Row],[Показание счетчика моточасов спецоборудования на конец дня, м/ч]]+1)-Январь[[#This Row],[Показание счетчика моточасов спецоборудования на начало дня, м/ч]] -> 0 | K26: 0 | L26: =IF(Январь[[#This Row],[Работа спецоборудования за день, м/ч]]="","",Январь[[#This Row],[Работа спецоборудования за день, м/ч]]*$Z$2) -> 0 | M26: =IF(VLOOKUP([Дата],S$2:U$3,3),IFERROR(IF(U26="",Январь[[#This Row],[Выдано топливо, литр]],Январь[[#This Row],[Выдано топливо, литр]]+U26)+Январь[[#This Row],[Остаток топлива в баке на начало дня, литр]]-Январь[[#This Row],[Фактический расход топлива, литр]],""),"") -> 441 | N26: =ROUND((Январь[[#This Row],[Пройдено за день, км]]*0.01*$Y$2+Январь[[#This Row],[Расход топлива на работу спецоборудования, литр]]),3)+X26 -> 0 | O26: =ROUND(Январь[[#This Row],[Расход топлива по норме, литр]]/VLOOKUP([Дата],S$2:W$4,5),0)+Y26 -> 0 | P26: =IFERROR(Январь[[#This Row],[Фактический расход топлива, литр]]-Январь[[#This Row],[Расход топлива по норме, литр]],"") -> 0 | R26: =Январь[[#This Row],[Дата]] -> 2018-01-20 | Z26: =Январь[[#This Row],[Дата]] -> 2018-01-20
A27: =IFERROR(DATEVALUE((COUNT($A$6:A26)+1)&$P$1&$I$4),"") -> 2018-01-21 | B27: Никляев В.А. | C27: 209618 | D27: 209646 | E27: =Январь[[#This Row],[Показание одометра машины на конец дня, км]]-Январь[[#This Row],[Показание одометра машины на начало дня, км]]+T27 -> 28 | F27: =SUMPRODUCT([1]январь!$E$4:$E$153*([1]январь!$G$4:$G$153=$O$4)*([1]январь!$D$4:$D$153=Январь[[#This Row],[Дата]])) -> 0 | G27: =IF(Январь[[#This Row],[Дата]]="","",M26) -> 441 | H27: 640 | I27: 643 | J27: =IF(W27="",Январь[[#This Row],[Показание счетчика моточасов спецоборудования на конец дня, м/ч]],Январь[[#This Row],[Показание счетчика моточасов спецоборудования на конец дня, м/ч]]+1)-Январь[[#This Row],[Показание счетчика моточасов спецоборудования на начало дня, м/ч]] -> 3 | K27: 2 | L27: =IF(Январь[[#This Row],[Работа спецоборудования за день, м/ч]]="","",Январь[[#This Row],[Работа спецоборудования за день, м/ч]]*$Z$2) -> 18.15 | M27: =IF(VLOOKUP([Дата],S$2:U$3,3),IFERROR(IF(U27="",Январь[[#This Row],[Выдано топливо, литр]],Январь[[#This Row],[Выдано топливо, литр]]+U27)+Январь[[#This Row],[Остаток топлива в баке на начало дня, литр]]-Январь[[#This Row],[Фактический расход топлива, литр]],""),"") -> 411 | N27: =ROUND((Январь[[#This Row],[Пройдено за день, км]]*0.01*$Y$2+Январь[[#This Row],[Расход топлива на работу спецоборудования, литр]]),3)+X27 -> 32.583 | O27: =ROUND(Январь[[#This Row],[Расход топлива по норме, литр]]/VLOOKUP([Дата],S$2:W$4,5),0)+Y27 -> 30 | P27: =IFERROR(Январь[[#This Row],[Фактический расход топлива, литр]]-Январь[[#This Row],[Расход топлива по норме, литр]],"") -> -2.583 | R27: =Январь[[#This Row],[Дата]] -> 2018-01-21 | Z27: =Январь[[#This Row],[Дата]] -> 2018-01-21
A28: =IFERROR(DATEVALUE((COUNT($A$6:A27)+1)&$P$1&$I$4),"") -> 2018-01-22 | B28: Никляев В.А. | C28: 209646 | D28: 209695 | E28: =Январь[[#This Row],[Показание одометра машины на конец дня, км]]-Январь[[#This Row],[Показание одометра машины на начало дня, км]]+T28 -> 49 | F28: =SUMPRODUCT([1]январь!$E$4:$E$153*([1]январь!$G$4:$G$153=$O$4)*([1]январь!$D$4:$D$153=Январь[[#This Row],[Дата]])) -> 0 | G28: =IF(Январь[[#This Row],[Дата]]="","",M27) -> 411 | H28: 643 | I28: 645 | J28: =IF(W28="",Январь[[#This Row],[Показание счетчика моточасов спецоборудования на конец дня, м/ч]],Январь[[#This Row],[Показание счетчика моточасов спецоборудования на конец дня, м/ч]]+1)-Январь[[#This Row],[Показание счетчика моточасов спецоборудования на начало дня, м/ч]] -> 2 | K28: 1 | L28: =IF(Январь[[#This Row],[Работа спецоборудования за день, м/ч]]="","",Январь[[#This Row],[Работа спецоборудования за день, м/ч]]*$Z$2) -> 12.1 | M28: =IF(VLOOKUP([Дата],S$2:U$3,3),IFERROR(IF(U28="",Январь[[#This Row],[Выдано топливо, литр]],Январь[[#This Row],[Выдано топливо, литр]]+U28)+Январь[[#This Row],[Остаток топлива в баке на начало дня, литр]]-Январь[[#This Row],[Фактический расход топлива, литр]],""),"") -> 377 | N28: =ROUND((Январь[[#This Row],[Пройдено за день, км]]*0.01*$Y$2+Январь[[#This Row],[Расход топлива на работу спецоборудования, литр]]),3)+X28 -> 37.358 | O28: =ROUND(Январь[[#This Row],[Расход топлива по норме, литр]]/VLOOKUP([Дата],S$2:W$4,5),0)+Y28 -> 34 | P28: =IFERROR(Январь[[#This Row],[Фактический расход топлива, литр]]-Январь[[#This Row],[Расход топлива по норме, литр]],"") -> -3.358 | R28: =Январь[[#This Row],[Дата]] -> 2018-01-22 | Z28: =Январь[[#This Row],[Дата]] -> 2018-01-22
A29: =IFERROR(DATEVALUE((COUNT($A$6:A28)+1)&$P$1&$I$4),"") -> 2018-01-23 | B29: Никляев В.А. | C29: 209695 | D29: 209719 | E29: =Январь[[#This Row],[Показание одометра машины на конец дня, км]]-Январь[[#This Row],[Показание одометра машины на начало дня, км]]+T29 -> 24 | F29: =SUMPRODUCT([1]январь!$E$4:$E$153*([1]январь!$G$4:$G$153=$O$4)*([1]январь!$D$4:$D$153=Январь[[#This Row],[Дата]])) -> 0 | G29: =IF(Январь[[#This Row],[Дата]]="","",M28) -> 377 | H29: 645 | I29: 647 | J29: =IF(W29="",Январь[[#This Row],[Показание счетчика моточасов спецоборудования на конец дня, м/ч]],Январь[[#This Row],[Показание счетчика моточасов спецоборудования на конец дня, м/ч]]+1)-Январь[[#This Row],[Показание счетчика моточасов спецоборудования на начало дня, м/ч]] -> 2 | K29: 1 | L29: =IF(Январь[[#This Row],[Работа спецоборудования за день, м/ч]]="","",Январь[[#This Row],[Работа спецоборудования за день, м/ч]]*$Z$2) -> 12.1 | M29: =IF(VLOOKUP([Дата],S$2:U$3,3),IFERROR(IF(U29="",Январь[[#This Row],[Выдано топливо, литр]],Январь[[#This Row],[Выдано топливо, литр]]+U29)+Январь[[#This Row],[Остаток топлива в баке на начало дня, литр]]-Январь[[#This Row],[Фактический расход топлива, литр]],""),"") -> 355 | N29: =ROUND((Январь[[#This Row],[Пройдено за день, км]]*0.01*$Y$2+Январь[[#This Row],[Расход топлива на работу спецоборудования, литр]]),3)+X29 -> 24.471 | O29: =ROUND(Январь[[#This Row],[Расход топлива по норме, литр]]/VLOOKUP([Дата],S$2:W$4,5),0)+Y29 -> 22 | P29: =IFERROR(Январь[[#This Row],[Фактический расход топлива, литр]]-Январь[[#This Row],[Расход топлива по норме, литр]],"") -> -2.471 | R29: =Январь[[#This Row],[Дата]] -> 2018-01-23 | Z29: =Январь[[#This Row],[Дата]] -> 2018-01-23
A30: =IFERROR(DATEVALUE((COUNT($A$6:A29)+1)&$P$1&$I$4),"") -> 2018-01-24 | B30: Никляев В.А. | C30: 209719 | D30: 210061 | E30: =Январь[[#This Row],[Показание одометра машины на конец дня, км]]-Январь[[#This Row],[Показание одометра машины на начало дня, км]]+T30 -> 342 | F30: =SUMPRODUCT([1]январь!$E$4:$E$153*([1]январь!$G$4:$G$153=$O$4)*([1]январь!$D$4:$D$153=Январь[[#This Row],[Дата]])) -> 0 | G30: =IF(Январь[[#This Row],[Дата]]="","",M29) -> 355 | H30: 647 | I30: 651 | J30: =IF(W30="",Январь[[#This Row],[Показание счетчика моточасов спецоборудования на конец дня, м/ч]],Январь[[#This Row],[Показание счетчика моточасов спецоборудования на конец дня, м/ч]]+1)-Январь[[#This Row],[Показание счетчика моточасов спецоборудования на начало дня, м/ч]] -> 4 | K30: 2 | L30: =IF(Январь[[#This Row],[Работа спецоборудования за день, м/ч]]="","",Январь[[#This Row],[Работа спецоборудования за день, м/ч]]*$Z$2) -> 24.2 | M30: =IF(VLOOKUP([Дата],S$2:U$3,3),IFERROR(IF(U30="",Январь[[#This Row],[Выдано топливо, литр]],Январь[[#This Row],[Выдано топливо, литр]]+U30)+Январь[[#This Row],[Остаток топлива в баке на начало дня, литр]]-Январь[[#This Row],[Фактический расход топлива, литр]],""),"") -> 173 | N30: =ROUND((Январь[[#This Row],[Пройдено за день, км]]*0.01*$Y$2+Январь[[#This Row],[Расход топлива на работу спецоборудования, литр]]),3)+X30 -> 200.487 | O30: =ROUND(Январь[[#This Row],[Расход топлива по норме, литр]]/VLOOKUP([Дата],S$2:W$4,5),0)+Y30 -> 182 | P30: =IFERROR(Январь[[#This Row],[Фактический расход топлива, литр]]-Январь[[#This Row],[Расход топлива по норме, литр]],"") -> -18.487 | R30: =Январь[[#This Row],[Дата]] -> 2018-01-24 | Z30: =Январь[[#This Row],[Дата]] -> 2018-01-24
A31: =IFERROR(DATEVALUE((COUNT($A$6:A30)+1)&$P$1&$I$4),"") -> 2018-01-25 | B31: Никляев В.А. | C31: 210061 | D31: 210300 | E31: =Январь[[#This Row],[Показание одометра машины на конец дня, км]]-Январь[[#This Row],[Показание одометра машины на начало дня, км]]+T31 -> 239 | F31: =SUMPRODUCT([1]январь!$E$4:$E$153*([1]январь!$G$4:$G$153=$O$4)*([1]январь!$D$4:$D$153=Январь[[#This Row],[Дата]])) -> 300 | G31: =IF(Январь[[#This Row],[Дата]]="","",M30) -> 173 | H31: 651 | I31: 656 | J31: =IF(W31="",Январь[[#This Row],[Показание счетчика моточасов спецоборудования на конец дня, м/ч]],Январь[[#This Row],[Показание счетчика моточасов спецоборудования на конец дня, м/ч]]+1)-Январь[[#This Row],[Показание счетчика моточасов спецоборудования на начало дня, м/ч]] -> 5 | K31: 3 | L31: =IF(Январь[[#This Row],[Работа спецоборудования за день, м/ч]]="","",Январь[[#This Row],[Работа спецоборудования за день, м/ч]]*$Z$2) -> 30.25 | M31: =IF(VLOOKUP([Дата],S$2:U$3,3),IFERROR(IF(U31="",Январь[[#This Row],[Выдано топливо, литр]],Январь[[#This Row],[Выдано топливо, литр]]+U31)+Январь[[#This Row],[Остаток топлива в баке на начало дня, литр]]-Январь[[#This Row],[Фактический расход топлива, литр]],""),"") -> 334 | N31: =ROUND((Январь[[#This Row],[Пройдено за день, км]]*0.01*$Y$2+Январь[[#This Row],[Расход топлива на работу спецоборудования, литр]]),3)+X31 -> 153.445 | O31: =ROUND(Январь[[#This Row],[Расход топлива по норме, литр]]/VLOOKUP([Дата],S$2:W$4,5),0)+Y31 -> 139 | P31: =IFERROR(Январь[[#This Row],[Фактический расход топлива, литр]]-Январь[[#This Row],[Расход топлива по норме, литр]],"") -> -14.445 | R31: =Январь[[#This Row],[Дата]] -> 2018-01-25 | Z31: =Январь[[#This Row],[Дата]] -> 2018-01-25
A32: =IFERROR(DATEVALUE((COUNT($A$6:A31)+1)&$P$1&$I$4),"") -> 2018-01-26 | B32: Никляев В.А. | C32: 210300 | D32: 210327 | E32: =Январь[[#This Row],[Показание одометра машины на конец дня, км]]-Январь[[#This Row],[Показание одометра машины на начало дня, км]]+T32 -> 27 | F32: =SUMPRODUCT([1]январь!$E$4:$E$153*([1]январь!$G$4:$G$153=$O$4)*([1]январь!$D$4:$D$153=Январь[[#This Row],[Дата]])) -> 0 | G32: =IF(Январь[[#This Row],[Дата]]="","",M31) -> 334 | H32: 656 | I32: 658 | J32: =IF(W32="",Январь[[#This Row],[Показание счетчика моточасов спецоборудования на конец дня, м/ч]],Январь[[#This Row],[Показание счетчика моточасов спецоборудования на конец дня, м/ч]]+1)-Январь[[#This Row],[Показание счетчика моточасов спецоборудования на начало дня, м/ч]] -> 2 | K32: 1 | L32: =IF(Январь[[#This Row],[Работа спецоборудования за день, м/ч]]="","",Январь[[#This Row],[Работа спецоборудования за день, м/ч]]*$Z$2) -> 12.1 | M32: =IF(VLOOKUP([Дата],S$2:U$3,3),IFERROR(IF(U32="",Январь[[#This Row],[Выдано топливо, литр]],Январь[[#This Row],[Выдано топливо, литр]]+U32)+Январь[[#This Row],[Остаток топлива в баке на начало дня, литр]]-Январь[[#This Row],[Фактический расход топлива, литр]],""),"") -> 310 | N32: =ROUND((Январь[[#This Row],[Пройдено за день, км]]*0.01*$Y$2+Январь[[#This Row],[Расход топлива на работу спецоборудования, литр]]),3)+X32 -> 26.017 | O32: =ROUND(Январь[[#This Row],[Расход топлива по норме, литр]]/VLOOKUP([Дата],S$2:W$4,5),0)+Y32 -> 24 | P32: =IFERROR(Январь[[#This Row],[Фактический расход топлива, литр]]-Январь[[#This Row],[Расход топлива по норме, литр]],"") -> -2.017 | R32: =Январь[[#This Row],[Дата]] -> 2018-01-26 | Z32: =Январь[[#This Row],[Дата]] -> 2018-01-26
A33: =IFERROR(DATEVALUE((COUNT($A$6:A32)+1)&$P$1&$I$4),"") -> 2018-01-27 | B33: Никляев В.А. | C33: 210327 | D33: 210354 | E33: =Январь[[#This Row],[Показание одометра машины на конец дня, км]]-Январь[[#This Row],[Показание одометра машины на начало дня, км]]+T33 -> 27 | F33: =SUMPRODUCT([1]январь!$E$4:$E$153*([1]январь!$G$4:$G$153=$O$4)*([1]январь!$D$4:$D$153=Январь[[#This Row],[Дата]])) -> 0 | G33: =IF(Январь[[#This Row],[Дата]]="","",M32) -> 310 | H33: 658 | I33: 660 | J33: =IF(W33="",Январь[[#This Row],[Показание счетчика моточасов спецоборудования на конец дня, м/ч]],Январь[[#This Row],[Показание счетчика моточасов спецоборудования на конец дня, м/ч]]+1)-Январь[[#This Row],[Показание счетчика моточасов спецоборудования на начало дня, м/ч]] -> 2 | K33: 1 | L33: =IF(Январь[[#This Row],[Работа спецоборудования за день, м/ч]]="","",Январь[[#This Row],[Работа спецоборудования за день, м/ч]]*$Z$2) -> 12.1 | M33: =IF(VLOOKUP([Дата],S$2:U$3,3),IFERROR(IF(U33="",Январь[[#This Row],[Выдано топливо, литр]],Январь[[#This Row],[Выдано топливо, литр]]+U33)+Январь[[#This Row],[Остаток топлива в баке на начало дня, литр]]-Январь[[#This Row],[Фактический расход топлива, литр]],""),"") -> 286 | N33: =ROUND((Январь[[#This Row],[Пройдено за день, км]]*0.01*$Y$2+Январь[[#This Row],[Расход топлива на работу спецоборудования, литр]]),3)+X33 -> 26.017 | O33: =ROUND(Январь[[#This Row],[Расход топлива по норме, литр]]/VLOOKUP([Дата],S$2:W$4,5),0)+Y33 -> 24 | P33: =IFERROR(Январь[[#This Row],[Фактический расход топлива, литр]]-Январь[[#This Row],[Расход топлива по норме, литр]],"") -> -2.017 | R33: =Январь[[#This Row],[Дата]] -> 2018-01-27 | Z33: =Январь[[#This Row],[Дата]] -> 2018-01-27
A34: =IFERROR(DATEVALUE((COUNT($A$6:A33)+1)&$P$1&$I$4),"") -> 2018-01-28 | B34: Никляев В.А. | C34: 210354 | D34: 210448 | E34: =Январь[[#This Row],[Показание одометра машины на конец дня, км]]-Январь[[#This Row],[Показание одометра машины на начало дня, км]]+T34 -> 94 | F34: =SUMPRODUCT([1]январь!$E$4:$E$153*([1]январь!$G$4:$G$153=$O$4)*([1]январь!$D$4:$D$153=Январь[[#This Row],[Дата]])) -> 0 | G34: =IF(Январь[[#This Row],[Дата]]="","",M33) -> 286 | H34: 660 | I34: 665 | J34: =IF(W34="",Январь[[#This Row],[Показание счетчика моточасов спецоборудования на конец дня, м/ч]],Январь[[#This Row],[Показание счетчика моточасов спецоборудования на конец дня, м/ч]]+1)-Январь[[#This Row],[Показание счетчика моточасов спецоборудования на начало дня, м/ч]] -> 5 | K34: 3 | L34: =IF(Январь[[#This Row],[Работа спецоборудования за день, м/ч]]="","",Январь[[#This Row],[Работа спецоборудования за день, м/ч]]*$Z$2) -> 30.25 | M34: =IF(VLOOKUP([Дата],S$2:U$3,3),IFERROR(IF(U34="",Январь[[#This Row],[Выдано топливо, литр]],Январь[[#This Row],[Выдано топливо, литр]]+U34)+Январь[[#This Row],[Остаток топлива в баке на начало дня, литр]]-Январь[[#This Row],[Фактический расход топлива, литр]],""),"") -> 215 | N34: =ROUND((Январь[[#This Row],[Пройдено за день, км]]*0.01*$Y$2+Январь[[#This Row],[Расход топлива на работу спецоборудования, литр]]),3)+X34 -> 78.703 | O34: =ROUND(Январь[[#This Row],[Расход топлива по норме, литр]]/VLOOKUP([Дата],S$2:W$4,5),0)+Y34 -> 71 | P34: =IFERROR(Январь[[#This Row],[Фактический расход топлива, литр]]-Январь[[#This Row],[Расход топлива по норме, литр]],"") -> -7.703 | R34: =Январь[[#This Row],[Дата]] -> 2018-01-28 | Z34: =Январь[[#This Row],[Дата]] -> 2018-01-28
A35: =IFERROR(DATEVALUE((COUNT($A$6:A34)+1)&$P$1&$I$4),"") -> 2018-01-29 | B35: Никляев В.А. | C35: 210448 | D35: 210582 | E35: =Январь[[#This Row],[Показание одометра машины на конец дня, км]]-Январь[[#This Row],[Показание одометра машины на начало дня, км]]+T35 -> 134 | F35: =SUMPRODUCT([1]январь!$E$4:$E$153*([1]январь!$G$4:$G$153=$O$4)*([1]январь!$D$4:$D$153=Январь[[#This Row],[Дата]])) -> 370 | G35: =IF(Январь[[#This Row],[Дата]]="","",M34) -> 215 | H35: 665 | I35: 667 | J35: =IF(W35="",Январь[[#This Row],[Показание счетчика моточасов спецоборудования на конец дня, м/ч]],Январь[[#This Row],[Показание счетчика моточасов спецоборудования на конец дня, м/ч]]+1)-Январь[[#This Row],[Показание счетчика моточасов спецоборудования на начало дня, м/ч]] -> 2 | K35: 3 | L35: =IF(Январь[[#This Row],[Работа спецоборудования за день, м/ч]]="","",Январь[[#This Row],[Работа спецоборудования за день, м/ч]]*$Z$2) -> 12.1 | M35: =IF(VLOOKUP([Дата],S$2:U$3,3),IFERROR(IF(U35="",Январь[[#This Row],[Выдано топливо, литр]],Январь[[#This Row],[Выдано топливо, литр]]+U35)+Январь[[#This Row],[Остаток топлива в баке на начало дня, литр]]-Январь[[#This Row],[Фактический расход топлива, литр]],""),"") -> 343 | N35: =ROUND((Январь[[#This Row],[Пройдено за день, км]]*0.01*$Y$2+Январь[[#This Row],[Расход топлива на работу спецоборудования, литр]]),3)+X35 -> 81.172 | O35: =ROUND(Январь[[#This Row],[Расход топлива по норме, литр]]/VLOOKUP([Дата],S$2:W$4,5),0)+Y35 -> 74 | P35: =IFERROR(Январь[[#This Row],[Фактический расход топлива, литр]]-Январь[[#This Row],[Расход топлива по норме, литр]],"") -> -7.172 | R35: =Январь[[#This Row],[Дата]] -> 2018-01-29 | U35: -168 | Z35: =Январь[[#This Row],[Дата]] -> 2018-01-29
A36: =IFERROR(DATEVALUE((COUNT($A$6:A35)+1)&$P$1&$I$4),"") -> 2018-01-30 | B36: Никляев В.А. | C36: 210582 | D36: 210696 | E36: =Январь[[#This Row],[Показание одометра машины на конец дня, км]]-Январь[[#This Row],[Показание одометра машины на начало дня, км]]+T36 -> 126 | F36: =SUMPRODUCT([1]январь!$E$4:$E$153*([1]январь!$G$4:$G$153=$O$4)*([1]январь!$D$4:$D$153=Январь[[#This Row],[Дата]])) -> 0 | G36: =IF(Январь[[#This Row],[Дата]]="","",M35) -> 343 | H36: 667 | I36: 670 | J36: =IF(W36="",Январь[[#This Row],[Показание счетчика моточасов спецоборудования на конец дня, м/ч]],Январь[[#This Row],[Показание счетчика моточасов спецоборудования на конец дня, м/ч]]+1)-Январь[[#This Row],[Показание счетчика моточасов спецоборудования на начало дня, м/ч]] -> 3 | K36: 2 | L36: =IF(Январь[[#This Row],[Работа спецоборудования за день, м/ч]]="","",Январь[[#This Row],[Работа спецоборудования за день, м/ч]]*$Z$2) -> 18.15 | M36: =IF(VLOOKUP([Дата],S$2:U$3,3),IFERROR(IF(U36="",Январь[[#This Row],[Выдано топливо, литр]],Январь[[#This Row],[Выдано топливо, литр]]+U36)+Январь[[#This Row],[Остаток топлива в баке на начало дня, литр]]-Январь[[#This Row],[Фактический расход топлива, литр]],""),"") -> 267 | N36: =ROUND((Январь[[#This Row],[Пройдено за день, км]]*0.01*$Y$2+Январь[[#This Row],[Расход топлива на работу спецоборудования, литр]]),3)+X36 -> 83.098 | O36: =ROUND(Январь[[#This Row],[Расход топлива по норме, литр]]/VLOOKUP([Дата],S$2:W$4,5),0)+Y36 -> 76 | P36: =IFERROR(Январь[[#This Row],[Фактический расход топлива, литр]]-Январь[[#This Row],[Расход топлива по норме, литр]],"") -> -7.098 | R36: =Январь[[#This Row],[Дата]] -> 2018-01-30 | T36: 12 | Y36: 1 | Z36: =Январь[[#This Row],[Дата]] -> 2018-01-30
A37: =IFERROR(DATEVALUE((COUNT($A$6:A36)+1)&$P$1&$I$4),"") -> 2018-01-31 | B37: Никляев В.А. | C37: 210696 | D37: 210723 | E37: =Январь[[#This Row],[Показание одометра машины на конец дня, км]]-Январь[[#This Row],[Показание одометра машины на начало дня, км]]+T37 -> 27 | F37: =SUMPRODUCT([1]январь!$E$4:$E$153*([1]январь!$G$4:$G$153=$O$4)*([1]январь!$D$4:$D$153=Январь[[#This Row],[Дата]])) -> 250 | G37: =IF(Январь[[#This Row],[Дата]]="","",M36) -> 267 | H37: 670 | I37: 671 | J37: =IF(W37="",Январь[[#This Row],[Показание счетчика моточасов спецоборудования на конец дня, м/ч]],Январь[[#This Row],[Показание счетчика моточасов спецоборудования на конец дня, м/ч]]+1)-Январь[[#This Row],[Показание счетчика моточасов спецоборудования на начало дня, м/ч]] -> 1 | K37: 1 | L37: =IF(Январь[[#This Row],[Работа спецоборудования за день, м/ч]]="","",Январь[[#This Row],[Работа спецоборудования за день, м/ч]]*$Z$2) -> 6.05 | M37: =IF(VLOOKUP([Дата],S$2:U$3,3),IFERROR(IF(U37="",Январь[[#This Row],[Выдано топливо, литр]],Январь[[#This Row],[Выдано топливо, литр]]+U37)+Январь[[#This Row],[Остаток топлива в баке на начало дня, литр]]-Январь[[#This Row],[Фактический расход топлива, литр]],""),"") -> 500 | N37: =ROUND((Январь[[#This Row],[Пройдено за день, км]]*0.01*$Y$2+Январь[[#This Row],[Расход топлива на работу спецоборудования, литр]]),3)+X37 -> 19.97 | O37: =ROUND(Январь[[#This Row],[Расход топлива по норме, литр]]/VLOOKUP([Дата],S$2:W$4,5),0)+Y37 -> 17 | P37: =IFERROR(Январь[[#This Row],[Фактический расход топлива, литр]]-Январь[[#This Row],[Расход топлива по норме, литр]],"") -> -2.97 | R37: =Январь[[#This Row],[Дата]] -> 2018-01-31 | X37: 0.003 | Y37: -1 | Z37: =Январь[[#This Row],[Дата]] -> 2018-01-31
A38: Итог | E38: =SUBTOTAL(109,[Пройдено за день, км]) -> 1711 | F38: =SUBTOTAL(109,[Выдано топливо, литр]) -> 1300 | J38: =SUBTOTAL(109,[Работа спецоборудования за день, м/ч]) -> 51 | K38: =SUBTOTAL(109,[Количество ходок]) -> 33 | L38: =SUBTOTAL(109,[Расход топлива на работу спецоборудования, литр]) -> 308.55 | N38: =SUBTOTAL(109,[Расход топлива по норме, литр]) -> 1190.503 | O38: =SUBTOTAL(109,[Фактический расход топлива, литр]) -> 1082 | P38: =SUBTOTAL(109,[Отклонение от нормы (Перерасход(+), экономия(-)), литр]) -> -108.503 | R38: 1-я пол. | S38: =SUMIFS(S$7:S$37,INDIRECT("Январь[Дата]"),">="&$S$2,INDIRECT("Январь[Дата]"),"<="&$T$2)+IF(MONTH($T$2)<>MONTH($S$2),INDIRECT(TEXT($A$7-1,"ММММ")&"!F38")-SUM(INDIRECT(TEXT($A$7-1,"ММММ")&"!V1:V2"))) -> 0 | T38: =SUMIFS(T$7:T$37,INDIRECT("Январь[Дата]"),">="&$S$2,INDIRECT("Январь[Дата]"),"<="&$T$2)+IF(MONTH($T$2)<>MONTH($S$2),INDIRECT(TEXT($A$7-1,"ММММ")&"!F38")-SUM(INDIRECT(TEXT($A$7-1,"ММММ")&"!V1:V2"))) -> 0 | U38: -50 | V38: 0 | W38: 0 | X38: 0 | Y38: -1 | Z38: 1-я пол.
K39: =SUMIFS(K7:K37,A7:A37,">="&$S$2,A7:A37,"<="&$T$2) -> 12 | R39: 2-я пол. | S39: =SUMIFS(S$7:S$37,INDIRECT("Январь[Дата]"),">="&$S$3,INDIRECT("Январь[Дата]"),"<="&$T$3)+IF(MONTH($T$3)<>MONTH($S$3),INDIRECT(TEXT($A$7-1,"ММММ")&"!F38")-SUM(INDIRECT(TEXT($A$7-1,"ММММ")&"!V1:V2"))) -> 0 | T39: =SUMIFS(T$7:T$37,INDIRECT("Январь[Дата]"),">="&$S$3,INDIRECT("Январь[Дата]"),"<="&$T$3)+IF(MONTH($T$3)<>MONTH($S$3),INDIRECT(TEXT($A$7-1,"ММММ")&"!F38")-SUM(INDIRECT(TEXT($A$7-1,"ММММ")&"!V1:V2"))) -> 12 | U39: -168 | V39: 0 | W39: 0 | X39: 0.003 | Y39: 0 | Z39: 2-я пол.
K40: =SUMIFS(K7:K37,A7:A37,">="&$S$3,A7:A37,"<="&$T$3) -> 21

Sheet Февраль
P1: Февраль | X1: Экономия | Y1: Базовая норма расхода на 100 км | Z1: Базовая норма расхода на 1 мото/час
A2: Общество с ограниченной ответственностью "Втормет Царицыно" | R2: 1-я пол. | S2: =INDIRECT(TEXT(A7-1,"ММММ")&"!T3")+1 -> 2018-02-01 | T2: 2018-02-15 | U2: =ТС!E5 -> 500 | V2: =SUMIFS(Февраль[Выдано топливо, литр],Февраль[Дата],">="&$S$2,Февраль[Дата],"<="&$T$2)+IF(MONTH(T2)<>MONTH(S2),INDIRECT(TEXT(A7-1,"ММММ")&"!F38")-SUM(INDIRECT(TEXT(A7-1,"ММММ")&"!V1:V2")))+SUMIFS($U$7:$U$37,Февраль[Дата],">="&$S$2,Февраль[Дата],"<="&$T$2)+IF(MONTH(T2)<>MONTH(S2),INDIRECT(TEXT(A7-1,"ММММ")&"!F38")-SUM(INDIRECT(TEXT(A7-1,"ММММ")&"!V1:V2"))) -> 620 | W2: =IF(V2=0,0,(SUMIFS(N7:N37,A7:A37,">="&S2,A7:A37,"<="&T2)+SUMIFS(INDIRECT(TEXT(A7-1,"ММММ")&"!N7:N37"),INDIRECT(TEXT(A7-1,"ММММ")&"!A7:A37"),">="&S2))/(V2-U2+IF(MONTH(T2)=MONTH(S2),G7,INDEX(INDIRECT(TEXT(A7-1,"ММММ")&"!G7:G37"),DAY(S2))))) -> 1.10338871 | X2: =SUMIFS(Февраль[Отклонение от нормы (Перерасход(+), экономия(-)), литр],Февраль[Дата],">="&$S$2,Февраль[Дата],"<="&$T$2) -> -64.101 | Y2: =IF(Y4="Зима",VLOOKUP(Z4,Расчет[[Номер гос.регистрации / Заводской номер]:[Итога норма а/м "ЛЕТО"]],8,FALSE),VLOOKUP(Z4,Расчет[[Номер гос.регистрации / Заводской номер]:[Итога норма а/м "ЛЕТО"]],9,FALSE)) -> 51.546 | Z2: =IF(Y4="Зима",VLOOKUP(Z4,Расчет[[Номер гос.регистрации / Заводской номер]:[Итога норма а/м "ЛЕТО"]],13,FALSE),VLOOKUP(Z4,Расчет[[Номер гос.регистрации / Заводской номер]:[Итога норма а/м "ЛЕТО"]],14,FALSE)) -> 6.05
A3: Отчет водителя ломовоза с манипулятором | R3: 2-я пол. | S3: =T2+1 -> 2018-02-16 | T3: =INDEX(Февраль[Дата],COUNT(Февраль[Дата]))-T1 -> 2018-02-28 | U3: =ТС!E6 -> 500 | V3: =SUMIFS(Февраль[Выдано топливо, литр],Февраль[Дата],">="&$S$3,Февраль[Дата],"<="&$T$3)+IF(MONTH(T3)<>MONTH(S3),INDIRECT(TEXT(A7-1,"ММММ")&"!F38")-SUM(INDIRECT(TEXT(A7-1,"ММММ")&"!V1:V2")))+SUMIFS($U$7:$U$37,Февраль[Дата],">="&$S$3,Февраль[Дата],"<="&$T$3)+IF(MONTH(T3)<>MONTH(S3),INDIRECT(TEXT(A7-1,"ММММ")&"!F38")-SUM(INDIRECT(TEXT(A7-1,"ММММ")&"!V1:V2"))) -> 300 | W3: =IF(V3=0,0,(SUMIFS(N7:N37,A7:A37,">="&S3,A7:A37,"<="&T3)+SUMIFS(INDIRECT(TEXT(A7-1,"ММММ")&"!N7:N37"),INDIRECT(TEXT(A7-1,"ММММ")&"!A7:A37"),">="&S3))/(V3-U3+IF(MONTH(T3)=MONTH(S3),G7,INDEX(INDIRECT(TEXT(A7-1,"ММММ")&"!G7:G37"),DAY(S3))))) -> 1.09296 | X3: =SUMIFS(Февраль[Отклонение от нормы (Перерасход(+), экономия(-)), литр],Февраль[Дата],">="&$S$3,Февраль[Дата],"<="&$T$3) -> -27.888
H4: за | I4: 2018 | O4: т 056 вв 197 | S4: =IF(INDEX(Февраль[Дата],COUNT(Февраль[Дата]))=T3,"",T3+1) ->  | W4: =IFERROR(IF(S4="","",INDIRECT(TEXT(A7+40,"ММММ")&"!W2")),) ->  | Y4: Зима | Z4: Норма 1
A6: Дата | B6: ФИО водителя | C6: Показание одометра машины на начало дня, км | D6: Показание одометра машины на конец дня, км | E6: Пройдено за день, км | F6: Выдано топливо, литр | G6: Остаток топлива в баке на начало дня, литр | H6: Показание счетчика моточасов спецоборудования на начало дня, м/ч | I6: Показание счетчика моточасов спецоборудования на конец дня, м/ч | J6: Работа спецоборудования за день, м/ч | K6: Количество ходок | L6: Расход топлива на работу спецоборудования, литр | M6: Остаток топлива в баке на конец дня, литр | N6: Расход топлива по норме, литр | O6: Фактический расход топлива, литр | P6: Отклонение от нормы (Перерасход(+), экономия(-)), литр | R6: Дата | S6: Обнуление одометра, км | T6: Пройдено за день, км | U6: Выдано топливо, литр | V6: Обнуление счетчика моточасов спецоборудования, м/ч | W6: Работа спецоборудования за день, м/ч | X6: Расход топлива по норме, литр | Y6: Фактический расход топлива, литр | Z6: Дата
A7: =IFERROR(DATEVALUE((COUNT($A$6:A6)+1)&$P$1&$I$4),"") -> 2018-02-01 | C7: =INDEX(Январь!D7:D37,COUNT(Январь!D7:D37)) -> 210723 | D7: 210723 | E7: =IFERROR(Февраль[[#This Row],[Показание одометра машины на конец дня, км]]-Февраль[[#This Row],[Показание одометра машины на начало дня, км]]+T7,"") -> 0 | F7: =IF(Февраль[[#This Row],[Дата]]="","",SUMPRODUCT([1]Февраль!$E$4:$E$153*([1]Февраль!$G$4:$G$153=$O$4)*([1]Февраль!$D$4:$D$153=Февраль[[#This Row],[Дата]]))) -> 0 | G7: =U2 -> 500 | H7: =INDEX(Январь!I7:I37,COUNT(Январь!I7:I37)) -> 671 | I7: 671 | J7: =IFERROR(IF(W7="",Февраль[[#This Row],[Показание счетчика моточасов спецоборудования на конец дня, м/ч]],Февраль[[#This Row],[Показание счетчика моточасов спецоборудования на конец дня, м/ч]]+1)-Февраль[[#This Row],[Показание счетчика моточасов спецоборудования на начало дня, м/ч]],"") -> 0 | K7: 0 | L7: =IF(Февраль[[#This Row],[Работа спецоборудования за день, м/ч]]="","",Февраль[[#This Row],[Работа спецоборудования за день, м/ч]]*$Z$2) -> 0 | M7: =IFERROR(IF(VLOOKUP([Дата],S$2:U$3,3),IFERROR(IF(U7="",Февраль[[#This Row],[Выдано топливо, литр]],Февраль[[#This Row],[Выдано топливо, литр]]+U7)+Февраль[[#This Row],[Остаток топлива в баке на начало дня, литр]]-Февраль[[#This Row],[Фактический расход топлива, литр]],""),""),"") -> 500 | N7: =IFERROR(ROUND((Февраль[[#This Row],[Пройдено за день, км]]*0.01*$Y$2+Февраль[[#This Row],[Расход топлива на работу спецоборудования, литр]]),3)+X7,"") -> 0 | O7: =IFERROR(IF(Февраль[[#Totals],[Выдано топливо, литр]]=0,0,(ROUND(Февраль[[#This Row],[Расход топлива по норме, литр]]/IF(DAY([Дата])<=18,$W$2,$W$3),0)))+Y7,"") -> 0 | P7: =IFERROR(Февраль[[#This Row],[Фактический расход топлива, литр]]-Февраль[[#This Row],[Расход топлива по норме, литр]],"") -> 0 | R7: =Февраль[[#This Row],[Дата]] -> 2018-02-01 | Z7: =Февраль[[#This Row],[Дата]] -> 2018-02-01
A8: =IFERROR(DATEVALUE((COUNT($A$6:A7)+1)&$P$1&$I$4),"") -> 2018-02-02 | B8: Никляев В.А. | C8: =IFERROR(IF(INDIRECT(TEXT(A7-1,"ММММ")&"!A7:A37")="","",IF(S7="",D7,S7)),"") -> 210723 | D8: 210735 | E8: =IFERROR(Февраль[[#This Row],[Показание одометра машины на конец дня, км]]-Февраль[[#This Row],[Показание одометра машины на начало дня, км]]+T8,"") -> 12 | F8: =IF(Февраль[[#This Row],[Дата]]="","",SUMPRODUCT([1]Февраль!$E$4:$E$153*([1]Февраль!$G$4:$G$153=$O$4)*([1]Февраль!$D$4:$D$153=Февраль[[#This Row],[Дата]]))) -> 0 | G8: =IF(Февраль[[#This Row],[Дата]]="","",M7) -> 500 | H8: =IFERROR(IF(INDIRECT(TEXT(A7-1,"ММММ")&"!A7:A37")="","",IF(V7="",I7,V7)),"") -> 671 | I8: 672 | J8: =IFERROR(IF(W8="",Февраль[[#This Row],[Показание счетчика моточасов спецоборудования на конец дня, м/ч]],Февраль[[#This Row],[Показание счетчика моточасов спецоборудования на конец дня, м/ч]]+1)-Февраль[[#This Row],[Показание счетчика моточасов спецоборудования на начало дня, м/ч]],"") -> 1 | K8: 1 | L8: =IF(Февраль[[#This Row],[Работа спецоборудования за день, м/ч]]="","",Февраль[[#This Row],[Работа спецоборудования за день, м/ч]]*$Z$2) -> 6.05 | M8: =IFERROR(IF(VLOOKUP([Дата],S$2:U$3,3),IFERROR(IF(U8="",Февраль[[#This Row],[Выдано топливо, литр]],Февраль[[#This Row],[Выдано топливо, литр]]+U8)+Февраль[[#This Row],[Остаток топлива в баке на начало дня, литр]]-Февраль[[#This Row],[Фактический расход топлива, литр]],""),""),"") -> 489 | N8: =IFERROR(ROUND((Февраль[[#This Row],[Пройдено за день, км]]*0.01*$Y$2+Февраль[[#This Row],[Расход топлива на работу спецоборудования, литр]]),3)+X8,"") -> 12.236 | O8: =IFERROR(IF(Февраль[[#Totals],[Выдано топливо, литр]]=0,0,(ROUND(Февраль[[#This Row],[Расход топлива по норме, литр]]/IF(DAY([Дата])<=18,$W$2,$W$3),0)))+Y8,"") -> 11 | P8: =IFERROR(Февраль[[#This Row],[Фактический расход топлива, литр]]-Февраль[[#This Row],[Расход топлива по норме, литр]],"") -> -1.236 | R8: =Февраль[[#This Row],[Дата]] -> 2018-02-02 | Z8: =Февраль[[#This Row],[Дата]] -> 2018-02-02
A9: =IFERROR(DATEVALUE((COUNT($A$6:A8)+1)&$P$1&$I$4),"") -> 2018-02-03 | B9: Никляев В.А. | C9: =IFERROR(IF(INDIRECT(TEXT(A8-1,"ММММ")&"!A7:A37")="","",IF(S8="",D8,S8)),"") -> 210735 | D9: 210777 | E9: =IFERROR(Февраль[[#This Row],[Показание одометра машины на конец дня, км]]-Февраль[[#This Row],[Показание одометра машины на начало дня, км]]+T9,"") -> 42 | F9: =IF(Февраль[[#This Row],[Дата]]="","",SUMPRODUCT([1]Февраль!$E$4:$E$153*([1]Февраль!$G$4:$G$153=$O$4)*([1]Февраль!$D$4:$D$153=Февраль[[#This Row],[Дата]]))) -> 0 | G9: =IF(Февраль[[#This Row],[Дата]]="","",M8) -> 489 | H9: =IFERROR(IF(INDIRECT(TEXT(A8-1,"ММММ")&"!A7:A37")="","",IF(V8="",I8,V8)),"") -> 672 | I9: 674 | J9: =IFERROR(IF(W9="",Февраль[[#This Row],[Показание счетчика моточасов спецоборудования на конец дня, м/ч]],Февраль[[#This Row],[Показание счетчика моточасов спецоборудования на конец дня, м/ч]]+1)-Февраль[[#This Row],[Показание счетчика моточасов спецоборудования на начало дня, м/ч]],"") -> 2 | K9: 1 | L9: =IF(Февраль[[#This Row],[Работа спецоборудования за день, м/ч]]="","",Февраль[[#This Row],[Работа спецоборудования за день, м/ч]]*$Z$2) -> 12.1 | M9: =IFERROR(IF(VLOOKUP([Дата],S$2:U$3,3),IFERROR(IF(U9="",Февраль[[#This Row],[Выдано топливо, литр]],Февраль[[#This Row],[Выдано топливо, литр]]+U9)+Февраль[[#This Row],[Остаток топлива в баке на начало дня, литр]]-Февраль[[#This Row],[Фактический расход топлива, литр]],""),""),"") -> 458 | N9: =IFERROR(ROUND((Февраль[[#This Row],[Пройдено за день, км]]*0.01*$Y$2+Февраль[[#This Row],[Расход топлива на работу спецоборудования, литр]]),3)+X9,"") -> 33.748 | O9: =IFERROR(IF(Февраль[[#Totals],[Выдано топливо, литр]]=0,0,(ROUND(Февраль[[#This Row],[Расход топлива по норме, литр]]/IF(DAY([Дата])<=18,$W$2,$W$3),0)))+Y9,"") -> 31 | P9: =IFERROR(Февраль[[#This Row],[Фактический расход топлива, литр]]-Февраль[[#This Row],[Расход топлива по норме, литр]],"") -> -2.748 | R9: =Февраль[[#This Row],[Дата]] -> 2018-02-03 | X9: -0.001 | Z9: =Февраль[[#This Row],[Дата]] -> 2018-02-03
A10: =IFERROR(DATEVALUE((COUNT($A$6:A9)+1)&$P$1&$I$4),"") -> 2018-02-04 | B10: Никляев В.А. | C10: 210777 | D10: 210864 | E10: =IFERROR(Февраль[[#This Row],[Показание одометра машины на конец дня, км]]-Февраль[[#This Row],[Показание одометра машины на начало дня, км]]+T10,"") -> 87 | F10: =IF(Февраль[[#This Row],[Дата]]="","",SUMPRODUCT([1]Февраль!$E$4:$E$153*([1]Февраль!$G$4:$G$153=$O$4)*([1]Февраль!$D$4:$D$153=Февраль[[#This Row],[Дата]]))) -> 0 | G10: =IF(Февраль[[#This Row],[Дата]]="","",M9) -> 458 | H10: 674 | I10: 676 | J10: =IFERROR(IF(W10="",Февраль[[#This Row],[Показание счетчика моточасов спецоборудования на конец дня, м/ч]],Февраль[[#This Row],[Показание счетчика моточасов спецоборудования на конец дня, м/ч]]+1)-Февраль[[#This Row],[Показание счетчика моточасов спецоборудования на начало дня, м/ч]],"") -> 2 | K10: 2 | L10: =IF(Февраль[[#This Row],[Работа спецоборудования за день, м/ч]]="","",Февраль[[#This Row],[Работа спецоборудования за день, м/ч]]*$Z$2) -> 12.1 | M10: =IFERROR(IF(VLOOKUP([Дата],S$2:U$3,3),IFERROR(IF(U10="",Февраль[[#This Row],[Выдано топливо, литр]],Февраль[[#This Row],[Выдано топливо, литр]]+U10)+Февраль[[#This Row],[Остаток топлива в баке на начало дня, литр]]-Февраль[[#This Row],[Фактический расход топлива, литр]],""),""),"") -> 406 | N10: =IFERROR(ROUND((Февраль[[#This Row],[Пройдено за день, км]]*0.01*$Y$2+Февраль[[#This Row],[Расход топлива на работу спецоборудования, литр]]),3)+X10,"") -> 56.945 | O10: =IFERROR(IF(Февраль[[#Totals],[Выдано топливо, литр]]=0,0,(ROUND(Февраль[[#This Row],[Расход топлива по норме, литр]]/IF(DAY([Дата])<=18,$W$2,$W$3),0)))+Y10,"") -> 52 | P10: =IFERROR(Февраль[[#This Row],[Фактический расход топлива, литр]]-Февраль[[#This Row],[Расход топлива по норме, литр]],"") -> -4.945 | R10: =Февраль[[#This Row],[Дата]] -> 2018-02-04 | Z10: =Февраль[[#This Row],[Дата]] -> 2018-02-04
A11: =IFERROR(DATEVALUE((COUNT($A$6:A10)+1)&$P$1&$I$4),"") -> 2018-02-05 | C11: 210864 | D11: 210864 | E11: =IFERROR(Февраль[[#This Row],[Показание одометра машины на конец дня, км]]-Февраль[[#This Row],[Показание одометра машины на начало дня, км]]+T11,"") -> 0 | F11: =IF(Февраль[[#This Row],[Дата]]="","",SUMPRODUCT([1]Февраль!$E$4:$E$153*([1]Февраль!$G$4:$G$153=$O$4)*([1]Февраль!$D$4:$D$153=Февраль[[#This Row],[Дата]]))) -> 0 | G11: =IF(Февраль[[#This Row],[Дата]]="","",M10) -> 406 | H11: 676 | I11: 676 | J11: =IFERROR(IF(W11="",Февраль[[#This Row],[Показание счетчика моточасов спецоборудования на конец дня, м/ч]],Февраль[[#This Row],[Показание счетчика моточасов спецоборудования на конец дня, м/ч]]+1)-Февраль[[#This Row],[Показание счетчика моточасов спецоборудования на начало дня, м/ч]],"") -> 0 | K11: 0 | L11: =IF(Февраль[[#This Row],[Работа спецоборудования за день, м/ч]]="","",Февраль[[#This Row],[Работа спецоборудования за день, м/ч]]*$Z$2) -> 0 | M11: =IFERROR(IF(VLOOKUP([Дата],S$2:U$3,3),IFERROR(IF(U11="",Февраль[[#This Row],[Выдано топливо, литр]],Февраль[[#This Row],[Выдано топливо, литр]]+U11)+Февраль[[#This Row],[Остаток топлива в баке на начало дня, литр]]-Февраль[[#This Row],[Фактический расход топлива, литр]],""),""),"") -> 406 | N11: =IFERROR(ROUND((Февраль[[#This Row],[Пройдено за день, км]]*0.01*$Y$2+Февраль[[#This Row],[Расход топлива на работу спецоборудования, литр]]),3)+X11,"") -> 0 | O11: =IFERROR(IF(Февраль[[#Totals],[Выдано топливо, литр]]=0,0,(ROUND(Февраль[[#This Row],[Расход топлива по норме, литр]]/IF(DAY([Дата])<=18,$W$2,$W$3),0)))+Y11,"") -> 0 | P11: =IFERROR(Февраль[[#This Row],[Фактический расход топлива, литр]]-Февраль[[#This Row],[Расход топлива по норме, литр]],"") -> 0 | R11: =Февраль[[#This Row],[Дата]] -> 2018-02-05 | Z11: =Февраль[[#This Row],[Дата]] -> 2018-02-05
A12: =IFERROR(DATEVALUE((COUNT($A$6:A11)+1)&$P$1&$I$4),"") -> 2018-02-06 | B12: Никляев В.А. | C12: 210864 | D12: 210888 | E12: =IFERROR(Февраль[[#This Row],[Показание одометра машины на конец дня, км]]-Февраль[[#This Row],[Показание одометра машины на начало дня, км]]+T12,"") -> 24 | F12: =IF(Февраль[[#This Row],[Дата]]="","",SUMPRODUCT([1]Февраль!$E$4:$E$153*([1]Февраль!$G$4:$G$153=$O$4)*([1]Февраль!$D$4:$D$153=Февраль[[#This Row],[Дата]]))) -> 0 | G12: =IF(Февраль[[#This Row],[Дата]]="","",M11) -> 406 | H12: 676 | I12: 678 | J12: =IFERROR(IF(W12="",Февраль[[#This Row],[Показание счетчика моточасов спецоборудования на конец дня, м/ч]],Февраль[[#This Row],[Показание счетчика моточасов спецоборудования на конец дня, м/ч]]+1)-Февраль[[#This Row],[Показание счетчика моточасов спецоборудования на начало дня, м/ч]],"") -> 2 | K12: 1 | L12: =IF(Февраль[[#This Row],[Работа спецоборудования за день, м/ч]]="","",Февраль[[#This Row],[Работа спецоборудования за день, м/ч]]*$Z$2) -> 12.1 | M12: =IFERROR(IF(VLOOKUP([Дата],S$2:U$3,3),IFERROR(IF(U12="",Февраль[[#This Row],[Выдано топливо, литр]],Февраль[[#This Row],[Выдано топливо, литр]]+U12)+Февраль[[#This Row],[Остаток топлива в баке на начало дня, литр]]-Февраль[[#This Row],[Фактический расход топлива, литр]],""),""),"") -> 384 | N12: =IFERROR(ROUND((Февраль[[#This Row],[Пройдено за день, км]]*0.01*$Y$2+Февраль[[#This Row],[Расход топлива на работу спецоборудования, литр]]),3)+X12,"") -> 24.471 | O12: =IFERROR(IF(Февраль[[#Totals],[Выдано топливо, литр]]=0,0,(ROUND(Февраль[[#This Row],[Расход топлива по норме, литр]]/IF(DAY([Дата])<=18,$W$2,$W$3),0)))+Y12,"") -> 22 | P12: =IFERROR(Февраль[[#This Row],[Фактический расход топлива, литр]]-Февраль[[#This Row],[Расход топлива по норме, литр]],"") -> -2.471 | R12: =Февраль[[#This Row],[Дата]] -> 2018-02-06 | Z12: =Февраль[[#This Row],[Дата]] -> 2018-02-06
A13: =IFERROR(DATEVALUE((COUNT($A$6:A12)+1)&$P$1&$I$4),"") -> 2018-02-07 | B13: Никляев В.А. | C13: 210888 | D13: 210900 | E13: =IFERROR(Февраль[[#This Row],[Показание одометра машины на конец дня, км]]-Февраль[[#This Row],[Показание одометра машины на начало дня, км]]+T13,"") -> 12 | F13: =IF(Февраль[[#This Row],[Дата]]="","",SUMPRODUCT([1]Февраль!$E$4:$E$153*([1]Февраль!$G$4:$G$153=$O$4)*([1]Февраль!$D$4:$D$153=Февраль[[#This Row],[Дата]]))) -> 0 | G13: =IF(Февраль[[#This Row],[Дата]]="","",M12) -> 384 | H13: 678 | I13: 679 | J13: =IFERROR(IF(W13="",Февраль[[#This Row],[Показание счетчика моточасов спецоборудования на конец дня, м/ч]],Февраль[[#This Row],[Показание счетчика моточасов спецоборудования на конец дня, м/ч]]+1)-Февраль[[#This Row],[Показание счетчика моточасов спецоборудования на начало дня, м/ч]],"") -> 1 | K13: 1 | L13: =IF(Февраль[[#This Row],[Работа спецоборудования за день, м/ч]]="","",Февраль[[#This Row],[Работа спецоборудования за день, м/ч]]*$Z$2) -> 6.05 | M13: =IFERROR(IF(VLOOKUP([Дата],S$2:U$3,3),IFERROR(IF(U13="",Февраль[[#This Row],[Выдано топливо, литр]],Февраль[[#This Row],[Выдано топливо, литр]]+U13)+Февраль[[#This Row],[Остаток топлива в баке на начало дня, литр]]-Февраль[[#This Row],[Фактический расход топлива, литр]],""),""),"") -> 373 | N13: =IFERROR(ROUND((Февраль[[#This Row],[Пройдено за день, км]]*0.01*$Y$2+Февраль[[#This Row],[Расход топлива на работу спецоборудования, литр]]),3)+X13,"") -> 12.236 | O13: =IFERROR(IF(Февраль[[#Totals],[Выдано топливо, литр]]=0,0,(ROUND(Февраль[[#This Row],[Расход топлива по норме, литр]]/IF(DAY([Дата])<=18,$W$2,$W$3),0)))+Y13,"") -> 11 | P13: =IFERROR(Февраль[[#This Row],[Фактический расход топлива, литр]]-Февраль[[#This Row],[Расход топлива по норме, литр]],"") -> -1.236 | R13: =Февраль[[#This Row],[Дата]] -> 2018-02-07 | Z13: =Февраль[[#This Row],[Дата]] -> 2018-02-07
A14: =IFERROR(DATEVALUE((COUNT($A$6:A13)+1)&$P$1&$I$4),"") -> 2018-02-08 | B14: Никляев В.А. | C14: 210900 | D14: 211028 | E14: =IFERROR(Февраль[[#This Row],[Показание одометра машины на конец дня, км]]-Февраль[[#This Row],[Показание одометра машины на начало дня, км]]+T14,"") -> 128 | F14: =IF(Февраль[[#This Row],[Дата]]="","",SUMPRODUCT([1]Февраль!$E$4:$E$153*([1]Февраль!$G$4:$G$153=$O$4)*([1]Февраль!$D$4:$D$153=Февраль[[#This Row],[Дата]]))) -> 0 | G14: =IF(Февраль[[#This Row],[Дата]]="","",M13) -> 373 | H14: 679 | I14: 683 | J14: =IFERROR(IF(W14="",Февраль[[#This Row],[Показание счетчика моточасов спецоборудования на конец дня, м/ч]],Февраль[[#This Row],[Показание счетчика моточасов спецоборудования на конец дня, м/ч]]+1)-Февраль[[#This Row],[Показание счетчика моточасов спецоборудования на начало дня, м/ч]],"") -> 4 | K14: 2 | L14: =IF(Февраль[[#This Row],[Работа спецоборудования за день, м/ч]]="","",Февраль[[#This Row],[Работа спецоборудования за день, м/ч]]*$Z$2) -> 24.2 | M14: =IFERROR(IF(VLOOKUP([Дата],S$2:U$3,3),IFERROR(IF(U14="",Февраль[[#This Row],[Выдано топливо, литр]],Февраль[[#This Row],[Выдано топливо, литр]]+U14)+Февраль[[#This Row],[Остаток топлива в баке на начало дня, литр]]-Февраль[[#This Row],[Фактический расход топлива, литр]],""),""),"") -> 291 | N14: =IFERROR(ROUND((Февраль[[#This Row],[Пройдено за день, км]]*0.01*$Y$2+Февраль[[#This Row],[Расход топлива на работу спецоборудования, литр]]),3)+X14,"") -> 90.179 | O14: =IFERROR(IF(Февраль[[#Totals],[Выдано топливо, литр]]=0,0,(ROUND(Февраль[[#This Row],[Расход топлива по норме, литр]]/IF(DAY([Дата])<=18,$W$2,$W$3),0)))+Y14,"") -> 82 | P14: =IFERROR(Февраль[[#This Row],[Фактический расход топлива, литр]]-Февраль[[#This Row],[Расход топлива по норме, литр]],"") -> -8.179 | R14: =Февраль[[#This Row],[Дата]] -> 2018-02-08 | Z14: =Февраль[[#This Row],[Дата]] -> 2018-02-08
A15: =IFERROR(DATEVALUE((COUNT($A$6:A14)+1)&$P$1&$I$4),"") -> 2018-02-09 | B15: Никляев В.А. | C15: 211028 | D15: 211140 | E15: =IFERROR(Февраль[[#This Row],[Показание одометра машины на конец дня, км]]-Февраль[[#This Row],[Показание одометра машины на начало дня, км]]+T15,"") -> 112 | F15: =IF(Февраль[[#This Row],[Дата]]="","",SUMPRODUCT([1]Февраль!$E$4:$E$153*([1]Февраль!$G$4:$G$153=$O$4)*([1]Февраль!$D$4:$D$153=Февраль[[#This Row],[Дата]]))) -> 0 | G15: =IF(Февраль[[#This Row],[Дата]]="","",M14) -> 291 | H15: 683 | I15: 685 | J15: =IFERROR(IF(W15="",Февраль[[#This Row],[Показание счетчика моточасов спецоборудования на конец дня, м/ч]],Февраль[[#This Row],[Показание счетчика моточасов спецоборудования на конец дня, м/ч]]+1)-Февраль[[#This Row],[Показание счетчика моточасов спецоборудования на начало дня, м/ч]],"") -> 2 | K15: 2 | L15: =IF(Февраль[[#This Row],[Работа спецоборудования за день, м/ч]]="","",Февраль[[#This Row],[Работа спецоборудования за день, м/ч]]*$Z$2) -> 12.1 | M15: =IFERROR(IF(VLOOKUP([Дата],S$2:U$3,3),IFERROR(IF(U15="",Февраль[[#This Row],[Выдано топливо, литр]],Февраль[[#This Row],[Выдано топливо, литр]]+U15)+Февраль[[#This Row],[Остаток топлива в баке на начало дня, литр]]-Февраль[[#This Row],[Фактический расход топлива, литр]],""),""),"") -> 228 | N15: =IFERROR(ROUND((Февраль[[#This Row],[Пройдено за день, км]]*0.01*$Y$2+Февраль[[#This Row],[Расход топлива на работу спецоборудования, литр]]),3)+X15,"") -> 69.832 | O15: =IFERROR(IF(Февраль[[#Totals],[Выдано топливо, литр]]=0,0,(ROUND(Февраль[[#This Row],[Расход топлива по норме, литр]]/IF(DAY([Дата])<=18,$W$2,$W$3),0)))+Y15,"") -> 63 | P15: =IFERROR(Февраль[[#This Row],[Фактический расход топлива, литр]]-Февраль[[#This Row],[Расход топлива по норме, литр]],"") -> -6.832 | R15: =Февраль[[#This Row],[Дата]] -> 2018-02-09 | Z15: =Февраль[[#This Row],[Дата]] -> 2018-02-09
A16: =IFERROR(DATEVALUE((COUNT($A$6:A15)+1)&$P$1&$I$4),"") -> 2018-02-10 | B16: Никляев В.А. | C16: 211140 | D16: 211246 | E16: =IFERROR(Февраль[[#This Row],[Показание одометра машины на конец дня, км]]-Февраль[[#This Row],[Показание одометра машины на начало дня, км]]+T16,"") -> 106 | F16: =IF(Февраль[[#This Row],[Дата]]="","",SUMPRODUCT([1]Февраль!$E$4:$E$153*([1]Февраль!$G$4:$G$153=$O$4)*([1]Февраль!$D$4:$D$153=Февраль[[#This Row],[Дата]]))) -> 0 | G16: =IF(Февраль[[#This Row],[Дата]]="","",M15) -> 228 | H16: 685 | I16: 687 | J16: =IFERROR(IF(W16="",Февраль[[#This Row],[Показание счетчика моточасов спецоборудования на конец дня, м/ч]],Февраль[[#This Row],[Показание счетчика моточасов спецоборудования на конец дня, м/ч]]+1)-Февраль[[#This Row],[Показание счетчика моточасов спецоборудования на начало дня, м/ч]],"") -> 2 | K16: 1 | L16: =IF(Февраль[[#This Row],[Работа спецоборудования за день, м/ч]]="","",Февраль[[#This Row],[Работа спецоборудования за день, м/ч]]*$Z$2) -> 12.1 | M16: =IFERROR(IF(VLOOKUP([Дата],S$2:U$3,3),IFERROR(IF(U16="",Февраль[[#This Row],[Выдано топливо, литр]],Февраль[[#This Row],[Выдано топливо, литр]]+U16)+Февраль[[#This Row],[Остаток топлива в баке на начало дня, литр]]-Февраль[[#This Row],[Фактический расход топлива, литр]],""),""),"") -> 168 | N16: =IFERROR(ROUND((Февраль[[#This Row],[Пройдено за день, км]]*0.01*$Y$2+Февраль[[#This Row],[Расход топлива на работу спецоборудования, литр]]),3)+X16,"") -> 66.739 | O16: =IFERROR(IF(Февраль[[#Totals],[Выдано топливо, литр]]=0,0,(ROUND(Февраль[[#This Row],[Расход топлива по норме, литр]]/IF(DAY([Дата])<=18,$W$2,$W$3),0)))+Y16,"") -> 60 | P16: =IFERROR(Февраль[[#This Row],[Фактический расход топлива, литр]]-Февраль[[#This Row],[Расход топлива по норме, литр]],"") -> -6.739 | R16: =Февраль[[#This Row],[Дата]] -> 2018-02-10 | Z16: =Февраль[[#This Row],[Дата]] -> 2018-02-10
A17: =IFERROR(DATEVALUE((COUNT($A$6:A16)+1)&$P$1&$I$4),"") -> 2018-02-11 | C17: 211246 | D17: 211246 | E17: =IFERROR(Февраль[[#This Row],[Показание одометра машины на конец дня, км]]-Февраль[[#This Row],[Показание одометра машины на начало дня, км]]+T17,"") -> 0 | F17: =IF(Февраль[[#This Row],[Дата]]="","",SUMPRODUCT([1]Февраль!$E$4:$E$153*([1]Февраль!$G$4:$G$153=$O$4)*([1]Февраль!$D$4:$D$153=Февраль[[#This Row],[Дата]]))) -> 0 | G17: =IF(Февраль[[#This Row],[Дата]]="","",M16) -> 168 | H17: 687 | I17: 687 | J17: =IFERROR(IF(W17="",Февраль[[#This Row],[Показание счетчика моточасов спецоборудования на конец дня, м/ч]],Февраль[[#This Row],[Показание счетчика моточасов спецоборудования на конец дня, м/ч]]+1)-Февраль[[#This Row],[Показание счетчика моточасов спецоборудования на начало дня, м/ч]],"") -> 0 | K17: 0 | L17: =IF(Февраль[[#This Row],[Работа спецоборудования за день, м/ч]]="","",Февраль[[#This Row],[Работа спецоборудования за день, м/ч]]*$Z$2) -> 0 | M17: =IFERROR(IF(VLOOKUP([Дата],S$2:U$3,3),IFERROR(IF(U17="",Февраль[[#This Row],[Выдано топливо, литр]],Февраль[[#This Row],[Выдано топливо, литр]]+U17)+Февраль[[#This Row],[Остаток топлива в баке на начало дня, литр]]-Февраль[[#This Row],[Фактический расход топлива, литр]],""),""),"") -> 168 | N17: =IFERROR(ROUND((Февраль[[#This Row],[Пройдено за день, км]]*0.01*$Y$2+Февраль[[#This Row],[Расход топлива на работу спецоборудования, литр]]),3)+X17,"") -> 0 | O17: =IFERROR(IF(Февраль[[#Totals],[Выдано топливо, литр]]=0,0,(ROUND(Февраль[[#This Row],[Расход топлива по норме, литр]]/IF(DAY([Дата])<=18,$W$2,$W$3),0)))+Y17,"") -> 0 | P17: =IFERROR(Февраль[[#This Row],[Фактический расход топлива, литр]]-Февраль[[#This Row],[Расход топлива по норме, литр]],"") -> 0 | R17: =Февраль[[#This Row],[Дата]] -> 2018-02-11 | Z17: =Февраль[[#This Row],[Дата]] -> 2018-02-11
A18: =IFERROR(DATEVALUE((COUNT($A$6:A17)+1)&$P$1&$I$4),"") -> 2018-02-12 | B18: Никляев В.А. | C18: 211246 | D18: 211429 | E18: =IFERROR(Февраль[[#This Row],[Показание одометра машины на конец дня, км]]-Февраль[[#This Row],[Показание одометра машины на начало дня, км]]+T18,"") -> 183 | F18: =IF(Февраль[[#This Row],[Дата]]="","",SUMPRODUCT([1]Февраль!$E$4:$E$153*([1]Февраль!$G$4:$G$153=$O$4)*([1]Февраль!$D$4:$D$153=Февраль[[#This Row],[Дата]]))) -> 450 | G18: =IF(Февраль[[#This Row],[Дата]]="","",M17) -> 168 | H18: 687 | I18: 691 | J18: =IFERROR(IF(W18="",Февраль[[#This Row],[Показание счетчика моточасов спецоборудования на конец дня, м/ч]],Февраль[[#This Row],[Показание счетчика моточасов спецоборудования на конец дня, м/ч]]+1)-Февраль[[#This Row],[Показание счетчика моточасов спецоборудования на начало дня, м/ч]],"") -> 4 | K18: 3 | L18: =IF(Февраль[[#This Row],[Работа спецоборудования за день, м/ч]]="","",Февраль[[#This Row],[Работа спецоборудования за день, м/ч]]*$Z$2) -> 24.2 | M18: =IFERROR(IF(VLOOKUP([Дата],S$2:U$3,3),IFERROR(IF(U18="",Февраль[[#This Row],[Выдано топливо, литр]],Февраль[[#This Row],[Выдано топливо, литр]]+U18)+Февраль[[#This Row],[Остаток топлива в баке на начало дня, литр]]-Февраль[[#This Row],[Фактический расход топлива, литр]],""),""),"") -> 381 | N18: =IFERROR(ROUND((Февраль[[#This Row],[Пройдено за день, км]]*0.01*$Y$2+Февраль[[#This Row],[Расход топлива на работу спецоборудования, литр]]),3)+X18,"") -> 118.529 | O18: =IFERROR(IF(Февраль[[#Totals],[Выдано топливо, литр]]=0,0,(ROUND(Февраль[[#This Row],[Расход топлива по норме, литр]]/IF(DAY([Дата])<=18,$W$2,$W$3),0)))+Y18,"") -> 107 | P18: =IFERROR(Февраль[[#This Row],[Фактический расход топлива, литр]]-Февраль[[#This Row],[Расход топлива по норме, литр]],"") -> -11.529 | R18: =Февраль[[#This Row],[Дата]] -> 2018-02-12 | U18: -130 | Z18: =Февраль[[#This Row],[Дата]] -> 2018-02-12
A19: =IFERROR(DATEVALUE((COUNT($A$6:A18)+1)&$P$1&$I$4),"") -> 2018-02-13 | C19: 211429 | D19: 211429 | E19: =IFERROR(Февраль[[#This Row],[Показание одометра машины на конец дня, км]]-Февраль[[#This Row],[Показание одометра машины на начало дня, км]]+T19,"") -> 0 | F19: =IF(Февраль[[#This Row],[Дата]]="","",SUMPRODUCT([1]Февраль!$E$4:$E$153*([1]Февраль!$G$4:$G$153=$O$4)*([1]Февраль!$D$4:$D$153=Февраль[[#This Row],[Дата]]))) -> 0 | G19: =IF(Февраль[[#This Row],[Дата]]="","",M18) -> 381 | H19: 691 | I19: 691 | J19: =IFERROR(IF(W19="",Февраль[[#This Row],[Показание счетчика моточасов спецоборудования на конец дня, м/ч]],Февраль[[#This Row],[Показание счетчика моточасов спецоборудования на конец дня, м/ч]]+1)-Февраль[[#This Row],[Показание счетчика моточасов спецоборудования на начало дня, м/ч]],"") -> 0 | K19: 0 | L19: =IF(Февраль[[#This Row],[Работа спецоборудования за день, м/ч]]="","",Февраль[[#This Row],[Работа спецоборудования за день, м/ч]]*$Z$2) -> 0 | M19: =IFERROR(IF(VLOOKUP([Дата],S$2:U$3,3),IFERROR(IF(U19="",Февраль[[#This Row],[Выдано топливо, литр]],Февраль[[#This Row],[Выдано топливо, литр]]+U19)+Февраль[[#This Row],[Остаток топлива в баке на начало дня, литр]]-Февраль[[#This Row],[Фактический расход топлива, литр]],""),""),"") -> 381 | N19: =IFERROR(ROUND((Февраль[[#This Row],[Пройдено за день, км]]*0.01*$Y$2+Февраль[[#This Row],[Расход топлива на работу спецоборудования, литр]]),3)+X19,"") -> 0 | O19: =IFERROR(IF(Февраль[[#Totals],[Выдано топливо, литр]]=0,0,(ROUND(Февраль[[#This Row],[Расход топлива по норме, литр]]/IF(DAY([Дата])<=18,$W$2,$W$3),0)))+Y19,"") -> 0 | P19: =IFERROR(Февраль[[#This Row],[Фактический расход топлива, литр]]-Февраль[[#This Row],[Расход топлива по норме, литр]],"") -> 0 | R19: =Февраль[[#This Row],[Дата]] -> 2018-02-13 | Z19: =Февраль[[#This Row],[Дата]] -> 2018-02-13
A20: =IFERROR(DATEVALUE((COUNT($A$6:A19)+1)&$P$1&$I$4),"") -> 2018-02-14 | B20: Никляев В.А. | C20: 211429 | D20: 211665 | E20: =IFERROR(Февраль[[#This Row],[Показание одометра машины на конец дня, км]]-Февраль[[#This Row],[Показание одометра машины на начало дня, км]]+T20,"") -> 236 | F20: =IF(Февраль[[#This Row],[Дата]]="","",SUMPRODUCT([1]Февраль!$E$4:$E$153*([1]Февраль!$G$4:$G$153=$O$4)*([1]Февраль!$D$4:$D$153=Февраль[[#This Row],[Дата]]))) -> 0 | G20: =IF(Февраль[[#This Row],[Дата]]="","",M19) -> 381 | H20: 691 | I20: 695 | J20: =IFERROR(IF(W20="",Февраль[[#This Row],[Показание счетчика моточасов спецоборудования на конец дня, м/ч]],Февраль[[#This Row],[Показание счетчика моточасов спецоборудования на конец дня, м/ч]]+1)-Февраль[[#This Row],[Показание счетчика моточасов спецоборудования на начало дня, м/ч]],"") -> 4 | K20: 2 | L20: =IF(Февраль[[#This Row],[Работа спецоборудования за день, м/ч]]="","",Февраль[[#This Row],[Работа спецоборудования за день, м/ч]]*$Z$2) -> 24.2 | M20: =IFERROR(IF(VLOOKUP([Дата],S$2:U$3,3),IFERROR(IF(U20="",Февраль[[#This Row],[Выдано топливо, литр]],Февраль[[#This Row],[Выдано топливо, литр]]+U20)+Февраль[[#This Row],[Остаток топлива в баке на начало дня, литр]]-Февраль[[#This Row],[Фактический расход топлива, литр]],""),""),"") -> 249 | N20: =IFERROR(ROUND((Февраль[[#This Row],[Пройдено за день, км]]*0.01*$Y$2+Февраль[[#This Row],[Расход топлива на работу спецоборудования, литр]]),3)+X20,"") -> 145.849 | O20: =IFERROR(IF(Февраль[[#Totals],[Выдано топливо, литр]]=0,0,(ROUND(Февраль[[#This Row],[Расход топлива по норме, литр]]/IF(DAY([Дата])<=18,$W$2,$W$3),0)))+Y20,"") -> 132 | P20: =IFERROR(Февраль[[#This Row],[Фактический расход топлива, литр]]-Февраль[[#This Row],[Расход топлива по норме, литр]],"") -> -13.849 | R20: =Февраль[[#This Row],[Дата]] -> 2018-02-14 | Z20: =Февраль[[#This Row],[Дата]] -> 2018-02-14
A21: =IFERROR(DATEVALUE((COUNT($A$6:A20)+1)&$P$1&$I$4),"") -> 2018-02-15 | B21: Никляев В.А. | C21: 211665 | D21: 211745 | E21: =IFERROR(Февраль[[#This Row],[Показание одометра машины на конец дня, км]]-Февраль[[#This Row],[Показание одометра машины на начало дня, км]]+T21,"") -> 80 | F21: =IF(Февраль[[#This Row],[Дата]]="","",SUMPRODUCT([1]Февраль!$E$4:$E$153*([1]Февраль!$G$4:$G$153=$O$4)*([1]Февраль!$D$4:$D$153=Февраль[[#This Row],[Дата]]))) -> 300 | G21: =IF(Февраль[[#This Row],[Дата]]="","",M20) -> 249 | H21: 695 | I21: 697 | J21: =IFERROR(IF(W21="",Февраль[[#This Row],[Показание счетчика моточасов спецоборудования на конец дня, м/ч]],Февраль[[#This Row],[Показание счетчика моточасов спецоборудования на конец дня, м/ч]]+1)-Февраль[[#This Row],[Показание счетчика моточасов спецоборудования на начало дня, м/ч]],"") -> 2 | K21: 2 | L21: =IF(Февраль[[#This Row],[Работа спецоборудования за день, м/ч]]="","",Февраль[[#This Row],[Работа спецоборудования за день, м/ч]]*$Z$2) -> 12.1 | M21: =IFERROR(IF(VLOOKUP([Дата],S$2:U$3,3),IFERROR(IF(U21="",Февраль[[#This Row],[Выдано топливо, литр]],Февраль[[#This Row],[Выдано топливо, литр]]+U21)+Февраль[[#This Row],[Остаток топлива в баке на начало дня, литр]]-Февраль[[#This Row],[Фактический расход топлива, литр]],""),""),"") -> 500 | N21: =IFERROR(ROUND((Февраль[[#This Row],[Пройдено за день, км]]*0.01*$Y$2+Февраль[[#This Row],[Расход топлива на работу спецоборудования, литр]]),3)+X21,"") -> 53.337 | O21: =IFERROR(IF(Февраль[[#Totals],[Выдано топливо, литр]]=0,0,(ROUND(Февраль[[#This Row],[Расход топлива по норме, литр]]/IF(DAY([Дата])<=18,$W$2,$W$3),0)))+Y21,"") -> 49 | P21: =IFERROR(Февраль[[#This Row],[Фактический расход топлива, литр]]-Февраль[[#This Row],[Расход топлива по норме, литр]],"") -> -4.337 | R21: =Февраль[[#This Row],[Дата]] -> 2018-02-15 | Y21: 1 | Z21: =Февраль[[#This Row],[Дата]] -> 2018-02-15
A22: =IFERROR(DATEVALUE((COUNT($A$6:A21)+1)&$P$1&$I$4),"") -> 2018-02-16 | C22: 211745 | D22: 211745 | E22: =IFERROR(Февраль[[#This Row],[Показание одометра машины на конец дня, км]]-Февраль[[#This Row],[Показание одометра машины на начало дня, км]]+T22,"") -> 0 | F22: =IF(Февраль[[#This Row],[Дата]]="","",SUMPRODUCT([1]Февраль!$E$4:$E$153*([1]Февраль!$G$4:$G$153=$O$4)*([1]Февраль!$D$4:$D$153=Февраль[[#This Row],[Дата]]))) -> 0 | G22: =IF(Февраль[[#This Row],[Дата]]="","",M21) -> 500 | H22: 697 | I22: 697 | J22: =IFERROR(IF(W22="",Февраль[[#This Row],[Показание счетчика моточасов спецоборудования на конец дня, м/ч]],Февраль[[#This Row],[Показание счетчика моточасов спецоборудования на конец дня, м/ч]]+1)-Февраль[[#This Row],[Показание счетчика моточасов спецоборудования на начало дня, м/ч]],"") -> 0 | L22: =IF(Февраль[[#This Row],[Работа спецоборудования за день, м/ч]]="","",Февраль[[#This Row],[Работа спецоборудования за день, м/ч]]*$Z$2) -> 0 | M22: =IFERROR(IF(VLOOKUP([Дата],S$2:U$3,3),IFERROR(IF(U22="",Февраль[[#This Row],[Выдано топливо, литр]],Февраль[[#This Row],[Выдано топливо, литр]]+U22)+Февраль[[#This Row],[Остаток топлива в баке на начало дня, литр]]-Февраль[[#This Row],[Фактический расход топлива, литр]],""),""),"") -> 500 | N22: =IFERROR(ROUND((Февраль[[#This Row],[Пройдено за день, км]]*0.01*$Y$2+Февраль[[#This Row],[Расход топлива на работу спецоборудования, литр]]),3)+X22,"") -> 0 | O22: =IFERROR(IF(Февраль[[#Totals],[Выдано топливо, литр]]=0,0,(ROUND(Февраль[[#This Row],[Расход топлива по норме, литр]]/IF(DAY([Дата])<=18,$W$2,$W$3),0)))+Y22,"") -> 0 | P22: =IFERROR(Февраль[[#This Row],[Фактический расход топлива, литр]]-Февраль[[#This Row],[Расход топлива по норме, литр]],"") -> 0 | R22: =Февраль[[#This Row],[Дата]] -> 2018-02-16 | Z22: =Февраль[[#This Row],[Дата]] -> 2018-02-16
A23: =IFERROR(DATEVALUE((COUNT($A$6:A22)+1)&$P$1&$I$4),"") -> 2018-02-17 | C23: 211745 | D23: 211745 | E23: =IFERROR(Февраль[[#This Row],[Показание одометра машины на конец дня, км]]-Февраль[[#This Row],[Показание одометра машины на начало дня, км]]+T23,"") -> 0 | F23: =IF(Февраль[[#This Row],[Дата]]="","",SUMPRODUCT([1]Февраль!$E$4:$E$153*([1]Февраль!$G$4:$G$153=$O$4)*([1]Февраль!$D$4:$D$153=Февраль[[#This Row],[Дата]]))) -> 0 | G23: =IF(Февраль[[#This Row],[Дата]]="","",M22) -> 500 | H23: 697 | I23: 697 | J23: =IFERROR(IF(W23="",Февраль[[#This Row],[Показание счетчика моточасов спецоборудования на конец дня, м/ч]],Февраль[[#This Row],[Показание счетчика моточасов спецоборудования на конец дня, м/ч]]+1)-Февраль[[#This Row],[Показание счетчика моточасов спецоборудования на начало дня, м/ч]],"") -> 0 | L23: =IF(Февраль[[#This Row],[Работа спецоборудования за день, м/ч]]="","",Февраль[[#This Row],[Работа спецоборудования за день, м/ч]]*$Z$2) -> 0 | M23: =IFERROR(IF(VLOOKUP([Дата],S$2:U$3,3),IFERROR(IF(U23="",Февраль[[#This Row],[Выдано топливо, литр]],Февраль[[#This Row],[Выдано топливо, литр]]+U23)+Февраль[[#This Row],[Остаток топлива в баке на начало дня, литр]]-Февраль[[#This Row],[Фактический расход топлива, литр]],""),""),"") -> 500 | N23: =IFERROR(ROUND((Февраль[[#This Row],[Пройдено за день, км]]*0.01*$Y$2+Февраль[[#This Row],[Расход топлива на работу спецоборудования, литр]]),3)+X23,"") -> 0 | O23: =IFERROR(IF(Февраль[[#Totals],[Выдано топливо, литр]]=0,0,(ROUND(Февраль[[#This Row],[Расход топлива по норме, литр]]/IF(DAY([Дата])<=18,$W$2,$W$3),0)))+Y23,"") -> 0 | P23: =IFERROR(Февраль[[#This Row],[Фактический расход топлива, литр]]-Февраль[[#This Row],[Расход топлива по норме, литр]],"") -> 0 | R23: =Февраль[[#This Row],[Дата]] -> 2018-02-17 | Z23: =Февраль[[#This Row],[Дата]] -> 2018-02-17
A24: =IFERROR(DATEVALUE((COUNT($A$6:A23)+1)&$P$1&$I$4),"") -> 2018-02-18 | C24: 211745 | D24: 211745 | E24: =IFERROR(Февраль[[#This Row],[Показание одометра машины на конец дня, км]]-Февраль[[#This Row],[Показание одометра машины на начало дня, км]]+T24,"") -> 0 | F24: =IF(Февраль[[#This Row],[Дата]]="","",SUMPRODUCT([1]Февраль!$E$4:$E$153*([1]Февраль!$G$4:$G$153=$O$4)*([1]Февраль!$D$4:$D$153=Февраль[[#This Row],[Дата]]))) -> 0 | G24: =IF(Февраль[[#This Row],[Дата]]="","",M23) -> 500 | H24: 697 | I24: 697 | J24: =IFERROR(IF(W24="",Февраль[[#This Row],[Показание счетчика моточасов спецоборудования на конец дня, м/ч]],Февраль[[#This Row],[Показание счетчика моточасов спецоборудования на конец дня, м/ч]]+1)-Февраль[[#This Row],[Показание счетчика моточасов спецоборудования на начало дня, м/ч]],"") -> 0 | L24: =IF(Февраль[[#This Row],[Работа спецоборудования за день, м/ч]]="","",Февраль[[#This Row],[Работа спецоборудования за день, м/ч]]*$Z$2) -> 0 | M24: =IFERROR(IF(VLOOKUP([Дата],S$2:U$3,3),IFERROR(IF(U24="",Февраль[[#This Row],[Выдано топливо, литр]],Февраль[[#This Row],[Выдано топливо, литр]]+U24)+Февраль[[#This Row],[Остаток топлива в баке на начало дня, литр]]-Февраль[[#This Row],[Фактический расход топлива, литр]],""),""),"") -> 500 | N24: =IFERROR(ROUND((Февраль[[#This Row],[Пройдено за день, км]]*0.01*$Y$2+Февраль[[#This Row],[Расход топлива на работу спецоборудования, литр]]),3)+X24,"") -> 0 | O24: =IFERROR(IF(Февраль[[#Totals],[Выдано топливо, литр]]=0,0,(ROUND(Февраль[[#This Row],[Расход топлива по норме, литр]]/IF(DAY([Дата])<=18,$W$2,$W$3),0)))+Y24,"") -> 0 | P24: =IFERROR(Февраль[[#This Row],[Фактический расход топлива, литр]]-Февраль[[#This Row],[Расход топлива по норме, литр]],"") -> 0 | R24: =Февраль[[#This Row],[Дата]] -> 2018-02-18 | Z24: =Февраль[[#This Row],[Дата]] -> 2018-02-18
A25: =IFERROR(DATEVALUE((COUNT($A$6:A24)+1)&$P$1&$I$4),"") -> 2018-02-19 | C25: 211745 | D25: 211745 | E25: =IFERROR(Февраль[[#This Row],[Показание одометра машины на конец дня, км]]-Февраль[[#This Row],[Показание одометра машины на начало дня, км]]+T25,"") -> 0 | F25: =IF(Февраль[[#This Row],[Дата]]="","",SUMPRODUCT([1]Февраль!$E$4:$E$153*([1]Февраль!$G$4:$G$153=$O$4)*([1]Февраль!$D$4:$D$153=Февраль[[#This Row],[Дата]]))) -> 0 | G25: =IF(Февраль[[#This Row],[Дата]]="","",M24) -> 500 | H25: 697 | I25: 697 | J25: =IFERROR(IF(W25="",Февраль[[#This Row],[Показание счетчика моточасов спецоборудования на конец дня, м/ч]],Февраль[[#This Row],[Показание счетчика моточасов спецоборудования на конец дня, м/ч]]+1)-Февраль[[#This Row],[Показание счетчика моточасов спецоборудования на начало дня, м/ч]],"") -> 0 | L25: =IF(Февраль[[#This Row],[Работа спецоборудования за день, м/ч]]="","",Февраль[[#This Row],[Работа спецоборудования за день, м/ч]]*$Z$2) -> 0 | M25: =IFERROR(IF(VLOOKUP([Дата],S$2:U$3,3),IFERROR(IF(U25="",Февраль[[#This Row],[Выдано топливо, литр]],Февраль[[#This Row],[Выдано топливо, литр]]+U25)+Февраль[[#This Row],[Остаток топлива в баке на начало дня, литр]]-Февраль[[#This Row],[Фактический расход топлива, литр]],""),""),"") -> 500 | N25: =IFERROR(ROUND((Февраль[[#This Row],[Пройдено за день, км]]*0.01*$Y$2+Февраль[[#This Row],[Расход топлива на работу спецоборудования, литр]]),3)+X25,"") -> 0 | O25: =IFERROR(IF(Февраль[[#Totals],[Выдано топливо, литр]]=0,0,(ROUND(Февраль[[#This Row],[Расход топлива по норме, литр]]/IF(DAY([Дата])<=18,$W$2,$W$3),0)))+Y25,"") -> 0 | P25: =IFERROR(Февраль[[#This Row],[Фактический расход топлива, литр]]-Февраль[[#This Row],[Расход топлива по норме, литр]],"") -> 0 | R25: =Февраль[[#This Row],[Дата]] -> 2018-02-19 | Z25: =Февраль[[#This Row],[Дата]] -> 2018-02-19
A26: =IFERROR(DATEVALUE((COUNT($A$6:A25)+1)&$P$1&$I$4),"") -> 2018-02-20 | C26: 211745 | D26: 211745 | E26: =IFERROR(Февраль[[#This Row],[Показание одометра машины на конец дня, км]]-Февраль[[#This Row],[Показание одометра машины на начало дня, км]]+T26,"") -> 0 | F26: =IF(Февраль[[#This Row],[Дата]]="","",SUMPRODUCT([1]Февраль!$E$4:$E$153*([1]Февраль!$G$4:$G$153=$O$4)*([1]Февраль!$D$4:$D$153=Февраль[[#This Row],[Дата]]))) -> 0 | G26: =IF(Февраль[[#This Row],[Дата]]="","",M25) -> 500 | H26: 697 | I26: 697 | J26: =IFERROR(IF(W26="",Февраль[[#This Row],[Показание счетчика моточасов спецоборудования на конец дня, м/ч]],Февраль[[#This Row],[Показание счетчика моточасов спецоборудования на конец дня, м/ч]]+1)-Февраль[[#This Row],[Показание счетчика моточасов спецоборудования на начало дня, м/ч]],"") -> 0 | L26: =IF(Февраль[[#This Row],[Работа спецоборудования за день, м/ч]]="","",Февраль[[#This Row],[Работа спецоборудования за день, м/ч]]*$Z$2) -> 0 | M26: =IFERROR(IF(VLOOKUP([Дата],S$2:U$3,3),IFERROR(IF(U26="",Февраль[[#This Row],[Выдано топливо, литр]],Февраль[[#This Row],[Выдано топливо, литр]]+U26)+Февраль[[#This Row],[Остаток топлива в баке на начало дня, литр]]-Февраль[[#This Row],[Фактический расход топлива, литр]],""),""),"") -> 500 | N26: =IFERROR(ROUND((Февраль[[#This Row],[Пройдено за день, км]]*0.01*$Y$2+Февраль[[#This Row],[Расход топлива на работу спецоборудования, литр]]),3)+X26,"") -> 0 | O26: =IFERROR(IF(Февраль[[#Totals],[Выдано топливо, литр]]=0,0,(ROUND(Февраль[[#This Row],[Расход топлива по норме, литр]]/IF(DAY([Дата])<=18,$W$2,$W$3),0)))+Y26,"") -> 0 | P26: =IFERROR(Февраль[[#This Row],[Фактический расход топлива, литр]]-Февраль[[#This Row],[Расход топлива по норме, литр]],"") -> 0 | R26: =Февраль[[#This Row],[Дата]] -> 2018-02-20 | Z26: =Февраль[[#This Row],[Дата]] -> 2018-02-20
A27: =IFERROR(DATEVALUE((COUNT($A$6:A26)+1)&$P$1&$I$4),"") -> 2018-02-21 | C27: 211745 | D27: 211745 | E27: =IFERROR(Февраль[[#This Row],[Показание одометра машины на конец дня, км]]-Февраль[[#This Row],[Показание одометра машины на начало дня, км]]+T27,"") -> 0 | F27: =IF(Февраль[[#This Row],[Дата]]="","",SUMPRODUCT([1]Февраль!$E$4:$E$153*([1]Февраль!$G$4:$G$153=$O$4)*([1]Февраль!$D$4:$D$153=Февраль[[#This Row],[Дата]]))) -> 0 | G27: =IF(Февраль[[#This Row],[Дата]]="","",M26) -> 500 | H27: 697 | I27: 697 | J27: =IFERROR(IF(W27="",Февраль[[#This Row],[Показание счетчика моточасов спецоборудования на конец дня, м/ч]],Февраль[[#This Row],[Показание счетчика моточасов спецоборудования на конец дня, м/ч]]+1)-Февраль[[#This Row],[Показание счетчика моточасов спецоборудования на начало дня, м/ч]],"") -> 0 | L27: =IF(Февраль[[#This Row],[Работа спецоборудования за день, м/ч]]="","",Февраль[[#This Row],[Работа спецоборудования за день, м/ч]]*$Z$2) -> 0 | M27: =IFERROR(IF(VLOOKUP([Дата],S$2:U$3,3),IFERROR(IF(U27="",Февраль[[#This Row],[Выдано топливо, литр]],Февраль[[#This Row],[Выдано топливо, литр]]+U27)+Февраль[[#This Row],[Остаток топлива в баке на начало дня, литр]]-Февраль[[#This Row],[Фактический расход топлива, литр]],""),""),"") -> 500 | N27: =IFERROR(ROUND((Февраль[[#This Row],[Пройдено за день, км]]*0.01*$Y$2+Февраль[[#This Row],[Расход топлива на работу спецоборудования, литр]]),3)+X27,"") -> 0 | O27: =IFERROR(IF(Февраль[[#Totals],[Выдано топливо, литр]]=0,0,(ROUND(Февраль[[#This Row],[Расход топлива по норме, литр]]/IF(DAY([Дата])<=18,$W$2,$W$3),0)))+Y27,"") -> 0 | P27: =IFERROR(Февраль[[#This Row],[Фактический расход топлива, литр]]-Февраль[[#This Row],[Расход топлива по норме, литр]],"") -> 0 | R27: =Февраль[[#This Row],[Дата]] -> 2018-02-21 | Z27: =Февраль[[#This Row],[Дата]] -> 2018-02-21
A28: =IFERROR(DATEVALUE((COUNT($A$6:A27)+1)&$P$1&$I$4),"") -> 2018-02-22 | C28: 211745 | D28: 211745 | E28: =IFERROR(Февраль[[#This Row],[Показание одометра машины на конец дня, км]]-Февраль[[#This Row],[Показание одометра машины на начало дня, км]]+T28,"") -> 0 | F28: =IF(Февраль[[#This Row],[Дата]]="","",SUMPRODUCT([1]Февраль!$E$4:$E$153*([1]Февраль!$G$4:$G$153=$O$4)*([1]Февраль!$D$4:$D$153=Февраль[[#This Row],[Дата]]))) -> 0 | G28: =IF(Февраль[[#This Row],[Дата]]="","",M27) -> 500 | H28: 697 | I28: 697 | J28: =IFERROR(IF(W28="",Февраль[[#This Row],[Показание счетчика моточасов спецоборудования на конец дня, м/ч]],Февраль[[#This Row],[Показание счетчика моточасов спецоборудования на конец дня, м/ч]]+1)-Февраль[[#This Row],[Показание счетчика моточасов спецоборудования на начало дня, м/ч]],"") -> 0 | L28: =IF(Февраль[[#This Row],[Работа спецоборудования за день, м/ч]]="","",Февраль[[#This Row],[Работа спецоборудования за день, м/ч]]*$Z$2) -> 0 | M28: =IFERROR(IF(VLOOKUP([Дата],S$2:U$3,3),IFERROR(IF(U28="",Февраль[[#This Row],[Выдано топливо, литр]],Февраль[[#This Row],[Выдано топливо, литр]]+U28)+Февраль[[#This Row],[Остаток топлива в баке на начало дня, литр]]-Февраль[[#This Row],[Фактический расход топлива, литр]],""),""),"") -> 500 | N28: =IFERROR(ROUND((Февраль[[#This Row],[Пройдено за день, км]]*0.01*$Y$2+Февраль[[#This Row],[Расход топлива на работу спецоборудования, литр]]),3)+X28,"") -> 0 | O28: =IFERROR(IF(Февраль[[#Totals],[Выдано топливо, литр]]=0,0,(ROUND(Февраль[[#This Row],[Расход топлива по норме, литр]]/IF(DAY([Дата])<=18,$W$2,$W$3),0)))+Y28,"") -> 0 | P28: =IFERROR(Февраль[[#This Row],[Фактический расход топлива, литр]]-Февраль[[#This Row],[Расход топлива по норме, литр]],"") -> 0 | R28: =Февраль[[#This Row],[Дата]] -> 2018-02-22 | Z28: =Февраль[[#This Row],[Дата]] -> 2018-02-22
A29: =IFERROR(DATEVALUE((COUNT($A$6:A28)+1)&$P$1&$I$4),"") -> 2018-02-23 | C29: 211745 | D29: 211745 | E29: =IFERROR(Февраль[[#This Row],[Показание одометра машины на конец дня, км]]-Февраль[[#This Row],[Показание одометра машины на начало дня, км]]+T29,"") -> 0 | F29: =IF(Февраль[[#This Row],[Дата]]="","",SUMPRODUCT([1]Февраль!$E$4:$E$153*([1]Февраль!$G$4:$G$153=$O$4)*([1]Февраль!$D$4:$D$153=Февраль[[#This Row],[Дата]]))) -> 0 | G29: =IF(Февраль[[#This Row],[Дата]]="","",M28) -> 500 | H29: 697 | I29: 697 | J29: =IFERROR(IF(W29="",Февраль[[#This Row],[Показание счетчика моточасов спецоборудования на конец дня, м/ч]],Февраль[[#This Row],[Показание счетчика моточасов спецоборудования на конец дня, м/ч]]+1)-Февраль[[#This Row],[Показание счетчика моточасов спецоборудования на начало дня, м/ч]],"") -> 0 | L29: =IF(Февраль[[#This Row],[Работа спецоборудования за день, м/ч]]="","",Февраль[[#This Row],[Работа спецоборудования за день, м/ч]]*$Z$2) -> 0 | M29: =IFERROR(IF(VLOOKUP([Дата],S$2:U$3,3),IFERROR(IF(U29="",Февраль[[#This Row],[Выдано топливо, литр]],Февраль[[#This Row],[Выдано топливо, литр]]+U29)+Февраль[[#This Row],[Остаток топлива в баке на начало дня, литр]]-Февраль[[#This Row],[Фактический расход топлива, литр]],""),""),"") -> 500 | N29: =IFERROR(ROUND((Февраль[[#This Row],[Пройдено за день, км]]*0.01*$Y$2+Февраль[[#This Row],[Расход топлива на работу спецоборудования, литр]]),3)+X29,"") -> 0 | O29: =IFERROR(IF(Февраль[[#Totals],[Выдано топливо, литр]]=0,0,(ROUND(Февраль[[#This Row],[Расход топлива по норме, литр]]/IF(DAY([Дата])<=18,$W$2,$W$3),0)))+Y29,"") -> 0 | P29: =IFERROR(Февраль[[#This Row],[Фактический расход топлива, литр]]-Февраль[[#This Row],[Расход топлива по норме, литр]],"") -> 0 | R29: =Февраль[[#This Row],[Дата]] -> 2018-02-23 | Z29: =Февраль[[#This Row],[Дата]] -> 2018-02-23
A30: =IFERROR(DATEVALUE((COUNT($A$6:A29)+1)&$P$1&$I$4),"") -> 2018-02-24 | C30: 211745 | D30: 211745 | E30: =IFERROR(Февраль[[#This Row],[Показание одометра машины на конец дня, км]]-Февраль[[#This Row],[Показание одометра машины на начало дня, км]]+T30,"") -> 0 | F30: =IF(Февраль[[#This Row],[Дата]]="","",SUMPRODUCT([1]Февраль!$E$4:$E$153*([1]Февраль!$G$4:$G$153=$O$4)*([1]Февраль!$D$4:$D$153=Февраль[[#This Row],[Дата]]))) -> 0 | G30: =IF(Февраль[[#This Row],[Дата]]="","",M29) -> 500 | H30: 697 | I30: 697 | J30: =IFERROR(IF(W30="",Февраль[[#This Row],[Показание счетчика моточасов спецоборудования на конец дня, м/ч]],Февраль[[#This Row],[Показание счетчика моточасов спецоборудования на конец дня, м/ч]]+1)-Февраль[[#This Row],[Показание счетчика моточасов спецоборудования на начало дня, м/ч]],"") -> 0 | L30: =IF(Февраль[[#This Row],[Работа спецоборудования за день, м/ч]]="","",Февраль[[#This Row],[Работа спецоборудования за день, м/ч]]*$Z$2) -> 0 | M30: =IFERROR(IF(VLOOKUP([Дата],S$2:U$3,3),IFERROR(IF(U30="",Февраль[[#This Row],[Выдано топливо, литр]],Февраль[[#This Row],[Выдано топливо, литр]]+U30)+Февраль[[#This Row],[Остаток топлива в баке на начало дня, литр]]-Февраль[[#This Row],[Фактический расход топлива, литр]],""),""),"") -> 500 | N30: =IFERROR(ROUND((Февраль[[#This Row],[Пройдено за день, км]]*0.01*$Y$2+Февраль[[#This Row],[Расход топлива на работу спецоборудования, литр]]),3)+X30,"") -> 0 | O30: =IFERROR(IF(Февраль[[#Totals],[Выдано топливо, литр]]=0,0,(ROUND(Февраль[[#This Row],[Расход топлива по норме, литр]]/IF(DAY([Дата])<=18,$W$2,$W$3),0)))+Y30,"") -> 0 | P30: =IFERROR(Февраль[[#This Row],[Фактический расход топлива, литр]]-Февраль[[#This Row],[Расход топлива по норме, литр]],"") -> 0 | R30: =Февраль[[#This Row],[Дата]] -> 2018-02-24 | Z30: =Февраль[[#This Row],[Дата]] -> 2018-02-24
A31: =IFERROR(DATEVALUE((COUNT($A$6:A30)+1)&$P$1&$I$4),"") -> 2018-02-25 | C31: 211745 | D31: 211745 | E31: =IFERROR(Февраль[[#This Row],[Показание одометра машины на конец дня, км]]-Февраль[[#This Row],[Показание одометра машины на начало дня, км]]+T31,"") -> 0 | F31: =IF(Февраль[[#This Row],[Дата]]="","",SUMPRODUCT([1]Февраль!$E$4:$E$153*([1]Февраль!$G$4:$G$153=$O$4)*([1]Февраль!$D$4:$D$153=Февраль[[#This Row],[Дата]]))) -> 0 | G31: =IF(Февраль[[#This Row],[Дата]]="","",M30) -> 500 | H31: 697 | I31: 697 | J31: =IFERROR(IF(W31="",Февраль[[#This Row],[Показание счетчика моточасов спецоборудования на конец дня, м/ч]],Февраль[[#This Row],[Показание счетчика моточасов спецоборудования на конец дня, м/ч]]+1)-Февраль[[#This Row],[Показание счетчика моточасов спецоборудования на начало дня, м/ч]],"") -> 0 | K31: 0 | L31: =IF(Февраль[[#This Row],[Работа спецоборудования за день, м/ч]]="","",Февраль[[#This Row],[Работа спецоборудования за день, м/ч]]*$Z$2) -> 0 | M31: =IFERROR(IF(VLOOKUP([Дата],S$2:U$3,3),IFERROR(IF(U31="",Февраль[[#This Row],[Выдано топливо, литр]],Февраль[[#This Row],[Выдано топливо, литр]]+U31)+Февраль[[#This Row],[Остаток топлива в баке на начало дня, литр]]-Февраль[[#This Row],[Фактический расход топлива, литр]],""),""),"") -> 500 | N31: =IFERROR(ROUND((Февраль[[#This Row],[Пройдено за день, км]]*0.01*$Y$2+Февраль[[#This Row],[Расход топлива на работу спецоборудования, литр]]),3)+X31,"") -> 0 | O31: =IFERROR(IF(Февраль[[#Totals],[Выдано топливо, литр]]=0,0,(ROUND(Февраль[[#This Row],[Расход топлива по норме, литр]]/IF(DAY([Дата])<=18,$W$2,$W$3),0)))+Y31,"") -> 0 | P31: =IFERROR(Февраль[[#This Row],[Фактический расход топлива, литр]]-Февраль[[#This Row],[Расход топлива по норме, литр]],"") -> 0 | R31: =Февраль[[#This Row],[Дата]] -> 2018-02-25 | Z31: =Февраль[[#This Row],[Дата]] -> 2018-02-25
A32: =IFERROR(DATEVALUE((COUNT($A$6:A31)+1)&$P$1&$I$4),"") -> 2018-02-26 | B32: Никляев В.А. | C32: 211745 | D32: 211915 | E32: =IFERROR(Февраль[[#This Row],[Показание одометра машины на конец дня, км]]-Февраль[[#This Row],[Показание одометра машины на начало дня, км]]+T32,"") -> 170 | F32: =IF(Февраль[[#This Row],[Дата]]="","",SUMPRODUCT([1]Февраль!$E$4:$E$153*([1]Февраль!$G$4:$G$153=$O$4)*([1]Февраль!$D$4:$D$153=Февраль[[#This Row],[Дата]]))) -> 0 | G32: =IF(Февраль[[#This Row],[Дата]]="","",M31) -> 500 | H32: 697 | I32: 699 | J32: =IFERROR(IF(W32="",Февраль[[#This Row],[Показание счетчика моточасов спецоборудования на конец дня, м/ч]],Февраль[[#This Row],[Показание счетчика моточасов спецоборудования на конец дня, м/ч]]+1)-Февраль[[#This Row],[Показание счетчика моточасов спецоборудования на начало дня, м/ч]],"") -> 2 | K32: 1 | L32: =IF(Февраль[[#This Row],[Работа спецоборудования за день, м/ч]]="","",Февраль[[#This Row],[Работа спецоборудования за день, м/ч]]*$Z$2) -> 12.1 | M32: =IFERROR(IF(VLOOKUP([Дата],S$2:U$3,3),IFERROR(IF(U32="",Февраль[[#This Row],[Выдано топливо, литр]],Февраль[[#This Row],[Выдано топливо, литр]]+U32)+Февраль[[#This Row],[Остаток топлива в баке на начало дня, литр]]-Февраль[[#This Row],[Фактический расход топлива, литр]],""),""),"") -> 409 | N32: =IFERROR(ROUND((Февраль[[#This Row],[Пройдено за день, км]]*0.01*$Y$2+Февраль[[#This Row],[Расход топлива на работу спецоборудования, литр]]),3)+X32,"") -> 99.728 | O32: =IFERROR(IF(Февраль[[#Totals],[Выдано топливо, литр]]=0,0,(ROUND(Февраль[[#This Row],[Расход топлива по норме, литр]]/IF(DAY([Дата])<=18,$W$2,$W$3),0)))+Y32,"") -> 91 | P32: =IFERROR(Февраль[[#This Row],[Фактический расход топлива, литр]]-Февраль[[#This Row],[Расход топлива по норме, литр]],"") -> -8.728 | R32: =Февраль[[#This Row],[Дата]] -> 2018-02-26 | Z32: =Февраль[[#This Row],[Дата]] -> 2018-02-26
A33: =IFERROR(DATEVALUE((COUNT($A$6:A32)+1)&$P$1&$I$4),"") -> 2018-02-27 | B33: Никляев В.А. | C33: 211915 | D33: 211991 | E33: =IFERROR(Февраль[[#This Row],[Показание одометра машины на конец дня, км]]-Февраль[[#This Row],[Показание одометра машины на начало дня, км]]+T33,"") -> 76 | F33: =IF(Февраль[[#This Row],[Дата]]="","",SUMPRODUCT([1]Февраль!$E$4:$E$153*([1]Февраль!$G$4:$G$153=$O$4)*([1]Февраль!$D$4:$D$153=Февраль[[#This Row],[Дата]]))) -> 0 | G33: =IF(Февраль[[#This Row],[Дата]]="","",M32) -> 409 | H33: 699 | I33: 703 | J33: =IFERROR(IF(W33="",Февраль[[#This Row],[Показание счетчика моточасов спецоборудования на конец дня, м/ч]],Февраль[[#This Row],[Показание счетчика моточасов спецоборудования на конец дня, м/ч]]+1)-Февраль[[#This Row],[Показание счетчика моточасов спецоборудования на начало дня, м/ч]],"") -> 4 | K33: 2 | L33: =IF(Февраль[[#This Row],[Работа спецоборудования за день, м/ч]]="","",Февраль[[#This Row],[Работа спецоборудования за день, м/ч]]*$Z$2) -> 24.2 | M33: =IFERROR(IF(VLOOKUP([Дата],S$2:U$3,3),IFERROR(IF(U33="",Февраль[[#This Row],[Выдано топливо, литр]],Февраль[[#This Row],[Выдано топливо, литр]]+U33)+Февраль[[#This Row],[Остаток топлива в баке на начало дня, литр]]-Февраль[[#This Row],[Фактический расход топлива, литр]],""),""),"") -> 351 | N33: =IFERROR(ROUND((Февраль[[#This Row],[Пройдено за день, км]]*0.01*$Y$2+Февраль[[#This Row],[Расход топлива на работу спецоборудования, литр]]),3)+X33,"") -> 63.375 | O33: =IFERROR(IF(Февраль[[#Totals],[Выдано топливо, литр]]=0,0,(ROUND(Февраль[[#This Row],[Расход топлива по норме, литр]]/IF(DAY([Дата])<=18,$W$2,$W$3),0)))+Y33,"") -> 58 | P33: =IFERROR(Февраль[[#This Row],[Фактический расход топлива, литр]]-Февраль[[#This Row],[Расход топлива по норме, литр]],"") -> -5.375 | R33: =Февраль[[#This Row],[Дата]] -> 2018-02-27 | Z33: =Февраль[[#This Row],[Дата]] -> 2018-02-27
A34: =IFERROR(DATEVALUE((COUNT($A$6:A33)+1)&$P$1&$I$4),"") -> 2018-02-28 | B34: Никляев В.А. | C34: 211991 | D34: 212252 | E34: =IFERROR(Февраль[[#This Row],[Показание одометра машины на конец дня, км]]-Февраль[[#This Row],[Показание одометра машины на начало дня, км]]+T34,"") -> 261 | F34: =IF(Февраль[[#This Row],[Дата]]="","",SUMPRODUCT([1]Февраль!$E$4:$E$153*([1]Февраль!$G$4:$G$153=$O$4)*([1]Февраль!$D$4:$D$153=Февраль[[#This Row],[Дата]]))) -> 300 | G34: =IF(Февраль[[#This Row],[Дата]]="","",M33) -> 351 | H34: 703 | I34: 708 | J34: =IFERROR(IF(W34="",Февраль[[#This Row],[Показание счетчика моточасов спецоборудования на конец дня, м/ч]],Февраль[[#This Row],[Показание счетчика моточасов спецоборудования на конец дня, м/ч]]+1)-Февраль[[#This Row],[Показание счетчика моточасов спецоборудования на начало дня, м/ч]],"") -> 5 | K34: 3 | L34: =IF(Февраль[[#This Row],[Работа спецоборудования за день, м/ч]]="","",Февраль[[#This Row],[Работа спецоборудования за день, м/ч]]*$Z$2) -> 30.25 | M34: =IFERROR(IF(VLOOKUP([Дата],S$2:U$3,3),IFERROR(IF(U34="",Февраль[[#This Row],[Выдано топливо, литр]],Февраль[[#This Row],[Выдано топливо, литр]]+U34)+Февраль[[#This Row],[Остаток топлива в баке на начало дня, литр]]-Февраль[[#This Row],[Фактический расход топлива, литр]],""),""),"") -> 500 | N34: =IFERROR(ROUND((Февраль[[#This Row],[Пройдено за день, км]]*0.01*$Y$2+Февраль[[#This Row],[Расход топлива на работу спецоборудования, литр]]),3)+X34,"") -> 164.785 | O34: =IFERROR(IF(Февраль[[#Totals],[Выдано топливо, литр]]=0,0,(ROUND(Февраль[[#This Row],[Расход топлива по норме, литр]]/IF(DAY([Дата])<=18,$W$2,$W$3),0)))+Y34,"") -> 151 | P34: =IFERROR(Февраль[[#This Row],[Фактический расход топлива, литр]]-Февраль[[#This Row],[Расход топлива по норме, литр]],"") -> -13.785 | R34: =Февраль[[#This Row],[Дата]] -> 2018-02-28 | Z34: =Февраль[[#This Row],[Дата]] -> 2018-02-28
A35: =IFERROR(DATEVALUE((COUNT($A$6:A34)+1)&$P$1&$I$4),"") ->  | E35: =IFERROR(Февраль[[#This Row],[Показание одометра машины на конец дня, км]]-Февраль[[#This Row],[Показание одометра машины на начало дня, км]]+T35,"") ->  | F35: =IF(Февраль[[#This Row],[Дата]]="","",SUMPRODUCT([1]Февраль!$E$4:$E$153*([1]Февраль!$G$4:$G$153=$O$4)*([1]Февраль!$D$4:$D$153=Февраль[[#This Row],[Дата]]))) ->  | G35: =IF(Февраль[[#This Row],[Дата]]="","",M34) ->  | J35: =IFERROR(IF(W35="",Февраль[[#This Row],[Показание счетчика моточасов спецоборудования на конец дня, м/ч]],Февраль[[#This Row],[Показание счетчика моточасов спецоборудования на конец дня, м/ч]]+1)-Февраль[[#This Row],[Показание счетчика моточасов спецоборудования на начало дня, м/ч]],"") ->  | L35: =IF(Февраль[[#This Row],[Работа спецоборудования за день, м/ч]]="","",Февраль[[#This Row],[Работа спецоборудования за день, м/ч]]*$Z$2) ->  | M35: =IFERROR(IF(VLOOKUP([Дата],S$2:U$3,3),IFERROR(IF(U35="",Февраль[[#This Row],[Выдано топливо, литр]],Февраль[[#This Row],[Выдано топливо, литр]]+U35)+Февраль[[#This Row],[Остаток топлива в баке на начало дня, литр]]-Февраль[[#This Row],[Фактический расход топлива, литр]],""),""),"") ->  | N35: =IFERROR(ROUND((Февраль[[#This Row],[Пройдено за день, км]]*0.01*$Y$2+Февраль[[#This Row],[Расход топлива на работу спецоборудования, литр]]),3)+X35,"") ->  | O35: =IFERROR(IF(Февраль[[#Totals],[Выдано топливо, литр]]=0,0,(ROUND(Февраль[[#This Row],[Расход топлива по норме, литр]]/IF(DAY([Дата])<=18,$W$2,$W$3),0)))+Y35,"") ->  | P35: =IFERROR(Февраль[[#This Row],[Фактический расход топлива, литр]]-Февраль[[#This Row],[Расход топлива по норме, литр]],"") ->  | R35: =Февраль[[#This Row],[Дата]] ->  | Z35: =Февраль[[#This Row],[Дата]] -> 
A36: =IFERROR(DATEVALUE((COUNT($A$6:A35)+1)&$P$1&$I$4),"") ->  | E36: =IFERROR(Февраль[[#This Row],[Показание одометра машины на конец дня, км]]-Февраль[[#This Row],[Показание одометра машины на начало дня, км]]+T36,"") ->  | F36: =IF(Февраль[[#This Row],[Дата]]="","",SUMPRODUCT([1]Февраль!$E$4:$E$153*([1]Февраль!$G$4:$G$153=$O$4)*([1]Февраль!$D$4:$D$153=Февраль[[#This Row],[Дата]]))) ->  | G36: =IF(Февраль[[#This Row],[Дата]]="","",M35) ->  | J36: =IFERROR(IF(W36="",Февраль[[#This Row],[Показание счетчика моточасов спецоборудования на конец дня, м/ч]],Февраль[[#This Row],[Показание счетчика моточасов спецоборудования на конец дня, м/ч]]+1)-Февраль[[#This Row],[Показание счетчика моточасов спецоборудования на начало дня, м/ч]],"") ->  | L36: =IF(Февраль[[#This Row],[Работа спецоборудования за день, м/ч]]="","",Февраль[[#This Row],[Работа спецоборудования за день, м/ч]]*$Z$2) ->  | M36: =IFERROR(IF(VLOOKUP([Дата],S$2:U$3,3),IFERROR(IF(U36="",Февраль[[#This Row],[Выдано топливо, литр]],Февраль[[#This Row],[Выдано топливо, литр]]+U36)+Февраль[[#This Row],[Остаток топлива в баке на начало дня, литр]]-Февраль[[#This Row],[Фактический расход топлива, литр]],""),""),"") ->  | N36: =IFERROR(ROUND((Февраль[[#This Row],[Пройдено за день, км]]*0.01*$Y$2+Февраль[[#This Row],[Расход топлива на работу спецоборудования, литр]]),3)+X36,"") ->  | O36: =IFERROR(IF(Февраль[[#Totals],[Выдано топливо, литр]]=0,0,(ROUND(Февраль[[#This Row],[Расход топлива по норме, литр]]/IF(DAY([Дата])<=18,$W$2,$W$3),0)))+Y36,"") ->  | P36: =IFERROR(Февраль[[#This Row],[Фактический расход топлива, литр]]-Февраль[[#This Row],[Расход топлива по норме, литр]],"") ->  | R36: =Февраль[[#This Row],[Дата]] ->  | Z36: =Февраль[[#This Row],[Дата]] -> 
A37: =IFERROR(DATEVALUE((COUNT($A$6:A36)+1)&$P$1&$I$4),"") ->  | E37: =IFERROR(Февраль[[#This Row],[Показание одометра машины на конец дня, км]]-Февраль[[#This Row],[Показание одометра машины на начало дня, км]]+T37,"") ->  | F37: =IF(Февраль[[#This Row],[Дата]]="","",SUMPRODUCT([1]Февраль!$E$4:$E$153*([1]Февраль!$G$4:$G$153=$O$4)*([1]Февраль!$D$4:$D$153=Февраль[[#This Row],[Дата]]))) ->  | G37: =IF(Февраль[[#This Row],[Дата]]="","",M36) ->  | J37: =IFERROR(IF(W37="",Февраль[[#This Row],[Показание счетчика моточасов спецоборудования на конец дня, м/ч]],Февраль[[#This Row],[Показание счетчика моточасов спецоборудования на конец дня, м/ч]]+1)-Февраль[[#This Row],[Показание счетчика моточасов спецоборудования на начало дня, м/ч]],"") ->  | L37: =IF(Февраль[[#This Row],[Работа спецоборудования за день, м/ч]]="","",Февраль[[#This Row],[Работа спецоборудования за день, м/ч]]*$Z$2) ->  | M37: =IFERROR(IF(VLOOKUP([Дата],S$2:U$3,3),IFERROR(IF(U37="",Февраль[[#This Row],[Выдано топливо, литр]],Февраль[[#This Row],[Выдано топливо, литр]]+U37)+Февраль[[#This Row],[Остаток топлива в баке на начало дня, литр]]-Февраль[[#This Row],[Фактический расход топлива, литр]],""),""),"") ->  | N37: =IFERROR(ROUND((Февраль[[#This Row],[Пройдено за день, км]]*0.01*$Y$2+Февраль[[#This Row],[Расход топлива на работу спецоборудования, литр]]),3)+X37,"") ->  | O37: =IFERROR(IF(Февраль[[#Totals],[Выдано топливо, литр]]=0,0,(ROUND(Февраль[[#This Row],[Расход топлива по норме, литр]]/IF(DAY([Дата])<=18,$W$2,$W$3),0)))+Y37,"") ->  | P37: =IFERROR(Февраль[[#This Row],[Фактический расход топлива, литр]]-Февраль[[#This Row],[Расход топлива по норме, литр]],"") ->  | R37: =Февраль[[#This Row],[Дата]] ->  | Z37: =Февраль[[#This Row],[Дата]] -> 
A38: Итог | E38: =SUBTOTAL(109,[Пройдено за день, км]) -> 1529 | F38: =SUBTOTAL(109,[Выдано топливо, литр]) -> 1050 | J38: =SUBTOTAL(109,[Работа спецоборудования за день, м/ч]) -> 37 | K38: =SUBTOTAL(109,[Количество ходок]) -> 24 | L38: =SUBTOTAL(109,[Расход топлива на работу спецоборудования, литр]) -> 223.85 | N38: =SUBTOTAL(109,[Расход топлива по норме, литр]) -> 1011.989 | O38: =SUBTOTAL(109,[Фактический расход топлива, литр]) -> 920 | P38: =SUBTOTAL(109,[Отклонение от нормы (Перерасход(+), экономия(-)), литр]) -> -91.989 | R38: 1-я пол. | S38: =SUMIFS(S$7:S$37,INDIRECT("Февраль[Дата]"),">="&$S$2,INDIRECT("Февраль[Дата]"),"<="&$T$2)+IF(MONTH($T$2)<>MONTH($S$2),INDIRECT(TEXT($A$7-1,"ММММ")&"!F38")-SUM(INDIRECT(TEXT($A$7-1,"ММММ")&"!V1:V2"))) -> 0 | T38: =SUMIFS(T$7:T$37,INDIRECT("Февраль[Дата]"),">="&$S$2,INDIRECT("Февраль[Дата]"),"<="&$T$2)+IF(MONTH($T$2)<>MONTH($S$2),INDIRECT(TEXT($A$7-1,"ММММ")&"!F38")-SUM(INDIRECT(TEXT($A$7-1,"ММММ")&"!V1:V2"))) -> 0 | U38: -130 | V38: 0 | W38: 0 | X38: -0.001 | Y38: 1 | Z38: 1-я пол.
K39: =SUMIFS(K7:K37,A7:A37,">="&$S$2,A7:A37,"<="&$T$2) -> 18 | R39: 2-я пол. | S39: =SUMIFS(S$7:S$37,INDIRECT("Февраль[Дата]"),">="&$S$3,INDIRECT("Февраль[Дата]"),"<="&$T$3)+IF(MONTH($T$3)<>MONTH($S$3),INDIRECT(TEXT($A$7-1,"ММММ")&"!F38")-SUM(INDIRECT(TEXT($A$7-1,"ММММ")&"!V1:V2"))) -> 0 | T39: =SUMIFS(T$7:T$37,INDIRECT("Февраль[Дата]"),">="&$S$3,INDIRECT("Февраль[Дата]"),"<="&$T$3)+IF(MONTH($T$3)<>MONTH($S$3),INDIRECT(TEXT($A$7-1,"ММММ")&"!F38")-SUM(INDIRECT(TEXT($A$7-1,"ММММ")&"!V1:V2"))) -> 0 | U39: 0 | V39: 0 | W39: 0 | X39: 0 | Y39: 0 | Z39: 2-я пол.
K40: =SUMIFS(K7:K37,A7:A37,">="&$S$3,A7:A37,"<="&$T$3) -> 6

Sheet Март
P1: Март | X1: Экономия | Y1: Базовая норма расхода на 100 км | Z1: Базовая норма расхода на 1 мото/час
A2: Общество с ограниченной ответственностью "Втормет Царицыно" | R2: 1-я пол. | S2: =INDIRECT(TEXT(A7-1,"ММММ")&"!T3")+1 -> 2018-03-01 | T2: 2018-03-15 | U2: =ТС!E5 -> 500 | V2: =SUMIFS(Март[Выдано топливо, литр],Март[Дата],">="&$S$2,Март[Дата],"<="&$T$2)+IF(MONTH(T2)<>MONTH(S2),INDIRECT(TEXT(A7-1,"ММММ")&"!F38")-SUM(INDIRECT(TEXT(A7-1,"ММММ")&"!V1:V2")))+SUMIFS($U$7:$U$37,Март[Дата],">="&$S$2,Март[Дата],"<="&$T$2)+IF(MONTH(T2)<>MONTH(S2),INDIRECT(TEXT(A7-1,"ММММ")&"!F38")-SUM(INDIRECT(TEXT(A7-1,"ММММ")&"!V1:V2"))) -> 1035.01 | W2: =IF(V2=0,0,(SUMIFS(N7:N37,A7:A37,">="&S2,A7:A37,"<="&T2)+SUMIFS(INDIRECT(TEXT(A7-1,"ММММ")&"!N7:N37"),INDIRECT(TEXT(A7-1,"ММММ")&"!A7:A37"),">="&S2))/(V2-U2+IF(MONTH(T2)=MONTH(S2),G7,INDEX(INDIRECT(TEXT(A7-1,"ММММ")&"!G7:G37"),DAY(S2))))) -> 1.075420527 | X2: =SUMIFS(Март[Отклонение от нормы (Перерасход(+), экономия(-)), литр],Март[Дата],">="&$S$2,Март[Дата],"<="&$T$2) -> -78.061 | Y2: =IF(Y4="Зима",VLOOKUP(Z4,Расчет[[Номер гос.регистрации / Заводской номер]:[Итога норма а/м "ЛЕТО"]],8,FALSE),VLOOKUP(Z4,Расчет[[Номер гос.регистрации / Заводской номер]:[Итога норма а/м "ЛЕТО"]],9,FALSE)) -> 51.546 | Z2: =IF(Y4="Зима",VLOOKUP(Z4,Расчет[[Номер гос.регистрации / Заводской номер]:[Итога норма а/м "ЛЕТО"]],13,FALSE),VLOOKUP(Z4,Расчет[[Номер гос.регистрации / Заводской номер]:[Итога норма а/м "ЛЕТО"]],14,FALSE)) -> 6.05
A3: Отчет водителя ломовоза с манипулятором | R3: 2-я пол. | S3: =T2+1 -> 2018-03-16 | T3: =INDEX(Март[Дата],COUNT(Март[Дата]))-T1 -> 2018-03-31 | U3: =ТС!E6 -> 500 | V3: =SUMIFS(Март[Выдано топливо, литр],Март[Дата],">="&$S$3,Март[Дата],"<="&$T$3)+IF(MONTH(T3)<>MONTH(S3),INDIRECT(TEXT(A7-1,"ММММ")&"!F38")-SUM(INDIRECT(TEXT(A7-1,"ММММ")&"!V1:V2")))+SUMIFS($U$7:$U$37,Март[Дата],">="&$S$3,Март[Дата],"<="&$T$3)+IF(MONTH(T3)<>MONTH(S3),INDIRECT(TEXT(A7-1,"ММММ")&"!F38")-SUM(INDIRECT(TEXT(A7-1,"ММММ")&"!V1:V2"))) -> 751.46 | W3: =IF(V3=0,0,(SUMIFS(N7:N37,A7:A37,">="&S3,A7:A37,"<="&T3)+SUMIFS(INDIRECT(TEXT(A7-1,"ММММ")&"!N7:N37"),INDIRECT(TEXT(A7-1,"ММММ")&"!A7:A37"),">="&S3))/(V3-U3+IF(MONTH(T3)=MONTH(S3),G7,INDEX(INDIRECT(TEXT(A7-1,"ММММ")&"!G7:G37"),DAY(S3))))) -> 0.8668565193 | X3: =SUMIFS(Март[Отклонение от нормы (Перерасход(+), экономия(-)), литр],Март[Дата],">="&$S$3,Март[Дата],"<="&$T$3) -> 100.052
H4: за | I4: 2018 | O4: т 056 вв 197 | S4: =IF(INDEX(Март[Дата],COUNT(Март[Дата]))=T3,"",T3+1) ->  | W4: =IFERROR(IF(S4="","",INDIRECT(TEXT(A7+40,"ММММ")&"!W2")),) ->  | Y4: Зима | Z4: Норма 1
A6: Дата | B6: ФИО водителя | C6: Показание одометра машины на начало дня, км | D6: Показание одометра машины на конец дня, км | E6: Пройдено за день, км | F6: Выдано топливо, литр | G6: Остаток топлива в баке на начало дня, литр | H6: Показание счетчика моточасов спецоборудования на начало дня, м/ч | I6: Показание счетчика моточасов спецоборудования на конец дня, м/ч | J6: Работа спецоборудования за день, м/ч | K6: Количество ходок | L6: Расход топлива на работу спецоборудования, литр | M6: Остаток топлива в баке на конец дня, литр | N6: Расход топлива по норме, литр | O6: Фактический расход топлива, литр | P6: Отклонение от нормы (Перерасход(+), экономия(-)), литр | R6: Дата | S6: Обнуление одометра, км | T6: Пройдено за день, км | U6: Выдано топливо, литр | V6: Обнуление счетчика моточасов спецоборудования, м/ч | W6: Работа спецоборудования за день, м/ч | X6: Расход топлива по норме, литр | Y6: Фактический расход топлива, литр | Z6: Дата
A7: =IFERROR(DATEVALUE((COUNT($A$6:A6)+1)&$P$1&$I$4),"") -> 2018-03-01 | B7: Никляев В.А. | C7: =INDEX(Февраль!D7:D37,COUNT(Февраль!D7:D37)) -> 212252 | D7: 212292 | E7: =IFERROR(Март[[#This Row],[Показание одометра машины на конец дня, км]]-Март[[#This Row],[Показание одометра машины на начало дня, км]]+T7,"") -> 40 | F7: =IF(Март[[#This Row],[Дата]]="","",SUMPRODUCT([1]Март!$E$4:$E$153*([1]Март!$G$4:$G$153=$O$4)*([1]Март!$D$4:$D$153=Март[[#This Row],[Дата]]))) -> 0 | G7: =U2 -> 500 | H7: =INDEX(Февраль!I7:I37,COUNT(Февраль!I7:I37)) -> 708 | I7: 711 | J7: =IFERROR(IF(W7="",Март[[#This Row],[Показание счетчика моточасов спецоборудования на конец дня, м/ч]],Март[[#This Row],[Показание счетчика моточасов спецоборудования на конец дня, м/ч]]+1)-Март[[#This Row],[Показание счетчика моточасов спецоборудования на начало дня, м/ч]],"") -> 3 | K7: 2 | L7: =IF(Март[[#This Row],[Работа спецоборудования за день, м/ч]]="","",Март[[#This Row],[Работа спецоборудования за день, м/ч]]*$Z$2) -> 18.15 | M7: =IFERROR(IF(VLOOKUP([Дата],S$2:U$3,3),IFERROR(IF(U7="",Март[[#This Row],[Выдано топливо, литр]],Март[[#This Row],[Выдано топливо, литр]]+U7)+Март[[#This Row],[Остаток топлива в баке на начало дня, литр]]-Март[[#This Row],[Фактический расход топлива, литр]],""),""),"") -> 464 | N7: =IFERROR(ROUND((Март[[#This Row],[Пройдено за день, км]]*0.01*$Y$2+Март[[#This Row],[Расход топлива на работу спецоборудования, литр]]),3)+X7,"") -> 38.768 | O7: =IFERROR(IF(Март[[#Totals],[Выдано топливо, литр]]=0,0,(ROUND(Март[[#This Row],[Расход топлива по норме, литр]]/IF(DAY([Дата])<=18,$W$2,$W$3),0)))+Y7,"") -> 36 | P7: =IFERROR(Март[[#This Row],[Фактический расход топлива, литр]]-Март[[#This Row],[Расход топлива по норме, литр]],"") -> -2.768 | R7: =Март[[#This Row],[Дата]] -> 2018-03-01 | Z7: =Март[[#This Row],[Дата]] -> 2018-03-01
A8: =IFERROR(DATEVALUE((COUNT($A$6:A7)+1)&$P$1&$I$4),"") -> 2018-03-02 | C8: =IFERROR(IF(INDIRECT(TEXT(A7-1,"ММММ")&"!A7:A37")="","",IF(S7="",D7,S7)),"") -> 212292 | D8: 212292 | E8: =IFERROR(Март[[#This Row],[Показание одометра машины на конец дня, км]]-Март[[#This Row],[Показание одометра машины на начало дня, км]]+T8,"") -> 0 | F8: =IF(Март[[#This Row],[Дата]]="","",SUMPRODUCT([1]Март!$E$4:$E$153*([1]Март!$G$4:$G$153=$O$4)*([1]Март!$D$4:$D$153=Март[[#This Row],[Дата]]))) -> 0 | G8: =IF(Март[[#This Row],[Дата]]="","",M7) -> 464 | H8: =IFERROR(IF(INDIRECT(TEXT(A7-1,"ММММ")&"!A7:A37")="","",IF(V7="",I7,V7)),"") -> 711 | I8: 711 | J8: =IFERROR(IF(W8="",Март[[#This Row],[Показание счетчика моточасов спецоборудования на конец дня, м/ч]],Март[[#This Row],[Показание счетчика моточасов спецоборудования на конец дня, м/ч]]+1)-Март[[#This Row],[Показание счетчика моточасов спецоборудования на начало дня, м/ч]],"") -> 0 | K8: 0 | L8: =IF(Март[[#This Row],[Работа спецоборудования за день, м/ч]]="","",Март[[#This Row],[Работа спецоборудования за день, м/ч]]*$Z$2) -> 0 | M8: =IFERROR(IF(VLOOKUP([Дата],S$2:U$3,3),IFERROR(IF(U8="",Март[[#This Row],[Выдано топливо, литр]],Март[[#This Row],[Выдано топливо, литр]]+U8)+Март[[#This Row],[Остаток топлива в баке на начало дня, литр]]-Март[[#This Row],[Фактический расход топлива, литр]],""),""),"") -> 464 | N8: =IFERROR(ROUND((Март[[#This Row],[Пройдено за день, км]]*0.01*$Y$2+Март[[#This Row],[Расход топлива на работу спецоборудования, литр]]),3)+X8,"") -> 0 | O8: =IFERROR(IF(Март[[#Totals],[Выдано топливо, литр]]=0,0,(ROUND(Март[[#This Row],[Расход топлива по норме, литр]]/IF(DAY([Дата])<=18,$W$2,$W$3),0)))+Y8,"") -> 0 | P8: =IFERROR(Март[[#This Row],[Фактический расход топлива, литр]]-Март[[#This Row],[Расход топлива по норме, литр]],"") -> 0 | R8: =Март[[#This Row],[Дата]] -> 2018-03-02 | Z8: =Март[[#This Row],[Дата]] -> 2018-03-02
A9: =IFERROR(DATEVALUE((COUNT($A$6:A8)+1)&$P$1&$I$4),"") -> 2018-03-03 | C9: =IFERROR(IF(INDIRECT(TEXT(A8-1,"ММММ")&"!A7:A37")="","",IF(S8="",D8,S8)),"") -> 212292 | D9: 212292 | E9: =IFERROR(Март[[#This Row],[Показание одометра машины на конец дня, км]]-Март[[#This Row],[Показание одометра машины на начало дня, км]]+T9,"") -> 0 | F9: =IF(Март[[#This Row],[Дата]]="","",SUMPRODUCT([1]Март!$E$4:$E$153*([1]Март!$G$4:$G$153=$O$4)*([1]Март!$D$4:$D$153=Март[[#This Row],[Дата]]))) -> 0 | G9: =IF(Март[[#This Row],[Дата]]="","",M8) -> 464 | H9: =IFERROR(IF(INDIRECT(TEXT(A8-1,"ММММ")&"!A7:A37")="","",IF(V8="",I8,V8)),"") -> 711 | I9: 711 | J9: =IFERROR(IF(W9="",Март[[#This Row],[Показание счетчика моточасов спецоборудования на конец дня, м/ч]],Март[[#This Row],[Показание счетчика моточасов спецоборудования на конец дня, м/ч]]+1)-Март[[#This Row],[Показание счетчика моточасов спецоборудования на начало дня, м/ч]],"") -> 0 | K9: 0 | L9: =IF(Март[[#This Row],[Работа спецоборудования за день, м/ч]]="","",Март[[#This Row],[Работа спецоборудования за день, м/ч]]*$Z$2) -> 0 | M9: =IFERROR(IF(VLOOKUP([Дата],S$2:U$3,3),IFERROR(IF(U9="",Март[[#This Row],[Выдано топливо, литр]],Март[[#This Row],[Выдано топливо, литр]]+U9)+Март[[#This Row],[Остаток топлива в баке на начало дня, литр]]-Март[[#This Row],[Фактический расход топлива, литр]],""),""),"") -> 464 | N9: =IFERROR(ROUND((Март[[#This Row],[Пройдено за день, км]]*0.01*$Y$2+Март[[#This Row],[Расход топлива на работу спецоборудования, литр]]),3)+X9,"") -> 0 | O9: =IFERROR(IF(Март[[#Totals],[Выдано топливо, литр]]=0,0,(ROUND(Март[[#This Row],[Расход топлива по норме, литр]]/IF(DAY([Дата])<=18,$W$2,$W$3),0)))+Y9,"") -> 0 | P9: =IFERROR(Март[[#This Row],[Фактический расход топлива, литр]]-Март[[#This Row],[Расход топлива по норме, литр]],"") -> 0 | R9: =Март[[#This Row],[Дата]] -> 2018-03-03 | Z9: =Март[[#This Row],[Дата]] -> 2018-03-03
A10: =IFERROR(DATEVALUE((COUNT($A$6:A9)+1)&$P$1&$I$4),"") -> 2018-03-04 | C10: 212292 | D10: 212292 | E10: =IFERROR(Март[[#This Row],[Показание одометра машины на конец дня, км]]-Март[[#This Row],[Показание одометра машины на начало дня, км]]+T10,"") -> 0 | F10: =IF(Март[[#This Row],[Дата]]="","",SUMPRODUCT([1]Март!$E$4:$E$153*([1]Март!$G$4:$G$153=$O$4)*([1]Март!$D$4:$D$153=Март[[#This Row],[Дата]]))) -> 0 | G10: =IF(Март[[#This Row],[Дата]]="","",M9) -> 464 | H10: 711 | I10: 711 | J10: =IFERROR(IF(W10="",Март[[#This Row],[Показание счетчика моточасов спецоборудования на конец дня, м/ч]],Март[[#This Row],[Показание счетчика моточасов спецоборудования на конец дня, м/ч]]+1)-Март[[#This Row],[Показание счетчика моточасов спецоборудования на начало дня, м/ч]],"") -> 0 | K10: 0 | L10: =IF(Март[[#This Row],[Работа спецоборудования за день, м/ч]]="","",Март[[#This Row],[Работа спецоборудования за день, м/ч]]*$Z$2) -> 0 | M10: =IFERROR(IF(VLOOKUP([Дата],S$2:U$3,3),IFERROR(IF(U10="",Март[[#This Row],[Выдано топливо, литр]],Март[[#This Row],[Выдано топливо, литр]]+U10)+Март[[#This Row],[Остаток топлива в баке на начало дня, литр]]-Март[[#This Row],[Фактический расход топлива, литр]],""),""),"") -> 464 | N10: =IFERROR(ROUND((Март[[#This Row],[Пройдено за день, км]]*0.01*$Y$2+Март[[#This Row],[Расход топлива на работу спецоборудования, литр]]),3)+X10,"") -> 0 | O10: =IFERROR(IF(Март[[#Totals],[Выдано топливо, литр]]=0,0,(ROUND(Март[[#This Row],[Расход топлива по норме, литр]]/IF(DAY([Дата])<=18,$W$2,$W$3),0)))+Y10,"") -> 0 | P10: =IFERROR(Март[[#This Row],[Фактический расход топлива, литр]]-Март[[#This Row],[Расход топлива по норме, литр]],"") -> 0 | R10: =Март[[#This Row],[Дата]] -> 2018-03-04 | Z10: =Март[[#This Row],[Дата]] -> 2018-03-04
A11: =IFERROR(DATEVALUE((COUNT($A$6:A10)+1)&$P$1&$I$4),"") -> 2018-03-05 | C11: 212292 | D11: 212292 | E11: =IFERROR(Март[[#This Row],[Показание одометра машины на конец дня, км]]-Март[[#This Row],[Показание одометра машины на начало дня, км]]+T11,"") -> 0 | F11: =IF(Март[[#This Row],[Дата]]="","",SUMPRODUCT([1]Март!$E$4:$E$153*([1]Март!$G$4:$G$153=$O$4)*([1]Март!$D$4:$D$153=Март[[#This Row],[Дата]]))) -> 0 | G11: =IF(Март[[#This Row],[Дата]]="","",M10) -> 464 | H11: 711 | I11: 711 | J11: =IFERROR(IF(W11="",Март[[#This Row],[Показание счетчика моточасов спецоборудования на конец дня, м/ч]],Март[[#This Row],[Показание счетчика моточасов спецоборудования на конец дня, м/ч]]+1)-Март[[#This Row],[Показание счетчика моточасов спецоборудования на начало дня, м/ч]],"") -> 0 | K11: 0 | L11: =IF(Март[[#This Row],[Работа спецоборудования за день, м/ч]]="","",Март[[#This Row],[Работа спецоборудования за день, м/ч]]*$Z$2) -> 0 | M11: =IFERROR(IF(VLOOKUP([Дата],S$2:U$3,3),IFERROR(IF(U11="",Март[[#This Row],[Выдано топливо, литр]],Март[[#This Row],[Выдано топливо, литр]]+U11)+Март[[#This Row],[Остаток топлива в баке на начало дня, литр]]-Март[[#This Row],[Фактический расход топлива, литр]],""),""),"") -> 464 | N11: =IFERROR(ROUND((Март[[#This Row],[Пройдено за день, км]]*0.01*$Y$2+Март[[#This Row],[Расход топлива на работу спецоборудования, литр]]),3)+X11,"") -> 0 | O11: =IFERROR(IF(Март[[#Totals],[Выдано топливо, литр]]=0,0,(ROUND(Март[[#This Row],[Расход топлива по норме, литр]]/IF(DAY([Дата])<=18,$W$2,$W$3),0)))+Y11,"") -> 0 | P11: =IFERROR(Март[[#This Row],[Фактический расход топлива, литр]]-Март[[#This Row],[Расход топлива по норме, литр]],"") -> 0 | R11: =Март[[#This Row],[Дата]] -> 2018-03-05 | Z11: =Март[[#This Row],[Дата]] -> 2018-03-05
A12: =IFERROR(DATEVALUE((COUNT($A$6:A11)+1)&$P$1&$I$4),"") -> 2018-03-06 | B12: Никляев В.А. | C12: 212292 | D12: 212372 | E12: =IFERROR(Март[[#This Row],[Показание одометра машины на конец дня, км]]-Март[[#This Row],[Показание одометра машины на начало дня, км]]+T12,"") -> 80 | F12: =IF(Март[[#This Row],[Дата]]="","",SUMPRODUCT([1]Март!$E$4:$E$153*([1]Март!$G$4:$G$153=$O$4)*([1]Март!$D$4:$D$153=Март[[#This Row],[Дата]]))) -> 0 | G12: =IF(Март[[#This Row],[Дата]]="","",M11) -> 464 | H12: 711 | I12: 714 | J12: =IFERROR(IF(W12="",Март[[#This Row],[Показание счетчика моточасов спецоборудования на конец дня, м/ч]],Март[[#This Row],[Показание счетчика моточасов спецоборудования на конец дня, м/ч]]+1)-Март[[#This Row],[Показание счетчика моточасов спецоборудования на начало дня, м/ч]],"") -> 3 | K12: 2 | L12: =IF(Март[[#This Row],[Работа спецоборудования за день, м/ч]]="","",Март[[#This Row],[Работа спецоборудования за день, м/ч]]*$Z$2) -> 18.15 | M12: =IFERROR(IF(VLOOKUP([Дата],S$2:U$3,3),IFERROR(IF(U12="",Март[[#This Row],[Выдано топливо, литр]],Март[[#This Row],[Выдано топливо, литр]]+U12)+Март[[#This Row],[Остаток топлива в баке на начало дня, литр]]-Март[[#This Row],[Фактический расход топлива, литр]],""),""),"") -> 409 | N12: =IFERROR(ROUND((Март[[#This Row],[Пройдено за день, км]]*0.01*$Y$2+Март[[#This Row],[Расход топлива на работу спецоборудования, литр]]),3)+X12,"") -> 59.387 | O12: =IFERROR(IF(Март[[#Totals],[Выдано топливо, литр]]=0,0,(ROUND(Март[[#This Row],[Расход топлива по норме, литр]]/IF(DAY([Дата])<=18,$W$2,$W$3),0)))+Y12,"") -> 55 | P12: =IFERROR(Март[[#This Row],[Фактический расход топлива, литр]]-Март[[#This Row],[Расход топлива по норме, литр]],"") -> -4.387 | R12: =Март[[#This Row],[Дата]] -> 2018-03-06 | Z12: =Март[[#This Row],[Дата]] -> 2018-03-06
A13: =IFERROR(DATEVALUE((COUNT($A$6:A12)+1)&$P$1&$I$4),"") -> 2018-03-07 | B13: Никляев В.А. | C13: 212372 | D13: 212542 | E13: =IFERROR(Март[[#This Row],[Показание одометра машины на конец дня, км]]-Март[[#This Row],[Показание одометра машины на начало дня, км]]+T13,"") -> 170 | F13: =IF(Март[[#This Row],[Дата]]="","",SUMPRODUCT([1]Март!$E$4:$E$153*([1]Март!$G$4:$G$153=$O$4)*([1]Март!$D$4:$D$153=Март[[#This Row],[Дата]]))) -> 0 | G13: =IF(Март[[#This Row],[Дата]]="","",M12) -> 409 | H13: 714 | I13: 716 | J13: =IFERROR(IF(W13="",Март[[#This Row],[Показание счетчика моточасов спецоборудования на конец дня, м/ч]],Март[[#This Row],[Показание счетчика моточасов спецоборудования на конец дня, м/ч]]+1)-Март[[#This Row],[Показание счетчика моточасов спецоборудования на начало дня, м/ч]],"") -> 2 | K13: 1 | L13: =IF(Март[[#This Row],[Работа спецоборудования за день, м/ч]]="","",Март[[#This Row],[Работа спецоборудования за день, м/ч]]*$Z$2) -> 12.1 | M13: =IFERROR(IF(VLOOKUP([Дата],S$2:U$3,3),IFERROR(IF(U13="",Март[[#This Row],[Выдано топливо, литр]],Март[[#This Row],[Выдано топливо, литр]]+U13)+Март[[#This Row],[Остаток топлива в баке на начало дня, литр]]-Март[[#This Row],[Фактический расход топлива, литр]],""),""),"") -> 316 | N13: =IFERROR(ROUND((Март[[#This Row],[Пройдено за день, км]]*0.01*$Y$2+Март[[#This Row],[Расход топлива на работу спецоборудования, литр]]),3)+X13,"") -> 99.728 | O13: =IFERROR(IF(Март[[#Totals],[Выдано топливо, литр]]=0,0,(ROUND(Март[[#This Row],[Расход топлива по норме, литр]]/IF(DAY([Дата])<=18,$W$2,$W$3),0)))+Y13,"") -> 93 | P13: =IFERROR(Март[[#This Row],[Фактический расход топлива, литр]]-Март[[#This Row],[Расход топлива по норме, литр]],"") -> -6.728 | R13: =Март[[#This Row],[Дата]] -> 2018-03-07 | Z13: =Март[[#This Row],[Дата]] -> 2018-03-07
A14: =IFERROR(DATEVALUE((COUNT($A$6:A13)+1)&$P$1&$I$4),"") -> 2018-03-08 | B14: Никляев В.А. | C14: 212542 | D14: 212650 | E14: =IFERROR(Март[[#This Row],[Показание одометра машины на конец дня, км]]-Март[[#This Row],[Показание одометра машины на начало дня, км]]+T14,"") -> 108 | F14: =IF(Март[[#This Row],[Дата]]="","",SUMPRODUCT([1]Март!$E$4:$E$153*([1]Март!$G$4:$G$153=$O$4)*([1]Март!$D$4:$D$153=Март[[#This Row],[Дата]]))) -> 0 | G14: =IF(Март[[#This Row],[Дата]]="","",M13) -> 316 | H14: 716 | I14: 719 | J14: =IFERROR(IF(W14="",Март[[#This Row],[Показание счетчика моточасов спецоборудования на конец дня, м/ч]],Март[[#This Row],[Показание счетчика моточасов спецоборудования на конец дня, м/ч]]+1)-Март[[#This Row],[Показание счетчика моточасов спецоборудования на начало дня, м/ч]],"") -> 3 | K14: 2 | L14: =IF(Март[[#This Row],[Работа спецоборудования за день, м/ч]]="","",Март[[#This Row],[Работа спецоборудования за день, м/ч]]*$Z$2) -> 18.15 | M14: =IFERROR(IF(VLOOKUP([Дата],S$2:U$3,3),IFERROR(IF(U14="",Март[[#This Row],[Выдано топливо, литр]],Март[[#This Row],[Выдано топливо, литр]]+U14)+Март[[#This Row],[Остаток топлива в баке на начало дня, литр]]-Март[[#This Row],[Фактический расход топлива, литр]],""),""),"") -> 247 | N14: =IFERROR(ROUND((Март[[#This Row],[Пройдено за день, км]]*0.01*$Y$2+Март[[#This Row],[Расход топлива на работу спецоборудования, литр]]),3)+X14,"") -> 73.82 | O14: =IFERROR(IF(Март[[#Totals],[Выдано топливо, литр]]=0,0,(ROUND(Март[[#This Row],[Расход топлива по норме, литр]]/IF(DAY([Дата])<=18,$W$2,$W$3),0)))+Y14,"") -> 69 | P14: =IFERROR(Март[[#This Row],[Фактический расход топлива, литр]]-Март[[#This Row],[Расход топлива по норме, литр]],"") -> -4.82 | R14: =Март[[#This Row],[Дата]] -> 2018-03-08 | Z14: =Март[[#This Row],[Дата]] -> 2018-03-08
A15: =IFERROR(DATEVALUE((COUNT($A$6:A14)+1)&$P$1&$I$4),"") -> 2018-03-09 | B15: Никляев В.А. | C15: 212650 | D15: 212730 | E15: =IFERROR(Март[[#This Row],[Показание одометра машины на конец дня, км]]-Март[[#This Row],[Показание одометра машины на начало дня, км]]+T15,"") -> 80 | F15: =IF(Март[[#This Row],[Дата]]="","",SUMPRODUCT([1]Март!$E$4:$E$153*([1]Март!$G$4:$G$153=$O$4)*([1]Март!$D$4:$D$153=Март[[#This Row],[Дата]]))) -> 270 | G15: =IF(Март[[#This Row],[Дата]]="","",M14) -> 247 | H15: 719 | I15: 722 | J15: =IFERROR(IF(W15="",Март[[#This Row],[Показание счетчика моточасов спецоборудования на конец дня, м/ч]],Март[[#This Row],[Показание счетчика моточасов спецоборудования на конец дня, м/ч]]+1)-Март[[#This Row],[Показание счетчика моточасов спецоборудования на начало дня, м/ч]],"") -> 3 | K15: 2 | L15: =IF(Март[[#This Row],[Работа спецоборудования за день, м/ч]]="","",Март[[#This Row],[Работа спецоборудования за день, м/ч]]*$Z$2) -> 18.15 | M15: =IFERROR(IF(VLOOKUP([Дата],S$2:U$3,3),IFERROR(IF(U15="",Март[[#This Row],[Выдано топливо, литр]],Март[[#This Row],[Выдано топливо, литр]]+U15)+Март[[#This Row],[Остаток топлива в баке на начало дня, литр]]-Март[[#This Row],[Фактический расход топлива, литр]],""),""),"") -> 462 | N15: =IFERROR(ROUND((Март[[#This Row],[Пройдено за день, км]]*0.01*$Y$2+Март[[#This Row],[Расход топлива на работу спецоборудования, литр]]),3)+X15,"") -> 59.387 | O15: =IFERROR(IF(Март[[#Totals],[Выдано топливо, литр]]=0,0,(ROUND(Март[[#This Row],[Расход топлива по норме, литр]]/IF(DAY([Дата])<=18,$W$2,$W$3),0)))+Y15,"") -> 55 | P15: =IFERROR(Март[[#This Row],[Фактический расход топлива, литр]]-Март[[#This Row],[Расход топлива по норме, литр]],"") -> -4.387 | R15: =Март[[#This Row],[Дата]] -> 2018-03-09 | Z15: =Март[[#This Row],[Дата]] -> 2018-03-09
A16: =IFERROR(DATEVALUE((COUNT($A$6:A15)+1)&$P$1&$I$4),"") -> 2018-03-10 | B16: Никляев В.А. | C16: 212730 | D16: 212802 | E16: =IFERROR(Март[[#This Row],[Показание одометра машины на конец дня, км]]-Март[[#This Row],[Показание одометра машины на начало дня, км]]+T16,"") -> 72 | F16: =IF(Март[[#This Row],[Дата]]="","",SUMPRODUCT([1]Март!$E$4:$E$153*([1]Март!$G$4:$G$153=$O$4)*([1]Март!$D$4:$D$153=Март[[#This Row],[Дата]]))) -> 0 | G16: =IF(Март[[#This Row],[Дата]]="","",M15) -> 462 | H16: 722 | I16: 724 | J16: =IFERROR(IF(W16="",Март[[#This Row],[Показание счетчика моточасов спецоборудования на конец дня, м/ч]],Март[[#This Row],[Показание счетчика моточасов спецоборудования на конец дня, м/ч]]+1)-Март[[#This Row],[Показание счетчика моточасов спецоборудования на начало дня, м/ч]],"") -> 2 | K16: 2 | L16: =IF(Март[[#This Row],[Работа спецоборудования за день, м/ч]]="","",Март[[#This Row],[Работа спецоборудования за день, м/ч]]*$Z$2) -> 12.1 | M16: =IFERROR(IF(VLOOKUP([Дата],S$2:U$3,3),IFERROR(IF(U16="",Март[[#This Row],[Выдано топливо, литр]],Март[[#This Row],[Выдано топливо, литр]]+U16)+Март[[#This Row],[Остаток топлива в баке на начало дня, литр]]-Март[[#This Row],[Фактический расход топлива, литр]],""),""),"") -> 416 | N16: =IFERROR(ROUND((Март[[#This Row],[Пройдено за день, км]]*0.01*$Y$2+Март[[#This Row],[Расход топлива на работу спецоборудования, литр]]),3)+X16,"") -> 49.213 | O16: =IFERROR(IF(Март[[#Totals],[Выдано топливо, литр]]=0,0,(ROUND(Март[[#This Row],[Расход топлива по норме, литр]]/IF(DAY([Дата])<=18,$W$2,$W$3),0)))+Y16,"") -> 46 | P16: =IFERROR(Март[[#This Row],[Фактический расход топлива, литр]]-Март[[#This Row],[Расход топлива по норме, литр]],"") -> -3.213 | R16: =Март[[#This Row],[Дата]] -> 2018-03-10 | Z16: =Март[[#This Row],[Дата]] -> 2018-03-10
A17: =IFERROR(DATEVALUE((COUNT($A$6:A16)+1)&$P$1&$I$4),"") -> 2018-03-11 | B17: Никляев В.А. | C17: 212802 | D17: 212934 | E17: =IFERROR(Март[[#This Row],[Показание одометра машины на конец дня, км]]-Март[[#This Row],[Показание одометра машины на начало дня, км]]+T17,"") -> 132 | F17: =IF(Март[[#This Row],[Дата]]="","",SUMPRODUCT([1]Март!$E$4:$E$153*([1]Март!$G$4:$G$153=$O$4)*([1]Март!$D$4:$D$153=Март[[#This Row],[Дата]]))) -> 0 | G17: =IF(Март[[#This Row],[Дата]]="","",M16) -> 416 | H17: 724 | I17: 727 | J17: =IFERROR(IF(W17="",Март[[#This Row],[Показание счетчика моточасов спецоборудования на конец дня, м/ч]],Март[[#This Row],[Показание счетчика моточасов спецоборудования на конец дня, м/ч]]+1)-Март[[#This Row],[Показание счетчика моточасов спецоборудования на начало дня, м/ч]],"") -> 3 | K17: 2 | L17: =IF(Март[[#This Row],[Работа спецоборудования за день, м/ч]]="","",Март[[#This Row],[Работа спецоборудования за день, м/ч]]*$Z$2) -> 18.15 | M17: =IFERROR(IF(VLOOKUP([Дата],S$2:U$3,3),IFERROR(IF(U17="",Март[[#This Row],[Выдано топливо, литр]],Март[[#This Row],[Выдано топливо, литр]]+U17)+Март[[#This Row],[Остаток топлива в баке на начало дня, литр]]-Март[[#This Row],[Фактический расход топлива, литр]],""),""),"") -> 336 | N17: =IFERROR(ROUND((Март[[#This Row],[Пройдено за день, км]]*0.01*$Y$2+Март[[#This Row],[Расход топлива на работу спецоборудования, литр]]),3)+X17,"") -> 86.191 | O17: =IFERROR(IF(Март[[#Totals],[Выдано топливо, литр]]=0,0,(ROUND(Март[[#This Row],[Расход топлива по норме, литр]]/IF(DAY([Дата])<=18,$W$2,$W$3),0)))+Y17,"") -> 80 | P17: =IFERROR(Март[[#This Row],[Фактический расход топлива, литр]]-Март[[#This Row],[Расход топлива по норме, литр]],"") -> -6.191 | R17: =Март[[#This Row],[Дата]] -> 2018-03-11 | Z17: =Март[[#This Row],[Дата]] -> 2018-03-11
A18: =IFERROR(DATEVALUE((COUNT($A$6:A17)+1)&$P$1&$I$4),"") -> 2018-03-12 | B18: Никляев В.А. | C18: 212934 | D18: 213211 | E18: =IFERROR(Март[[#This Row],[Показание одометра машины на конец дня, км]]-Март[[#This Row],[Показание одометра машины на начало дня, км]]+T18,"") -> 277 | F18: =IF(Март[[#This Row],[Дата]]="","",SUMPRODUCT([1]Март!$E$4:$E$153*([1]Март!$G$4:$G$153=$O$4)*([1]Март!$D$4:$D$153=Март[[#This Row],[Дата]]))) -> 0 | G18: =IF(Март[[#This Row],[Дата]]="","",M17) -> 336 | H18: 727 | I18: 730 | J18: =IFERROR(IF(W18="",Март[[#This Row],[Показание счетчика моточасов спецоборудования на конец дня, м/ч]],Март[[#This Row],[Показание счетчика моточасов спецоборудования на конец дня, м/ч]]+1)-Март[[#This Row],[Показание счетчика моточасов спецоборудования на начало дня, м/ч]],"") -> 3 | K18: 3 | L18: =IF(Март[[#This Row],[Работа спецоборудования за день, м/ч]]="","",Март[[#This Row],[Работа спецоборудования за день, м/ч]]*$Z$2) -> 18.15 | M18: =IFERROR(IF(VLOOKUP([Дата],S$2:U$3,3),IFERROR(IF(U18="",Март[[#This Row],[Выдано топливо, литр]],Март[[#This Row],[Выдано топливо, литр]]+U18)+Март[[#This Row],[Остаток топлива в баке на начало дня, литр]]-Март[[#This Row],[Фактический расход топлива, литр]],""),""),"") -> 261 | N18: =IFERROR(ROUND((Март[[#This Row],[Пройдено за день, км]]*0.01*$Y$2+Март[[#This Row],[Расход топлива на работу спецоборудования, литр]]),3)+X18,"") -> 160.932 | O18: =IFERROR(IF(Март[[#Totals],[Выдано топливо, литр]]=0,0,(ROUND(Март[[#This Row],[Расход топлива по норме, литр]]/IF(DAY([Дата])<=18,$W$2,$W$3),0)))+Y18,"") -> 150.01 | P18: =IFERROR(Март[[#This Row],[Фактический расход топлива, литр]]-Март[[#This Row],[Расход топлива по норме, литр]],"") -> -10.922 | R18: =Март[[#This Row],[Дата]] -> 2018-03-12 | U18: 75.01 | Y18: 0.01 | Z18: =Март[[#This Row],[Дата]] -> 2018-03-12
A19: =IFERROR(DATEVALUE((COUNT($A$6:A18)+1)&$P$1&$I$4),"") -> 2018-03-13 | B19: Никляев В.А. | C19: 213211 | D19: 213392 | E19: =IFERROR(Март[[#This Row],[Показание одометра машины на конец дня, км]]-Март[[#This Row],[Показание одометра машины на начало дня, км]]+T19,"") -> 181 | F19: =IF(Март[[#This Row],[Дата]]="","",SUMPRODUCT([1]Март!$E$4:$E$153*([1]Март!$G$4:$G$153=$O$4)*([1]Март!$D$4:$D$153=Март[[#This Row],[Дата]]))) -> 250 | G19: =IF(Март[[#This Row],[Дата]]="","",M18) -> 261 | H19: 730 | I19: 732 | J19: =IFERROR(IF(W19="",Март[[#This Row],[Показание счетчика моточасов спецоборудования на конец дня, м/ч]],Март[[#This Row],[Показание счетчика моточасов спецоборудования на конец дня, м/ч]]+1)-Март[[#This Row],[Показание счетчика моточасов спецоборудования на начало дня, м/ч]],"") -> 2 | K19: 2 | L19: =IF(Март[[#This Row],[Работа спецоборудования за день, м/ч]]="","",Март[[#This Row],[Работа спецоборудования за день, м/ч]]*$Z$2) -> 12.1 | M19: =IFERROR(IF(VLOOKUP([Дата],S$2:U$3,3),IFERROR(IF(U19="",Март[[#This Row],[Выдано топливо, литр]],Март[[#This Row],[Выдано топливо, литр]]+U19)+Март[[#This Row],[Остаток топлива в баке на начало дня, литр]]-Март[[#This Row],[Фактический расход топлива, литр]],""),""),"") -> 413 | N19: =IFERROR(ROUND((Март[[#This Row],[Пройдено за день, км]]*0.01*$Y$2+Март[[#This Row],[Расход топлива на работу спецоборудования, литр]]),3)+X19,"") -> 105.398 | O19: =IFERROR(IF(Март[[#Totals],[Выдано топливо, литр]]=0,0,(ROUND(Март[[#This Row],[Расход топлива по норме, литр]]/IF(DAY([Дата])<=18,$W$2,$W$3),0)))+Y19,"") -> 98 | P19: =IFERROR(Март[[#This Row],[Фактический расход топлива, литр]]-Март[[#This Row],[Расход топлива по норме, литр]],"") -> -7.398 | R19: =Март[[#This Row],[Дата]] -> 2018-03-13 | Z19: =Март[[#This Row],[Дата]] -> 2018-03-13
A20: =IFERROR(DATEVALUE((COUNT($A$6:A19)+1)&$P$1&$I$4),"") -> 2018-03-14 | B20: Никляев В.А. | C20: 213392 | D20: 213730 | E20: =IFERROR(Март[[#This Row],[Показание одометра машины на конец дня, км]]-Март[[#This Row],[Показание одометра машины на начало дня, км]]+T20,"") -> 338 | F20: =IF(Март[[#This Row],[Дата]]="","",SUMPRODUCT([1]Март!$E$4:$E$153*([1]Март!$G$4:$G$153=$O$4)*([1]Март!$D$4:$D$153=Март[[#This Row],[Дата]]))) -> 0 | G20: =IF(Март[[#This Row],[Дата]]="","",M19) -> 413 | H20: 732 | I20: 735 | J20: =IFERROR(IF(W20="",Март[[#This Row],[Показание счетчика моточасов спецоборудования на конец дня, м/ч]],Март[[#This Row],[Показание счетчика моточасов спецоборудования на конец дня, м/ч]]+1)-Март[[#This Row],[Показание счетчика моточасов спецоборудования на начало дня, м/ч]],"") -> 3 | K20: 2 | L20: =IF(Март[[#This Row],[Работа спецоборудования за день, м/ч]]="","",Март[[#This Row],[Работа спецоборудования за день, м/ч]]*$Z$2) -> 18.15 | M20: =IFERROR(IF(VLOOKUP([Дата],S$2:U$3,3),IFERROR(IF(U20="",Март[[#This Row],[Выдано топливо, литр]],Март[[#This Row],[Выдано топливо, литр]]+U20)+Март[[#This Row],[Остаток топлива в баке на начало дня, литр]]-Март[[#This Row],[Фактический расход топлива, литр]],""),""),"") -> 234 | N20: =IFERROR(ROUND((Март[[#This Row],[Пройдено за день, км]]*0.01*$Y$2+Март[[#This Row],[Расход топлива на работу спецоборудования, литр]]),3)+X20,"") -> 192.375 | O20: =IFERROR(IF(Март[[#Totals],[Выдано топливо, литр]]=0,0,(ROUND(Март[[#This Row],[Расход топлива по норме, литр]]/IF(DAY([Дата])<=18,$W$2,$W$3),0)))+Y20,"") -> 179 | P20: =IFERROR(Март[[#This Row],[Фактический расход топлива, литр]]-Март[[#This Row],[Расход топлива по норме, литр]],"") -> -13.375 | R20: =Март[[#This Row],[Дата]] -> 2018-03-14 | Z20: =Март[[#This Row],[Дата]] -> 2018-03-14
A21: =IFERROR(DATEVALUE((COUNT($A$6:A20)+1)&$P$1&$I$4),"") -> 2018-03-15 | B21: Никляев В.А. | C21: 213730 | D21: 214071 | E21: =IFERROR(Март[[#This Row],[Показание одометра машины на конец дня, км]]-Март[[#This Row],[Показание одометра машины на начало дня, км]]+T21,"") -> 341 | F21: =IF(Март[[#This Row],[Дата]]="","",SUMPRODUCT([1]Март!$E$4:$E$153*([1]Март!$G$4:$G$153=$O$4)*([1]Март!$D$4:$D$153=Март[[#This Row],[Дата]]))) -> 440 | G21: =IF(Март[[#This Row],[Дата]]="","",M20) -> 234 | H21: 735 | I21: 737 | J21: =IFERROR(IF(W21="",Март[[#This Row],[Показание счетчика моточасов спецоборудования на конец дня, м/ч]],Март[[#This Row],[Показание счетчика моточасов спецоборудования на конец дня, м/ч]]+1)-Март[[#This Row],[Показание счетчика моточасов спецоборудования на начало дня, м/ч]],"") -> 2 | K21: 2 | L21: =IF(Март[[#This Row],[Работа спецоборудования за день, м/ч]]="","",Март[[#This Row],[Работа спецоборудования за день, м/ч]]*$Z$2) -> 12.1 | M21: =IFERROR(IF(VLOOKUP([Дата],S$2:U$3,3),IFERROR(IF(U21="",Март[[#This Row],[Выдано топливо, литр]],Март[[#This Row],[Выдано топливо, литр]]+U21)+Март[[#This Row],[Остаток топлива в баке на начало дня, литр]]-Март[[#This Row],[Фактический расход топлива, литр]],""),""),"") -> 500 | N21: =IFERROR(ROUND((Март[[#This Row],[Пройдено за день, км]]*0.01*$Y$2+Март[[#This Row],[Расход топлива на работу спецоборудования, литр]]),3)+X21,"") -> 187.872 | O21: =IFERROR(IF(Март[[#Totals],[Выдано топливо, литр]]=0,0,(ROUND(Март[[#This Row],[Расход топлива по норме, литр]]/IF(DAY([Дата])<=18,$W$2,$W$3),0)))+Y21,"") -> 174 | P21: =IFERROR(Март[[#This Row],[Фактический расход топлива, литр]]-Март[[#This Row],[Расход топлива по норме, литр]],"") -> -13.872 | R21: =Март[[#This Row],[Дата]] -> 2018-03-15 | Y21: -1 | Z21: =Март[[#This Row],[Дата]] -> 2018-03-15
A22: =IFERROR(DATEVALUE((COUNT($A$6:A21)+1)&$P$1&$I$4),"") -> 2018-03-16 | B22: Никляев В.А. | C22: 214071 | D22: 214146 | E22: =IFERROR(Март[[#This Row],[Показание одометра машины на конец дня, км]]-Март[[#This Row],[Показание одометра машины на начало дня, км]]+T22,"") -> 75 | F22: =IF(Март[[#This Row],[Дата]]="","",SUMPRODUCT([1]Март!$E$4:$E$153*([1]Март!$G$4:$G$153=$O$4)*([1]Март!$D$4:$D$153=Март[[#This Row],[Дата]]))) -> 0 | G22: =IF(Март[[#This Row],[Дата]]="","",M21) -> 500 | H22: 737 | I22: 738 | J22: =IFERROR(IF(W22="",Март[[#This Row],[Показание счетчика моточасов спецоборудования на конец дня, м/ч]],Март[[#This Row],[Показание счетчика моточасов спецоборудования на конец дня, м/ч]]+1)-Март[[#This Row],[Показание счетчика моточасов спецоборудования на начало дня, м/ч]],"") -> 1 | K22: 2 | L22: =IF(Март[[#This Row],[Работа спецоборудования за день, м/ч]]="","",Март[[#This Row],[Работа спецоборудования за день, м/ч]]*$Z$2) -> 6.05 | M22: =IFERROR(IF(VLOOKUP([Дата],S$2:U$3,3),IFERROR(IF(U22="",Март[[#This Row],[Выдано топливо, литр]],Март[[#This Row],[Выдано топливо, литр]]+U22)+Март[[#This Row],[Остаток топлива в баке на начало дня, литр]]-Март[[#This Row],[Фактический расход топлива, литр]],""),""),"") -> 448 | N22: =IFERROR(ROUND((Март[[#This Row],[Пройдено за день, км]]*0.01*$Y$2+Март[[#This Row],[Расход топлива на работу спецоборудования, литр]]),3)+X22,"") -> 44.71 | O22: =IFERROR(IF(Март[[#Totals],[Выдано топливо, литр]]=0,0,(ROUND(Март[[#This Row],[Расход топлива по норме, литр]]/IF(DAY([Дата])<=18,$W$2,$W$3),0)))+Y22,"") -> 52 | P22: =IFERROR(Март[[#This Row],[Фактический расход топлива, литр]]-Март[[#This Row],[Расход топлива по норме, литр]],"") -> 7.29 | R22: =Март[[#This Row],[Дата]] -> 2018-03-16 | Y22: 10 | Z22: =Март[[#This Row],[Дата]] -> 2018-03-16
A23: =IFERROR(DATEVALUE((COUNT($A$6:A22)+1)&$P$1&$I$4),"") -> 2018-03-17 | B23: Никляев В.А. | C23: 214146 | D23: 214185 | E23: =IFERROR(Март[[#This Row],[Показание одометра машины на конец дня, км]]-Март[[#This Row],[Показание одометра машины на начало дня, км]]+T23,"") -> 39 | F23: =IF(Март[[#This Row],[Дата]]="","",SUMPRODUCT([1]Март!$E$4:$E$153*([1]Март!$G$4:$G$153=$O$4)*([1]Март!$D$4:$D$153=Март[[#This Row],[Дата]]))) -> 0 | G23: =IF(Март[[#This Row],[Дата]]="","",M22) -> 448 | H23: 738 | I23: 739 | J23: =IFERROR(IF(W23="",Март[[#This Row],[Показание счетчика моточасов спецоборудования на конец дня, м/ч]],Март[[#This Row],[Показание счетчика моточасов спецоборудования на конец дня, м/ч]]+1)-Март[[#This Row],[Показание счетчика моточасов спецоборудования на начало дня, м/ч]],"") -> 1 | K23: 2 | L23: =IF(Март[[#This Row],[Работа спецоборудования за день, м/ч]]="","",Март[[#This Row],[Работа спецоборудования за день, м/ч]]*$Z$2) -> 6.05 | M23: =IFERROR(IF(VLOOKUP([Дата],S$2:U$3,3),IFERROR(IF(U23="",Март[[#This Row],[Выдано топливо, литр]],Март[[#This Row],[Выдано топливо, литр]]+U23)+Март[[#This Row],[Остаток топлива в баке на начало дня, литр]]-Март[[#This Row],[Фактический расход топлива, литр]],""),""),"") -> 418 | N23: =IFERROR(ROUND((Март[[#This Row],[Пройдено за день, км]]*0.01*$Y$2+Март[[#This Row],[Расход топлива на работу спецоборудования, литр]]),3)+X23,"") -> 26.153 | O23: =IFERROR(IF(Март[[#Totals],[Выдано топливо, литр]]=0,0,(ROUND(Март[[#This Row],[Расход топлива по норме, литр]]/IF(DAY([Дата])<=18,$W$2,$W$3),0)))+Y23,"") -> 30 | P23: =IFERROR(Март[[#This Row],[Фактический расход топлива, литр]]-Март[[#This Row],[Расход топлива по норме, литр]],"") -> 3.847 | R23: =Март[[#This Row],[Дата]] -> 2018-03-17 | Y23: 6 | Z23: =Март[[#This Row],[Дата]] -> 2018-03-17
A24: =IFERROR(DATEVALUE((COUNT($A$6:A23)+1)&$P$1&$I$4),"") -> 2018-03-18 | B24: Никляев В.А. | C24: 214185 | D24: 214250 | E24: =IFERROR(Март[[#This Row],[Показание одометра машины на конец дня, км]]-Март[[#This Row],[Показание одометра машины на начало дня, км]]+T24,"") -> 65 | F24: =IF(Март[[#This Row],[Дата]]="","",SUMPRODUCT([1]Март!$E$4:$E$153*([1]Март!$G$4:$G$153=$O$4)*([1]Март!$D$4:$D$153=Март[[#This Row],[Дата]]))) -> 0 | G24: =IF(Март[[#This Row],[Дата]]="","",M23) -> 418 | H24: 739 | I24: 741 | J24: =IFERROR(IF(W24="",Март[[#This Row],[Показание счетчика моточасов спецоборудования на конец дня, м/ч]],Март[[#This Row],[Показание счетчика моточасов спецоборудования на конец дня, м/ч]]+1)-Март[[#This Row],[Показание счетчика моточасов спецоборудования на начало дня, м/ч]],"") -> 2 | K24: 1 | L24: =IF(Март[[#This Row],[Работа спецоборудования за день, м/ч]]="","",Март[[#This Row],[Работа спецоборудования за день, м/ч]]*$Z$2) -> 12.1 | M24: =IFERROR(IF(VLOOKUP([Дата],S$2:U$3,3),IFERROR(IF(U24="",Март[[#This Row],[Выдано топливо, литр]],Март[[#This Row],[Выдано топливо, литр]]+U24)+Март[[#This Row],[Остаток топлива в баке на начало дня, литр]]-Март[[#This Row],[Фактический расход топлива, литр]],""),""),"") -> 365 | N24: =IFERROR(ROUND((Март[[#This Row],[Пройдено за день, км]]*0.01*$Y$2+Март[[#This Row],[Расход топлива на работу спецоборудования, литр]]),3)+X24,"") -> 45.605 | O24: =IFERROR(IF(Март[[#Totals],[Выдано топливо, литр]]=0,0,(ROUND(Март[[#This Row],[Расход топлива по норме, литр]]/IF(DAY([Дата])<=18,$W$2,$W$3),0)))+Y24,"") -> 53 | P24: =IFERROR(Март[[#This Row],[Фактический расход топлива, литр]]-Март[[#This Row],[Расход топлива по норме, литр]],"") -> 7.395 | R24: =Март[[#This Row],[Дата]] -> 2018-03-18 | Y24: 11 | Z24: =Март[[#This Row],[Дата]] -> 2018-03-18
A25: =IFERROR(DATEVALUE((COUNT($A$6:A24)+1)&$P$1&$I$4),"") -> 2018-03-19 | B25: Никляев В.А. | C25: 214250 | D25: 214299 | E25: =IFERROR(Март[[#This Row],[Показание одометра машины на конец дня, км]]-Март[[#This Row],[Показание одометра машины на начало дня, км]]+T25,"") -> 49 | F25: =IF(Март[[#This Row],[Дата]]="","",SUMPRODUCT([1]Март!$E$4:$E$153*([1]Март!$G$4:$G$153=$O$4)*([1]Март!$D$4:$D$153=Март[[#This Row],[Дата]]))) -> 0 | G25: =IF(Март[[#This Row],[Дата]]="","",M24) -> 365 | H25: 741 | I25: 742 | J25: =IFERROR(IF(W25="",Март[[#This Row],[Показание счетчика моточасов спецоборудования на конец дня, м/ч]],Март[[#This Row],[Показание счетчика моточасов спецоборудования на конец дня, м/ч]]+1)-Март[[#This Row],[Показание счетчика моточасов спецоборудования на начало дня, м/ч]],"") -> 1 | K25: 1 | L25: =IF(Март[[#This Row],[Работа спецоборудования за день, м/ч]]="","",Март[[#This Row],[Работа спецоборудования за день, м/ч]]*$Z$2) -> 6.05 | M25: =IFERROR(IF(VLOOKUP([Дата],S$2:U$3,3),IFERROR(IF(U25="",Март[[#This Row],[Выдано топливо, литр]],Март[[#This Row],[Выдано топливо, литр]]+U25)+Март[[#This Row],[Остаток топлива в баке на начало дня, литр]]-Март[[#This Row],[Фактический расход топлива, литр]],""),""),"") -> 329 | N25: =IFERROR(ROUND((Март[[#This Row],[Пройдено за день, км]]*0.01*$Y$2+Март[[#This Row],[Расход топлива на работу спецоборудования, литр]]),3)+X25,"") -> 31.308 | O25: =IFERROR(IF(Март[[#Totals],[Выдано топливо, литр]]=0,0,(ROUND(Март[[#This Row],[Расход топлива по норме, литр]]/IF(DAY([Дата])<=18,$W$2,$W$3),0)))+Y25,"") -> 36 | P25: =IFERROR(Март[[#This Row],[Фактический расход топлива, литр]]-Март[[#This Row],[Расход топлива по норме, литр]],"") -> 4.692 | R25: =Март[[#This Row],[Дата]] -> 2018-03-19 | Z25: =Март[[#This Row],[Дата]] -> 2018-03-19
A26: =IFERROR(DATEVALUE((COUNT($A$6:A25)+1)&$P$1&$I$4),"") -> 2018-03-20 | B26: Никляев В.А. | C26: 214299 | D26: 214467 | E26: =IFERROR(Март[[#This Row],[Показание одометра машины на конец дня, км]]-Март[[#This Row],[Показание одометра машины на начало дня, км]]+T26,"") -> 168 | F26: =IF(Март[[#This Row],[Дата]]="","",SUMPRODUCT([1]Март!$E$4:$E$153*([1]Март!$G$4:$G$153=$O$4)*([1]Март!$D$4:$D$153=Март[[#This Row],[Дата]]))) -> 0 | G26: =IF(Март[[#This Row],[Дата]]="","",M25) -> 329 | H26: 742 | I26: 743 | J26: =IFERROR(IF(W26="",Март[[#This Row],[Показание счетчика моточасов спецоборудования на конец дня, м/ч]],Март[[#This Row],[Показание счетчика моточасов спецоборудования на конец дня, м/ч]]+1)-Март[[#This Row],[Показание счетчика моточасов спецоборудования на начало дня, м/ч]],"") -> 1 | K26: 1 | L26: =IF(Март[[#This Row],[Работа спецоборудования за день, м/ч]]="","",Март[[#This Row],[Работа спецоборудования за день, м/ч]]*$Z$2) -> 6.05 | M26: =IFERROR(IF(VLOOKUP([Дата],S$2:U$3,3),IFERROR(IF(U26="",Март[[#This Row],[Выдано топливо, литр]],Март[[#This Row],[Выдано топливо, литр]]+U26)+Март[[#This Row],[Остаток топлива в баке на начало дня, литр]]-Март[[#This Row],[Фактический расход топлива, литр]],""),""),"") -> 299 | N26: =IFERROR(ROUND((Март[[#This Row],[Пройдено за день, км]]*0.01*$Y$2+Март[[#This Row],[Расход топлива на работу спецоборудования, литр]]),3)+X26,"") -> 92.647 | O26: =IFERROR(IF(Март[[#Totals],[Выдано топливо, литр]]=0,0,(ROUND(Март[[#This Row],[Расход топлива по норме, литр]]/IF(DAY([Дата])<=18,$W$2,$W$3),0)))+Y26,"") -> 107.77 | P26: =IFERROR(Март[[#This Row],[Фактический расход топлива, литр]]-Март[[#This Row],[Расход топлива по норме, литр]],"") -> 15.123 | R26: =Март[[#This Row],[Дата]] -> 2018-03-20 | U26: 77.77 | Y26: 0.77 | Z26: =Март[[#This Row],[Дата]] -> 2018-03-20
A27: =IFERROR(DATEVALUE((COUNT($A$6:A26)+1)&$P$1&$I$4),"") -> 2018-03-21 | B27: Никляев В.А. | C27: 214467 | D27: 214554 | E27: =IFERROR(Март[[#This Row],[Показание одометра машины на конец дня, км]]-Март[[#This Row],[Показание одометра машины на начало дня, км]]+T27,"") -> 87 | F27: =IF(Март[[#This Row],[Дата]]="","",SUMPRODUCT([1]Март!$E$4:$E$153*([1]Март!$G$4:$G$153=$O$4)*([1]Март!$D$4:$D$153=Март[[#This Row],[Дата]]))) -> 200 | G27: =IF(Март[[#This Row],[Дата]]="","",M26) -> 299 | H27: 743 | I27: 746 | J27: =IFERROR(IF(W27="",Март[[#This Row],[Показание счетчика моточасов спецоборудования на конец дня, м/ч]],Март[[#This Row],[Показание счетчика моточасов спецоборудования на конец дня, м/ч]]+1)-Март[[#This Row],[Показание счетчика моточасов спецоборудования на начало дня, м/ч]],"") -> 3 | K27: 3 | L27: =IF(Март[[#This Row],[Работа спецоборудования за день, м/ч]]="","",Март[[#This Row],[Работа спецоборудования за день, м/ч]]*$Z$2) -> 18.15 | M27: =IFERROR(IF(VLOOKUP([Дата],S$2:U$3,3),IFERROR(IF(U27="",Март[[#This Row],[Выдано топливо, литр]],Март[[#This Row],[Выдано топливо, литр]]+U27)+Март[[#This Row],[Остаток топлива в баке на начало дня, литр]]-Март[[#This Row],[Фактический расход топлива, литр]],""),""),"") -> 426 | N27: =IFERROR(ROUND((Март[[#This Row],[Пройдено за день, км]]*0.01*$Y$2+Март[[#This Row],[Расход топлива на работу спецоборудования, литр]]),3)+X27,"") -> 62.995 | O27: =IFERROR(IF(Март[[#Totals],[Выдано топливо, литр]]=0,0,(ROUND(Март[[#This Row],[Расход топлива по норме, литр]]/IF(DAY([Дата])<=18,$W$2,$W$3),0)))+Y27,"") -> 73 | P27: =IFERROR(Март[[#This Row],[Фактический расход топлива, литр]]-Март[[#This Row],[Расход топлива по норме, литр]],"") -> 10.005 | R27: =Март[[#This Row],[Дата]] -> 2018-03-21 | Z27: =Март[[#This Row],[Дата]] -> 2018-03-21
A28: =IFERROR(DATEVALUE((COUNT($A$6:A27)+1)&$P$1&$I$4),"") -> 2018-03-22 | B28: Никляев В.А. | C28: 214554 | D28: 214624 | E28: =IFERROR(Март[[#This Row],[Показание одометра машины на конец дня, км]]-Март[[#This Row],[Показание одометра машины на начало дня, км]]+T28,"") -> 70 | F28: =IF(Март[[#This Row],[Дата]]="","",SUMPRODUCT([1]Март!$E$4:$E$153*([1]Март!$G$4:$G$153=$O$4)*([1]Март!$D$4:$D$153=Март[[#This Row],[Дата]]))) -> 0 | G28: =IF(Март[[#This Row],[Дата]]="","",M27) -> 426 | H28: 746 | I28: 748 | J28: =IFERROR(IF(W28="",Март[[#This Row],[Показание счетчика моточасов спецоборудования на конец дня, м/ч]],Март[[#This Row],[Показание счетчика моточасов спецоборудования на конец дня, м/ч]]+1)-Март[[#This Row],[Показание счетчика моточасов спецоборудования на начало дня, м/ч]],"") -> 2 | K28: 2 | L28: =IF(Март[[#This Row],[Работа спецоборудования за день, м/ч]]="","",Март[[#This Row],[Работа спецоборудования за день, м/ч]]*$Z$2) -> 12.1 | M28: =IFERROR(IF(VLOOKUP([Дата],S$2:U$3,3),IFERROR(IF(U28="",Март[[#This Row],[Выдано топливо, литр]],Март[[#This Row],[Выдано топливо, литр]]+U28)+Март[[#This Row],[Остаток топлива в баке на начало дня, литр]]-Март[[#This Row],[Фактический расход топлива, литр]],""),""),"") -> 370 | N28: =IFERROR(ROUND((Март[[#This Row],[Пройдено за день, км]]*0.01*$Y$2+Март[[#This Row],[Расход топлива на работу спецоборудования, литр]]),3)+X28,"") -> 48.182 | O28: =IFERROR(IF(Март[[#Totals],[Выдано топливо, литр]]=0,0,(ROUND(Март[[#This Row],[Расход топлива по норме, литр]]/IF(DAY([Дата])<=18,$W$2,$W$3),0)))+Y28,"") -> 56 | P28: =IFERROR(Март[[#This Row],[Фактический расход топлива, литр]]-Март[[#This Row],[Расход топлива по норме, литр]],"") -> 7.818 | R28: =Март[[#This Row],[Дата]] -> 2018-03-22 | Z28: =Март[[#This Row],[Дата]] -> 2018-03-22
A29: =IFERROR(DATEVALUE((COUNT($A$6:A28)+1)&$P$1&$I$4),"") -> 2018-03-23 | B29: Никляев В.А. | C29: 214624 | D29: 214688 | E29: =IFERROR(Март[[#This Row],[Показание одометра машины на конец дня, км]]-Март[[#This Row],[Показание одометра машины на начало дня, км]]+T29,"") -> 64 | F29: =IF(Март[[#This Row],[Дата]]="","",SUMPRODUCT([1]Март!$E$4:$E$153*([1]Март!$G$4:$G$153=$O$4)*([1]Март!$D$4:$D$153=Март[[#This Row],[Дата]]))) -> 0 | G29: =IF(Март[[#This Row],[Дата]]="","",M28) -> 370 | H29: 748 | I29: 750 | J29: =IFERROR(IF(W29="",Март[[#This Row],[Показание счетчика моточасов спецоборудования на конец дня, м/ч]],Март[[#This Row],[Показание счетчика моточасов спецоборудования на конец дня, м/ч]]+1)-Март[[#This Row],[Показание счетчика моточасов спецоборудования на начало дня, м/ч]],"") -> 2 | K29: 1 | L29: =IF(Март[[#This Row],[Работа спецоборудования за день, м/ч]]="","",Март[[#This Row],[Работа спецоборудования за день, м/ч]]*$Z$2) -> 12.1 | M29: =IFERROR(IF(VLOOKUP([Дата],S$2:U$3,3),IFERROR(IF(U29="",Март[[#This Row],[Выдано топливо, литр]],Март[[#This Row],[Выдано топливо, литр]]+U29)+Март[[#This Row],[Остаток топлива в баке на начало дня, литр]]-Март[[#This Row],[Фактический расход топлива, литр]],""),""),"") -> 318 | N29: =IFERROR(ROUND((Март[[#This Row],[Пройдено за день, км]]*0.01*$Y$2+Март[[#This Row],[Расход топлива на работу спецоборудования, литр]]),3)+X29,"") -> 45.089 | O29: =IFERROR(IF(Март[[#Totals],[Выдано топливо, литр]]=0,0,(ROUND(Март[[#This Row],[Расход топлива по норме, литр]]/IF(DAY([Дата])<=18,$W$2,$W$3),0)))+Y29,"") -> 52 | P29: =IFERROR(Март[[#This Row],[Фактический расход топлива, литр]]-Март[[#This Row],[Расход топлива по норме, литр]],"") -> 6.911 | R29: =Март[[#This Row],[Дата]] -> 2018-03-23 | Z29: =Март[[#This Row],[Дата]] -> 2018-03-23
A30: =IFERROR(DATEVALUE((COUNT($A$6:A29)+1)&$P$1&$I$4),"") -> 2018-03-24 | B30: Никляев В.А. | C30: 214688 | D30: 214716 | E30: =IFERROR(Март[[#This Row],[Показание одометра машины на конец дня, км]]-Март[[#This Row],[Показание одометра машины на начало дня, км]]+T30,"") -> 28 | F30: =IF(Март[[#This Row],[Дата]]="","",SUMPRODUCT([1]Март!$E$4:$E$153*([1]Март!$G$4:$G$153=$O$4)*([1]Март!$D$4:$D$153=Март[[#This Row],[Дата]]))) -> 0 | G30: =IF(Март[[#This Row],[Дата]]="","",M29) -> 318 | H30: 750 | I30: 752 | J30: =IFERROR(IF(W30="",Март[[#This Row],[Показание счетчика моточасов спецоборудования на конец дня, м/ч]],Март[[#This Row],[Показание счетчика моточасов спецоборудования на конец дня, м/ч]]+1)-Март[[#This Row],[Показание счетчика моточасов спецоборудования на начало дня, м/ч]],"") -> 2 | K30: 1 | L30: =IF(Март[[#This Row],[Работа спецоборудования за день, м/ч]]="","",Март[[#This Row],[Работа спецоборудования за день, м/ч]]*$Z$2) -> 12.1 | M30: =IFERROR(IF(VLOOKUP([Дата],S$2:U$3,3),IFERROR(IF(U30="",Март[[#This Row],[Выдано топливо, литр]],Март[[#This Row],[Выдано топливо, литр]]+U30)+Март[[#This Row],[Остаток топлива в баке на начало дня, литр]]-Март[[#This Row],[Фактический расход топлива, литр]],""),""),"") -> 287 | N30: =IFERROR(ROUND((Март[[#This Row],[Пройдено за день, км]]*0.01*$Y$2+Март[[#This Row],[Расход топлива на работу спецоборудования, литр]]),3)+X30,"") -> 26.533 | O30: =IFERROR(IF(Март[[#Totals],[Выдано топливо, литр]]=0,0,(ROUND(Март[[#This Row],[Расход топлива по норме, литр]]/IF(DAY([Дата])<=18,$W$2,$W$3),0)))+Y30,"") -> 31 | P30: =IFERROR(Март[[#This Row],[Фактический расход топлива, литр]]-Март[[#This Row],[Расход топлива по норме, литр]],"") -> 4.467 | R30: =Март[[#This Row],[Дата]] -> 2018-03-24 | Z30: =Март[[#This Row],[Дата]] -> 2018-03-24
A31: =IFERROR(DATEVALUE((COUNT($A$6:A30)+1)&$P$1&$I$4),"") -> 2018-03-25 | C31: 214716 | D31: 214716 | E31: =IFERROR(Март[[#This Row],[Показание одометра машины на конец дня, км]]-Март[[#This Row],[Показание одометра машины на начало дня, км]]+T31,"") -> 0 | F31: =IF(Март[[#This Row],[Дата]]="","",SUMPRODUCT([1]Март!$E$4:$E$153*([1]Март!$G$4:$G$153=$O$4)*([1]Март!$D$4:$D$153=Март[[#This Row],[Дата]]))) -> 0 | G31: =IF(Март[[#This Row],[Дата]]="","",M30) -> 287 | H31: 752 | I31: 752 | J31: =IFERROR(IF(W31="",Март[[#This Row],[Показание счетчика моточасов спецоборудования на конец дня, м/ч]],Март[[#This Row],[Показание счетчика моточасов спецоборудования на конец дня, м/ч]]+1)-Март[[#This Row],[Показание счетчика моточасов спецоборудования на начало дня, м/ч]],"") -> 0 | K31: 0 | L31: =IF(Март[[#This Row],[Работа спецоборудования за день, м/ч]]="","",Март[[#This Row],[Работа спецоборудования за день, м/ч]]*$Z$2) -> 0 | M31: =IFERROR(IF(VLOOKUP([Дата],S$2:U$3,3),IFERROR(IF(U31="",Март[[#This Row],[Выдано топливо, литр]],Март[[#This Row],[Выдано топливо, литр]]+U31)+Март[[#This Row],[Остаток топлива в баке на начало дня, литр]]-Март[[#This Row],[Фактический расход топлива, литр]],""),""),"") -> 287 | N31: =IFERROR(ROUND((Март[[#This Row],[Пройдено за день, км]]*0.01*$Y$2+Март[[#This Row],[Расход топлива на работу спецоборудования, литр]]),3)+X31,"") -> 0 | O31: =IFERROR(IF(Март[[#Totals],[Выдано топливо, литр]]=0,0,(ROUND(Март[[#This Row],[Расход топлива по норме, литр]]/IF(DAY([Дата])<=18,$W$2,$W$3),0)))+Y31,"") -> 0 | P31: =IFERROR(Март[[#This Row],[Фактический расход топлива, литр]]-Март[[#This Row],[Расход топлива по норме, литр]],"") -> 0 | R31: =Март[[#This Row],[Дата]] -> 2018-03-25 | Z31: =Март[[#This Row],[Дата]] -> 2018-03-25
A32: =IFERROR(DATEVALUE((COUNT($A$6:A31)+1)&$P$1&$I$4),"") -> 2018-03-26 | C32: 214716 | D32: 214716 | E32: =IFERROR(Март[[#This Row],[Показание одометра машины на конец дня, км]]-Март[[#This Row],[Показание одометра машины на начало дня, км]]+T32,"") -> 0 | F32: =IF(Март[[#This Row],[Дата]]="","",SUMPRODUCT([1]Март!$E$4:$E$153*([1]Март!$G$4:$G$153=$O$4)*([1]Март!$D$4:$D$153=Март[[#This Row],[Дата]]))) -> 0 | G32: =IF(Март[[#This Row],[Дата]]="","",M31) -> 287 | H32: 752 | I32: 752 | J32: =IFERROR(IF(W32="",Март[[#This Row],[Показание счетчика моточасов спецоборудования на конец дня, м/ч]],Март[[#This Row],[Показание счетчика моточасов спецоборудования на конец дня, м/ч]]+1)-Март[[#This Row],[Показание счетчика моточасов спецоборудования на начало дня, м/ч]],"") -> 0 | K32: 0 | L32: =IF(Март[[#This Row],[Работа спецоборудования за день, м/ч]]="","",Март[[#This Row],[Работа спецоборудования за день, м/ч]]*$Z$2) -> 0 | M32: =IFERROR(IF(VLOOKUP([Дата],S$2:U$3,3),IFERROR(IF(U32="",Март[[#This Row],[Выдано топливо, литр]],Март[[#This Row],[Выдано топливо, литр]]+U32)+Март[[#This Row],[Остаток топлива в баке на начало дня, литр]]-Март[[#This Row],[Фактический расход топлива, литр]],""),""),"") -> 287 | N32: =IFERROR(ROUND((Март[[#This Row],[Пройдено за день, км]]*0.01*$Y$2+Март[[#This Row],[Расход топлива на работу спецоборудования, литр]]),3)+X32,"") -> 0 | O32: =IFERROR(IF(Март[[#Totals],[Выдано топливо, литр]]=0,0,(ROUND(Март[[#This Row],[Расход топлива по норме, литр]]/IF(DAY([Дата])<=18,$W$2,$W$3),0)))+Y32,"") -> 0 | P32: =IFERROR(Март[[#This Row],[Фактический расход топлива, литр]]-Март[[#This Row],[Расход топлива по норме, литр]],"") -> 0 | R32: =Март[[#This Row],[Дата]] -> 2018-03-26 | Z32: =Март[[#This Row],[Дата]] -> 2018-03-26
A33: =IFERROR(DATEVALUE((COUNT($A$6:A32)+1)&$P$1&$I$4),"") -> 2018-03-27 | B33: Никляев В.А. | C33: 214716 | D33: 214953 | E33: =IFERROR(Март[[#This Row],[Показание одометра машины на конец дня, км]]-Март[[#This Row],[Показание одометра машины на начало дня, км]]+T33,"") -> 237 | F33: =IF(Март[[#This Row],[Дата]]="","",SUMPRODUCT([1]Март!$E$4:$E$153*([1]Март!$G$4:$G$153=$O$4)*([1]Март!$D$4:$D$153=Март[[#This Row],[Дата]]))) -> 280 | G33: =IF(Март[[#This Row],[Дата]]="","",M32) -> 287 | H33: 752 | I33: 754 | J33: =IFERROR(IF(W33="",Март[[#This Row],[Показание счетчика моточасов спецоборудования на конец дня, м/ч]],Март[[#This Row],[Показание счетчика моточасов спецоборудования на конец дня, м/ч]]+1)-Март[[#This Row],[Показание счетчика моточасов спецоборудования на начало дня, м/ч]],"") -> 2 | K33: 2 | L33: =IF(Март[[#This Row],[Работа спецоборудования за день, м/ч]]="","",Март[[#This Row],[Работа спецоборудования за день, м/ч]]*$Z$2) -> 12.1 | M33: =IFERROR(IF(VLOOKUP([Дата],S$2:U$3,3),IFERROR(IF(U33="",Март[[#This Row],[Выдано топливо, литр]],Март[[#This Row],[Выдано топливо, литр]]+U33)+Март[[#This Row],[Остаток топлива в баке на начало дня, литр]]-Март[[#This Row],[Фактический расход топлива, литр]],""),""),"") -> 372 | N33: =IFERROR(ROUND((Март[[#This Row],[Пройдено за день, км]]*0.01*$Y$2+Март[[#This Row],[Расход топлива на работу спецоборудования, литр]]),3)+X33,"") -> 134.264 | O33: =IFERROR(IF(Март[[#Totals],[Выдано топливо, литр]]=0,0,(ROUND(Март[[#This Row],[Расход топлива по норме, литр]]/IF(DAY([Дата])<=18,$W$2,$W$3),0)))+Y33,"") -> 155 | P33: =IFERROR(Март[[#This Row],[Фактический расход топлива, литр]]-Март[[#This Row],[Расход топлива по норме, литр]],"") -> 20.736 | R33: =Март[[#This Row],[Дата]] -> 2018-03-27 | U33: -40 | Z33: =Март[[#This Row],[Дата]] -> 2018-03-27
A34: =IFERROR(DATEVALUE((COUNT($A$6:A33)+1)&$P$1&$I$4),"") -> 2018-03-28 | B34: Никляев В.А. | C34: 214953 | D34: 214964 | E34: =IFERROR(Март[[#This Row],[Показание одометра машины на конец дня, км]]-Март[[#This Row],[Показание одометра машины на начало дня, км]]+T34,"") -> 11 | F34: =IF(Март[[#This Row],[Дата]]="","",SUMPRODUCT([1]Март!$E$4:$E$153*([1]Март!$G$4:$G$153=$O$4)*([1]Март!$D$4:$D$153=Март[[#This Row],[Дата]]))) -> 0 | G34: =IF(Март[[#This Row],[Дата]]="","",M33) -> 372 | H34: 754 | I34: 754 | J34: =IFERROR(IF(W34="",Март[[#This Row],[Показание счетчика моточасов спецоборудования на конец дня, м/ч]],Март[[#This Row],[Показание счетчика моточасов спецоборудования на конец дня, м/ч]]+1)-Март[[#This Row],[Показание счетчика моточасов спецоборудования на начало дня, м/ч]],"") -> 0 | K34: 1 | L34: =IF(Март[[#This Row],[Работа спецоборудования за день, м/ч]]="","",Март[[#This Row],[Работа спецоборудования за день, м/ч]]*$Z$2) -> 0 | M34: =IFERROR(IF(VLOOKUP([Дата],S$2:U$3,3),IFERROR(IF(U34="",Март[[#This Row],[Выдано топливо, литр]],Март[[#This Row],[Выдано топливо, литр]]+U34)+Март[[#This Row],[Остаток топлива в баке на начало дня, литр]]-Март[[#This Row],[Фактический расход топлива, литр]],""),""),"") -> 438 | N34: =IFERROR(ROUND((Март[[#This Row],[Пройдено за день, км]]*0.01*$Y$2+Март[[#This Row],[Расход топлива на работу спецоборудования, литр]]),3)+X34,"") -> 5.67 | O34: =IFERROR(IF(Март[[#Totals],[Выдано топливо, литр]]=0,0,(ROUND(Март[[#This Row],[Расход топлива по норме, литр]]/IF(DAY([Дата])<=18,$W$2,$W$3),0)))+Y34,"") -> 7.69 | P34: =IFERROR(Март[[#This Row],[Фактический расход топлива, литр]]-Март[[#This Row],[Расход топлива по норме, литр]],"") -> 2.02 | R34: =Март[[#This Row],[Дата]] -> 2018-03-28 | U34: 73.69 | Y34: 0.69 | Z34: =Март[[#This Row],[Дата]] -> 2018-03-28
A35: =IFERROR(DATEVALUE((COUNT($A$6:A34)+1)&$P$1&$I$4),"") -> 2018-03-29 | B35: Никляев В.А. | C35: 214964 | D35: 215032 | E35: =IFERROR(Март[[#This Row],[Показание одометра машины на конец дня, км]]-Март[[#This Row],[Показание одометра машины на начало дня, км]]+T35,"") -> 68 | F35: =IF(Март[[#This Row],[Дата]]="","",SUMPRODUCT([1]Март!$E$4:$E$153*([1]Март!$G$4:$G$153=$O$4)*([1]Март!$D$4:$D$153=Март[[#This Row],[Дата]]))) -> 0 | G35: =IF(Март[[#This Row],[Дата]]="","",M34) -> 438 | H35: 754 | I35: 756 | J35: =IFERROR(IF(W35="",Март[[#This Row],[Показание счетчика моточасов спецоборудования на конец дня, м/ч]],Март[[#This Row],[Показание счетчика моточасов спецоборудования на конец дня, м/ч]]+1)-Март[[#This Row],[Показание счетчика моточасов спецоборудования на начало дня, м/ч]],"") -> 2 | K35: 1 | L35: =IF(Март[[#This Row],[Работа спецоборудования за день, м/ч]]="","",Март[[#This Row],[Работа спецоборудования за день, м/ч]]*$Z$2) -> 12.1 | M35: =IFERROR(IF(VLOOKUP([Дата],S$2:U$3,3),IFERROR(IF(U35="",Март[[#This Row],[Выдано топливо, литр]],Март[[#This Row],[Выдано топливо, литр]]+U35)+Март[[#This Row],[Остаток топлива в баке на начало дня, литр]]-Март[[#This Row],[Фактический расход топлива, литр]],""),""),"") -> 384 | N35: =IFERROR(ROUND((Март[[#This Row],[Пройдено за день, км]]*0.01*$Y$2+Март[[#This Row],[Расход топлива на работу спецоборудования, литр]]),3)+X35,"") -> 47.151 | O35: =IFERROR(IF(Март[[#Totals],[Выдано топливо, литр]]=0,0,(ROUND(Март[[#This Row],[Расход топлива по норме, литр]]/IF(DAY([Дата])<=18,$W$2,$W$3),0)))+Y35,"") -> 54 | P35: =IFERROR(Март[[#This Row],[Фактический расход топлива, литр]]-Март[[#This Row],[Расход топлива по норме, литр]],"") -> 6.849 | R35: =Март[[#This Row],[Дата]] -> 2018-03-29 | Z35: =Март[[#This Row],[Дата]] -> 2018-03-29
A36: =IFERROR(DATEVALUE((COUNT($A$6:A35)+1)&$P$1&$I$4),"") -> 2018-03-30 | B36: Никляев В.А. | C36: 215032 | D36: 215100 | E36: =IFERROR(Март[[#This Row],[Показание одометра машины на конец дня, км]]-Март[[#This Row],[Показание одометра машины на начало дня, км]]+T36,"") -> 68 | F36: =IF(Март[[#This Row],[Дата]]="","",SUMPRODUCT([1]Март!$E$4:$E$153*([1]Март!$G$4:$G$153=$O$4)*([1]Март!$D$4:$D$153=Март[[#This Row],[Дата]]))) -> 160 | G36: =IF(Март[[#This Row],[Дата]]="","",M35) -> 384 | H36: 756 | I36: 757 | J36: =IFERROR(IF(W36="",Март[[#This Row],[Показание счетчика моточасов спецоборудования на конец дня, м/ч]],Март[[#This Row],[Показание счетчика моточасов спецоборудования на конец дня, м/ч]]+1)-Март[[#This Row],[Показание счетчика моточасов спецоборудования на начало дня, м/ч]],"") -> 1 | K36: 1 | L36: =IF(Март[[#This Row],[Работа спецоборудования за день, м/ч]]="","",Март[[#This Row],[Работа спецоборудования за день, м/ч]]*$Z$2) -> 6.05 | M36: =IFERROR(IF(VLOOKUP([Дата],S$2:U$3,3),IFERROR(IF(U36="",Март[[#This Row],[Выдано топливо, литр]],Март[[#This Row],[Выдано топливо, литр]]+U36)+Март[[#This Row],[Остаток топлива в баке на начало дня, литр]]-Март[[#This Row],[Фактический расход топлива, литр]],""),""),"") -> 500 | N36: =IFERROR(ROUND((Март[[#This Row],[Пройдено за день, км]]*0.01*$Y$2+Март[[#This Row],[Расход топлива на работу спецоборудования, литр]]),3)+X36,"") -> 41.101 | O36: =IFERROR(IF(Март[[#Totals],[Выдано топливо, литр]]=0,0,(ROUND(Март[[#This Row],[Расход топлива по норме, литр]]/IF(DAY([Дата])<=18,$W$2,$W$3),0)))+Y36,"") -> 44 | P36: =IFERROR(Март[[#This Row],[Фактический расход топлива, литр]]-Март[[#This Row],[Расход топлива по норме, литр]],"") -> 2.899 | R36: =Март[[#This Row],[Дата]] -> 2018-03-30 | Y36: -3 | Z36: =Март[[#This Row],[Дата]] -> 2018-03-30
A37: =IFERROR(DATEVALUE((COUNT($A$6:A36)+1)&$P$1&$I$4),"") -> 2018-03-31 | C37: 215100 | D37: 215100 | E37: =IFERROR(Март[[#This Row],[Показание одометра машины на конец дня, км]]-Март[[#This Row],[Показание одометра машины на начало дня, км]]+T37,"") -> 0 | F37: =IF(Март[[#This Row],[Дата]]="","",SUMPRODUCT([1]Март!$E$4:$E$153*([1]Март!$G$4:$G$153=$O$4)*([1]Март!$D$4:$D$153=Март[[#This Row],[Дата]]))) -> 0 | G37: =IF(Март[[#This Row],[Дата]]="","",M36) -> 500 | H37: 757 | I37: 757 | J37: =IFERROR(IF(W37="",Март[[#This Row],[Показание счетчика моточасов спецоборудования на конец дня, м/ч]],Март[[#This Row],[Показание счетчика моточасов спецоборудования на конец дня, м/ч]]+1)-Март[[#This Row],[Показание счетчика моточасов спецоборудования на начало дня, м/ч]],"") -> 0 | L37: =IF(Март[[#This Row],[Работа спецоборудования за день, м/ч]]="","",Март[[#This Row],[Работа спецоборудования за день, м/ч]]*$Z$2) -> 0 | M37: =IFERROR(IF(VLOOKUP([Дата],S$2:U$3,3),IFERROR(IF(U37="",Март[[#This Row],[Выдано топливо, литр]],Март[[#This Row],[Выдано топливо, литр]]+U37)+Март[[#This Row],[Остаток топлива в баке на начало дня, литр]]-Март[[#This Row],[Фактический расход топлива, литр]],""),""),"") -> 500 | N37: =IFERROR(ROUND((Март[[#This Row],[Пройдено за день, км]]*0.01*$Y$2+Март[[#This Row],[Расход топлива на работу спецоборудования, литр]]),3)+X37,"") -> 0 | O37: =IFERROR(IF(Март[[#Totals],[Выдано топливо, литр]]=0,0,(ROUND(Март[[#This Row],[Расход топлива по норме, литр]]/IF(DAY([Дата])<=18,$W$2,$W$3),0)))+Y37,"") -> 0 | P37: =IFERROR(Март[[#This Row],[Фактический расход топлива, литр]]-Март[[#This Row],[Расход топлива по норме, литр]],"") -> 0 | R37: =Март[[#This Row],[Дата]] -> 2018-03-31 | Z37: =Март[[#This Row],[Дата]] -> 2018-03-31
A38: Итог | E38: =SUBTOTAL(109,[Пройдено за день, км]) -> 2848 | F38: =SUBTOTAL(109,[Выдано топливо, литр]) -> 1600 | J38: =SUBTOTAL(109,[Работа спецоборудования за день, м/ч]) -> 49 | K38: =SUBTOTAL(109,[Количество ходок]) -> 41 | L38: =SUBTOTAL(109,[Расход топлива на работу спецоборудования, литр]) -> 296.45 | N38: =SUBTOTAL(109,[Расход топлива по норме, литр]) -> 1764.479 | O38: =SUBTOTAL(109,[Фактический расход топлива, литр]) -> 1786.47 | P38: =SUBTOTAL(109,[Отклонение от нормы (Перерасход(+), экономия(-)), литр]) -> 21.991 | R38: 1-я пол. | S38: =SUMIFS(S$7:S$37,INDIRECT("Март[Дата]"),">="&$S$2,INDIRECT("Март[Дата]"),"<="&$T$2)+IF(MONTH($T$2)<>MONTH($S$2),INDIRECT(TEXT($A$7-1,"ММММ")&"!F38")-SUM(INDIRECT(TEXT($A$7-1,"ММММ")&"!V1:V2"))) -> 0 | T38: =SUMIFS(T$7:T$37,INDIRECT("Март[Дата]"),">="&$S$2,INDIRECT("Март[Дата]"),"<="&$T$2)+IF(MONTH($T$2)<>MONTH($S$2),INDIRECT(TEXT($A$7-1,"ММММ")&"!F38")-SUM(INDIRECT(TEXT($A$7-1,"ММММ")&"!V1:V2"))) -> 0 | U38: 75.01 | V38: 0 | W38: 0 | X38: 0 | Y38: -0.99 | Z38: 1-я пол.
K39: =SUMIFS(K7:K37,A7:A37,">="&$S$2,A7:A37,"<="&$T$2) -> 22 | R39: 2-я пол. | S39: =SUMIFS(S$7:S$37,INDIRECT("Март[Дата]"),">="&$S$3,INDIRECT("Март[Дата]"),"<="&$T$3)+IF(MONTH($T$3)<>MONTH($S$3),INDIRECT(TEXT($A$7-1,"ММММ")&"!F38")-SUM(INDIRECT(TEXT($A$7-1,"ММММ")&"!V1:V2"))) -> 0 | T39: =SUMIFS(T$7:T$37,INDIRECT("Март[Дата]"),">="&$S$3,INDIRECT("Март[Дата]"),"<="&$T$3)+IF(MONTH($T$3)<>MONTH($S$3),INDIRECT(TEXT($A$7-1,"ММММ")&"!F38")-SUM(INDIRECT(TEXT($A$7-1,"ММММ")&"!V1:V2"))) -> 0 | U39: 111.46 | V39: 0 | W39: 0 | X39: 0 | Y39: 25.46 | Z39: 2-я пол.
K40: =SUMIFS(K7:K37,A7:A37,">="&$S$3,A7:A37,"<="&$T$3) -> 19

Sheet ТС
G1: Зима : | H1: 01.11 - 31.03 | L1: Зима : | M1: 01.11 - 31.03 | P1: Расчет максимальной нормы расхода ДТ (литр/100км)
G2: Лето: | H2: 01.04 - 30.10 | L2: Лето: | M2: 01.04 - 30.10
G3: доп.коэфф-т к норме | L3: доп.коэфф-т к норме
A4: № п/п | B4: Номер гос.регистрации / Заводской номер | C4: Километраж, км | D4: Спецоборудование, м/ч | E4: Топливо, л | F4: Базовая норма расхода на 100 км | G4: Зима | H4: Лето | I4: Итога норма а/м ЗИМА | J4: Итога норма а/м ЛЕТО | K4: Базовая норма расхода на 1 мото/час | L4: "Зима" | M4: "Лето" | N4: Итога норма а/м "ЗИМА" | O4: Итога норма а/м "ЛЕТО" | P4: Норма на 100 км, литров | Q4: движение с манипулятором | R4: Тоннаж | S4: Литры | T4: На движение с грузом | U4: Тоннаж1 | V4: К-т загрузки | W4: ИТОГ | X4: 25% за работу в городе с населением свыше 3 млн. человек | Y4: 10 % за работу зимой
A5: 1 | B5: Норма 1 | C5: 209024 | D5: 620 | E5: 500 | F5: 46.86 | G5: 10 | H5: -9.1 | I5: =F5*(100+G5)% -> 51.546 | J5: =F5*(100+H5)% -> 42.59574 | K5: 5.5 | L5: 10 | M5: 0 | N5: =K5*(100+L5)% -> 6.05 | O5: =K5*(100+M5)% -> 5.5 | P5: 32.2 | Q5: =R5*S5 -> 2.938 | R5: 2.26 | S5: 1.3 | T5: =U5*V5*S5 -> 5.2 | U5: 8 | V5: 0.5 | W5: =P5+Q5+T5 -> 40.338 | X5: =W5*25%+W5 -> 50.4225 | Y5: =W5*10%+X5 -> 54.4563
A6: 2 | B6: Норма 2 | E6: 500 | F6: =F5-F5*5% -> 44.517 | G6: 10 | H6: -9.1 | I6: 48.9687 | J6: 40.465953 | K6: =K5-K5*5% -> 5.225 | L6: 10 | M6: 0 | N6: 5.7475 | O6: 5.225 | P6: 32.2 | Q6: 2.938 | R6: 2.26 | S6: 1.3 | T6: 5.2 | U6: 8 | V6: 0.5 | W6: 40.338 | X6: 50.4225 | Y6: 54.4563
A7: 3 | B7: Норма 3 | E7: 500 | F7: =F5-F5*10% -> 42.174 | G7: 10 | H7: -9.1 | I7: 46.3914 | J7: 38.336166 | K7: =K5-K5*10% -> 4.95 | L7: 10 | M7: 0 | N7: 5.445 | O7: 4.95 | P7: 32.2 | Q7: 2.938 | R7: 2.26 | S7: 1.3 | T7: 5.2 | U7: 8 | V7: 0.5 | W7: 40.338 | X7: 50.4225 | Y7: 54.4563
B11: Зима
B12: Лето
B14: Январь
B15: Февраль
B16: Март
B17: Апрель
B18: Май
B19: Июнь
B20: Июль
B21: Август
B22: Сентябрь
B23: Октябрь
B24: Ноябрь
B25: Декабрь
B27: Норма 1
B28: Норма 2
B29: Норма 3

Sheet Сотрудники
B1: Ф.И.О.
B2: Никляев В.А.
B3: Ильин А.Г.
B4: Малышев О.С.
B5: Кобалян М.В.
